Workbook

Sheet Instructions
A1: Instructions for Federal projects
A3: Step 1: MANDATORY
A4: Click on Rates worksheet
B5: Change the budget period dates to coincide with your project period
B6: Change the BUDGET INITIATION DATE to coincide with the date you started your budget (today's date). This is needed in order to calculate salary increases correctly
A9: Click on the worksheet that agrees with the number years you are requesting the sponsor to fund
B10: Go to the "Indirect Data" section at the bottom of the worksheet and enter the indirect data relative to your project
C11: Change the letters/numbers in blue as appropriate
B12: Return to Row 4
B13: Click on the word name next to Sponsoring Agency and enter your sponsor's name
B14: Click on the word name next to Title and enter the title of your project
B15: Click on the word name next to Principal Investigator (PI) and the PI's name
B17: Your project start and end date should appear in red.
C18: They come from the dates you entered on the Rates Worksheet
B20: Click on the first "-" under salary and enter the current base salary per UCFlex. The spreadsheet will calculate the appropriate base for the start date of the award based on inflation factors
C21: The appropriate salary increases for the same % of effort in subsequent years are automatically calculated in the spreadsheet.
C22: The recess base salary will be calculated automatically
B24: Click on the 0% under effort and enter the percentage of time you will spend on the project during the academic period.
C25: The amount will automatically calculate and be entered in the year 1 column
B27: Click on the second 0% under effort and enter the percentage of time you will spend on the project during the recess year.
B29: Determine if the CoPI(s) are on a 32 week (aka 9 month or academic year) or 12 month appointment (most College of Medicine faculty are on a 12 month appointment). Use the appropriate line(s) in Senior Personnel section for their type of Appointment.
B33: Enter the name of the Co-PI
B34: Enter the percentage of time the Co PI will spend on the project during the academic period.
C35: The amount will automatically calculate and be entered in the year 1 column
K36: ='RATES-Non Fed'!Q69 -> 0
B38: If the Co-PI is on a 32 week appointment and eligible for Extra Compensation enter the percentage of time the CoPI will spend on the project during the recess period.
B41: Add additional Co-PIs as appropriate
B43: Proceed to enter budget dollars for remainder of personnel
B45: Fringes will calculate automatically for you.
B47: Proceed to enter budget dollars for remainder of cost categories.
B49: If you are using a multi year budget you will notice in years 2 and beyond
B50: some of the fields are calculating automatically (4% increase)
B52: You may override any of those dollars by entering any number in the field.
B53: Do not override any fringe or indirect cost entries
K71: ='RATES-Non Fed'!Q69 -> 0

Sheet 1 Year
A1: Grants / Contracts
A2: 1 Year Budget
A4: Sponsoring Agency : | D4: name | I4: name | J4: Titled : | K4: name
A5: Principal Investigator : | D5: name
B6: Period : | D6: ='RATES-Non Fed'!E2 -> 2024-01-01 | E6: thru | G6: ='RATES-Non Fed'!G2 -> 1930-12-31
B8: Salaries | J8: Year 1 | M8: CUMULATIVE
A9: A. | B9: AAUP Faculty | J9: Sal | K9: FB | L9: Total
D10: App't Type | E10: % Effort | F10: PM | G10: Salary | M10: =IF(SUM(J10:L10)=0,"",SUM(J10:L10)) -> 
B11: PI | D11: ACAD | E11: 0 | F11: =IF(D11="CAL",(52*E11/4.3333),(IF(D11="ACAD",(36.35*E11/4.33333),IF(D11="SUMR",(15.65*E11/4.33333),IF(D11="PT",(0),0))))) -> 0 | G11: 0 | J11: =IF($D11="CAL",ROUND(($G11*(1+'Salary Inflation'!$B$30))*$E11,0),IF($D11="ACAD",($G11/0.9965)*(1+'Salary Inflation'!$B$31)*$E11,IF($D11="SUMR",($G11)*(1+'Salary Inflation'!$B$32)*$E11,"NA"))) -> 0 | K11: =IF(D11="CAL",ROUND(J11*'RATES-Non Fed'!$E$38,0),IF(D11="ACAD",J11*'RATES-Non Fed'!$E$44,J11*'RATES-Non Fed'!$E$45)) -> 0 | L11: =ROUND(K11+J11,0) -> 0 | M11: =SUM(L11) -> 0
B12: PI | D12: SUMR | E12: 0 | F12: 0 | G12: =IF(D11="ACAD",+G11*0.437,0) -> 0 | J12: =IF($D12="CAL",ROUND(($G12*(1+'Salary Inflation'!$B$30))*$E12,0),IF($D12="ACAD",($G12/0.9965)*(1+'Salary Inflation'!$B$31)*$E12,IF($D12="SUMR",($G12)*(1+'Salary Inflation'!$B$32)*$E12,"NA"))) -> 0 | K12: =IF(D12="CAL",ROUND(J12*'RATES-Non Fed'!$E$38,0),IF(D12="ACAD",J12*'RATES-Non Fed'!$E$44,J12*'RATES-Non Fed'!$E$45)) -> 0 | L12: =ROUND(K12+J12,0) -> 0 | M12: =SUM(L12) -> 0
B13: Co | D13: ACAD | E13: 0 | F13: 0 | G13: 0 | J13: =IF($D13="CAL",ROUND(($G13*(1+'Salary Inflation'!$B$30))*$E13,0),IF($D13="ACAD",($G13/0.9965)*(1+'Salary Inflation'!$B$31)*$E13,IF($D13="SUMR",($G13)*(1+'Salary Inflation'!$B$32)*$E13,"NA"))) -> 0 | K13: =IF(D13="CAL",ROUND(J13*'RATES-Non Fed'!$E$38,0),IF(D13="ACAD",J13*'RATES-Non Fed'!$E$44,J13*'RATES-Non Fed'!$E$45)) -> 0 | L13: 0 | M13: 0
D14: =IF(D13="ACAD",("SUMR"),"") -> SUMR | E14: 0 | F14: 0 | G14: =IF(D13="ACAD",+G13*0.437,0) -> 0 | J14: =IF($D14="CAL",ROUND(($G14*(1+'Salary Inflation'!$B$30))*$E14,0),IF($D14="ACAD",($G14/0.9965)*(1+'Salary Inflation'!$B$31)*$E14,IF($D14="SUMR",($G14)*(1+'Salary Inflation'!$B$32)*$E14,"NA"))) -> 0 | K14: =IF(D14="CAL",ROUND(J14*'RATES-Non Fed'!$E$38,0),IF(D14="ACAD",J14*'RATES-Non Fed'!$E$44,J14*'RATES-Non Fed'!$E$45)) -> 0 | L14: 0 | M14: 0
B15: Co | D15: CAL | E15: 0 | F15: 0 | G15: 0 | J15: =IF($D15="CAL",ROUND(($G15*(1+'Salary Inflation'!$B$30))*$E15,0),IF($D15="ACAD",($G15/0.9965)*(1+'Salary Inflation'!$B$31)*$E15,IF($D15="SUMR",($G15)*(1+'Salary Inflation'!$B$32)*$E15,"NA"))) -> 0 | K15: =IF(D15="CAL",ROUND(J15*'RATES-Non Fed'!$E$38,0),IF(D15="ACAD",J15*'RATES-Non Fed'!$E$44,J15*'RATES-Non Fed'!$E$45)) -> 0 | L15: 0 | M15: 0
B16: Co | D16: CAL | E16: 0 | F16: 0 | G16: 0 | J16: =IF($D16="CAL",ROUND(($G16*(1+'Salary Inflation'!$B$30))*$E16,0),IF($D16="ACAD",($G16/0.9965)*(1+'Salary Inflation'!$B$31)*$E16,IF($D16="SUMR",($G16)*(1+'Salary Inflation'!$B$32)*$E16,"NA"))) -> 0 | K16: =IF(D16="CAL",ROUND(J16*'RATES-Non Fed'!$E$38,0),IF(D16="ACAD",J16*'RATES-Non Fed'!$E$44,J16*'RATES-Non Fed'!$E$45)) -> 0 | L16: 0 | M16: 0
B17: Co | D17: CAL | E17: 0 | F17: 0 | G17: 0 | J17: =IF($D17="CAL",ROUND(($G17*(1+'Salary Inflation'!$B$30))*$E17,0),IF($D17="ACAD",($G17/0.9965)*(1+'Salary Inflation'!$B$31)*$E17,IF($D17="SUMR",($G17)*(1+'Salary Inflation'!$B$32)*$E17,"NA"))) -> 0 | K17: =IF(D17="CAL",ROUND(J17*'RATES-Non Fed'!$E$38,0),IF(D17="ACAD",J17*'RATES-Non Fed'!$E$44,J17*'RATES-Non Fed'!$E$45)) -> 0 | L17: 0 | M17: 0
D18: AAUP Faculty Subtotal : | J18: =SUM(J11:J17) -> 0 | K18: =SUM(K11:K17) -> 0 | L18: =SUM(L11:L17) -> 0 | M18: =SUM(M11:M17) -> 0
A19: B | B19: Dual Compensation Faculty
B20: PI | D20: CAL | E20: 0 | F20: =IF(D20="CAL",(52*E20/4.3333),(IF(D20="ACAD",(32*E20/4.33333),IF(D20="SUMR",(14*E20/4.33333),IF(D20="PT",(0),0))))) -> 0 | G20: 0 | J20: =ROUND(($G20*(1+'Salary Inflation'!$B$34))*$E20,0) -> 0 | K20: =ROUND(J20*'RATES-Non Fed'!E40,0) -> 0 | L20: =ROUND(K20+J20,0) -> 0 | M20: =SUM(L20) -> 0
B21: Co | D21: CAL | E21: 0 | F21: =IF(D21="CAL",(52*E21/4.3333),(IF(D21="ACAD",(32*E21/4.33333),IF(D21="SUMR",(14*E21/4.33333),IF(D21="PT",(0),0))))) -> 0 | G21: 0 | J21: =ROUND(($G21*(1+'Salary Inflation'!$B$34))*$E21,0) -> 0 | K21: =ROUND(J21*'RATES-Non Fed'!E40,0) -> 0 | L21: =ROUND(K21+J21,0) -> 0 | M21: =SUM(L21) -> 0
B22: Co | D22: CAL | E22: 0 | F22: =IF(D22="CAL",(52*E22/4.3333),(IF(D22="ACAD",(32*E22/4.33333),IF(D22="SUMR",(14*E22/4.33333),IF(D22="PT",(0),0))))) -> 0 | G22: 0 | J22: =ROUND(($G22*(1+'Salary Inflation'!$B$34))*$E22,0) -> 0 | K22: =ROUND(J22*'RATES-Non Fed'!E40,0) -> 0 | L22: =ROUND(K22+J22,0) -> 0 | M22: =SUM(L22) -> 0
B23: Co | D23: CAL | E23: 0 | F23: =IF(D23="CAL",(52*E23/4.3333),(IF(D23="ACAD",(32*E23/4.33333),IF(D23="SUMR",(14*E23/4.33333),IF(D23="PT",(0),0))))) -> 0 | G23: 0 | J23: =ROUND(($G23*(1+'Salary Inflation'!$B$34))*$E23,0) -> 0 | K23: =ROUND(J23*'RATES-Non Fed'!E40,0) -> 0 | L23: =ROUND(K23+J23,0) -> 0 | M23: =SUM(L23) -> 0
D24: Dual Comp Faculty Subtotal : | J24: =SUM(J20:J23) -> 0 | K24: =SUM(K20:K23) -> 0 | L24: =SUM(L20:L23) -> 0 | M24: =SUM(M20:M23) -> 0
A26: C. | B26: Other Personnel
C27: Exempt Staff (Monthly) | D27: Name
E28: 0 | F28: =SUM(52*E28/4.3333) -> 0 | G28: 0 | J28: =ROUND(($G28*(1+'Salary Inflation'!$B$33))*$E28,0) -> 0 | K28: =ROUND(J28*'RATES-Non Fed'!E39,0) -> 0 | L28: =SUM(J28:K28) -> 0 | M28: =SUM(L28) -> 0
E29: 0 | F29: =SUM(52*E29/4.3333) -> 0 | G29: 0 | J29: =ROUND(($G29*(1+'Salary Inflation'!$B$33))*$E29,0) -> 0 | K29: =ROUND(J29*'RATES-Non Fed'!E39,0) -> 0 | L29: =SUM(J29:K29) -> 0 | M29: =SUM(L29) -> 0
E30: 0 | F30: =SUM(52*E30/4.3333) -> 0 | G30: 0 | J30: =ROUND(($G30*(1+'Salary Inflation'!$B$33))*$E30,0) -> 0 | K30: =ROUND(J30*'RATES-Non Fed'!E39,0) -> 0 | L30: =SUM(J30:K30) -> 0 | M30: =SUM(L30) -> 0
E31: 0 | F31: =SUM(52*E31/4.3333) -> 0 | G31: 0 | J31: =ROUND(($G31*(1+'Salary Inflation'!$B$33))*$E31,0) -> 0 | K31: =ROUND(J31*'RATES-Non Fed'!E39,0) -> 0 | L31: =SUM(J31:K31) -> 0 | M31: =SUM(L31) -> 0
D32: Total Exempt Staff | J32: =SUM(J28:J31) -> 0 | K32: =SUM(K28:K31) -> 0 | L32: =SUM(L28:L31) -> 0 | M32: =SUM(M28:M31) -> 0
C34: Post Doctoral Support | E34: 0 | F34: =SUM(52*E34/4.3333) -> 0 | G34: 0 | J34: =ROUND(($G34*(1+'Salary Inflation'!$B$33))*$E34,0) -> 0 | K34: =ROUND(J34*'RATES-Non Fed'!$E$43,0) -> 0 | L34: =SUM(J34:K34) -> 0 | M34: =SUM(L34) -> 0
C35: Graduate Students | E35: 0 | F35: =SUM(52*E35/4.3333) -> 0 | G35: 0 | J35: =ROUND(($G35*(1+'Salary Inflation'!$B$33))*$E35,0) -> 0 | K35: =ROUND(J35*'RATES-Non Fed'!E42,0) -> 0 | L35: =SUM(J35:K35) -> 0 | M35: =SUM(L35) -> 0
C36: Undergrad Students | E36: 0 | F36: =SUM(52*E36/4.3333) -> 0 | G36: 0 | J36: =ROUND(($G36*(1+'Salary Inflation'!$B$33))*$E36,0) -> 0 | K36: =ROUND(J36*'RATES-Non Fed'!E42,0) -> 0 | L36: =SUM(J36:K36) -> 0 | M36: =SUM(L36) -> 0
C37: Part-time Faculty/Staff | E37: 0 | F37: =SUM(52*E37/4.3333) -> 0 | G37: 0 | J37: =ROUND(($G37*(1+'Salary Inflation'!$B$33))*$E37,0) -> 0 | K37: =ROUND(J37*'RATES-Non Fed'!E43,0) -> 0 | L37: =SUM(J37:K37) -> 0 | M37: =SUM(L37) -> 0
C38: Non-Exempt Staff (Bi-Weekly) | E38: 0 | F38: =SUM(52*E38/4.3333) -> 0 | G38: 0 | J38: =ROUND(($G38*(1+'Salary Inflation'!$B$33))*$E38,0) -> 0 | K38: =ROUND(J38*'RATES-Non Fed'!E41,0) -> 0 | L38: =SUM(J38:K38) -> 0 | M38: =SUM(L38) -> 0
D39: Sub Totals | J39: =SUM(J18+J24+J32+J34+J35+J36+J37+J38) -> 0 | K39: =SUM(K18+K24+K32+K34+K35+K36+K37+K38) -> 0 | L39: =SUM(L34:L38) -> 0 | M39: =SUM(M34:M38) -> 0
A41: Total Salaries and Fringe Benefits : | J41: =SUM(J39+K39) -> 0 | M41: =SUM(J41) -> 0
A43: D. | B43: Equipment
C44: (list) | J44: 0 | M44: =SUM(J44:L44) -> 0
C45: (list) | J45: 0 | M45: =SUM(J45:L45) -> 0
C46: Total Equipment : | J46: =SUM(J44:J45) -> 0 | M46: =SUM(J46:L46) -> 0
A48: E. | B48: Travel
C49: Domestic | D49: (list) | J49: 0 | M49: =SUM(J49:L49) -> 0
C50: International | D50: (list) | J50: 0 | M50: =SUM(J50:L50) -> 0
C51: Total Travel : | J51: =SUM(J49:J50) -> 0 | M51: =SUM(J51:L51) -> 0
A53: G. | B53: Supplies and Other Direct Costs
C54: Materials & Supplies | J54: 0 | M54: =SUM(J54:L54) -> 0
C55: LAM | J55: 0 | M55: 0
C56: Consultant Services | J56: 0 | M56: 0
C57: Subject Incentives | J57: 0 | M57: 0
C58: UC Tuition for Trainees/Fellows | J58: 0 | M58: 0
C59: UC Tuition on Research Projects | J59: 0 | M59: =SUM(J59:L59) -> 0
C60: Lab Expenses | J60: 0 | M60: 0
C61: Other (Analytical Services/Instrument Use) | J61: 0 | M61: 0
C62: Subcontracts 1) | J62: 0 | M62: 0
C63: 2) | J63: 0 | M63: 0
C64: 3) | J64: 0 | M64: 0
C65: 4) | J65: 0 | M65: 0
A66: Total Supplies and Other Direct Costs : | J66: =SUM(J54:J65) -> 0 | M66: 0
E68: TOTAL DIRECT COSTS: | J68: =ROUND(+J66+J51+J46+J41,0) -> 0 | M68: =SUM(J68:L68) -> 0
H70: Facilities and Administrative Cost Base: | J70: =J68 -> 0 | M70: =SUM(J70:L70) -> 0
A71: Facilities and Administrative Costs Calculation:
A72: F&A Cost (on MTDC): | D72: =IF(AND(($E$79)="R",($E$81)="C"),('RATES-Non Fed'!E48),IF(AND(($E$79)="R",($E$81)="O"),('RATES-Non Fed'!E53),IF(AND(($E$79)="I",($E$81)="C"),('RATES-Non Fed'!E49),IF(AND(($E$79)="I",($E$81)="O"),('RATES-Non Fed'!E54),IF(AND(($E$79)="P",($E$81)="C"),('RATES-Non Fed'!E50),IF(AND(($E$79)="P",($E$81)="O"),('RATES-Non Fed'!E55),($E$80))))))) -> 0.62 | J72: =+J70*D72 -> 0 | M72: =SUM(J72:L72) -> 0
A73: Total F&A Cost : | J73: =SUM(J72:J72) -> 0 | M73: =SUM(J73:L73) -> 0
C75: Total Cost | J75: =J73+J68 -> 0 | M75: =SUM(J75:L75) -> 0
C78: Facilities and Administrative Data
C79: Purpose of Grant / Contract : | E79: R | G79: (R = Research, I = Instruction, P = Public Service, S = Special Rate on Total Costs)
C80: Special F&A Rate : | E80: 0.1
C81: Campus Status : | E81: C | G81: (C = On Campus, O = Off Campus)
D83: Detailed F&A figures for prorated rates | H83: =+'RATES-Non Fed'!E31 -> 0.62 | J83: =J73/12*'RATES-Non Fed'!$C$48 -> 0
D84: *If both lines have the same rate, then just list as one line on forms. | H84: =+'RATES-Non Fed'!G31 -> 0.62 | J84: =J73/12*'RATES-Non Fed'!$D$48 -> 0
J85: =SUM(J83:J84) -> 0

Sheet 2 Year
A1: Grants / Contracts
A2: 2 Year Budget
A4: Sponsoring Agency : | D4: name | J4: Titled : | K4: name
A5: Principal Investigator : | D5: name
B6: Period : | D6: ='RATES-Non Fed'!E2 -> 2024-01-01 | E6: thru | G6: ='RATES-Non Fed'!G2 -> 1930-12-31
C8: Salaries | J8: Year 1 | M8: Year 2 | P8: CUMULATIVE
A9: A. | J9: Sal | K9: FB | L9: Total | M9: Sal | N9: FB | O9: Total
B10: Senior Personnel | D10: App't Type | E10: % Effort | F10: PM | G10: Salary | P10: =IF(SUM(J10:N10)=0,"",SUM(J10:N10)) -> 
B11: PI | D11: ACAD | E11: 0 | F11: =IF(D11="CAL",(52*E11/4.3333),(IF(D11="ACAD",(36.35*E11/4.33333),IF(D11="SUMR",(15.65*E11/4.33333),IF(D11="PT",(0),0))))) -> 0 | G11: 0 | J11: =IF($D11="CAL",ROUND(($G11*(1+'Salary Inflation'!$B$30))*$E11,0),IF($D11="ACAD",($G11/0.9965)*(1+'Salary Inflation'!$B$31)*$E11,IF($D11="SUMR",($G11)*(1+'Salary Inflation'!$B$32)*$E11,"NA"))) -> 0 | K11: =IF($D11="CAL",ROUND(J11*'RATES-Non Fed'!$E$38,0),IF($D11="ACAD",J11*'RATES-Non Fed'!$E$44,J11*'RATES-Non Fed'!$E$45)) -> 0 | L11: =ROUND(K11+J11,0) -> 0 | M11: =IF($D11="CAL",ROUND((J11*(1+'Salary Inflation'!$C$30)),0),IF($D11="ACAD",(J11)*(1+'Salary Inflation'!$C$31),IF($D11="SUMR",(J11)*(1+'Salary Inflation'!$C$32),"NA"))) -> 0 | N11: =IF($D11="CAL",ROUND(M11*'RATES-Non Fed'!$G$38,0),IF($D11="ACAD",M11*'RATES-Non Fed'!$G$44,M11*'RATES-Non Fed'!$G$45)) -> 0 | O11: =ROUND(M11+N11,0) -> 0 | P11: =SUM(L11+O11) -> 0
B12: PI | D12: SUMR | E12: 0 | F12: 0 | G12: =IF(D11="ACAD",+G11*0.437,0) -> 0 | J12: =IF($D12="CAL",ROUND(($G12*(1+'Salary Inflation'!$B$30))*$E12,0),IF($D12="ACAD",($G12/0.9965)*(1+'Salary Inflation'!$B$31)*$E12,IF($D12="SUMR",($G12)*(1+'Salary Inflation'!$B$32)*$E12,"NA"))) -> 0 | K12: =IF($D12="CAL",ROUND(J12*'RATES-Non Fed'!$E$38,0),IF($D12="ACAD",J12*'RATES-Non Fed'!$E$44,J12*'RATES-Non Fed'!$E$45)) -> 0 | L12: =ROUND(K12+J12,0) -> 0 | M12: =IF($D12="CAL",ROUND((J12*(1+'Salary Inflation'!$C$30)),0),IF($D12="ACAD",(J12)*(1+'Salary Inflation'!$C$31),IF($D12="SUMR",(J12)*(1+'Salary Inflation'!$C$32),"NA"))) -> 0 | N12: =IF($D12="CAL",ROUND(M12*'RATES-Non Fed'!$G$38,0),IF($D12="ACAD",M12*'RATES-Non Fed'!$G$44,M12*'RATES-Non Fed'!$G$45)) -> 0 | O12: 0 | P12: =SUM(L12+O12) -> 0
B13: Co | D13: ACAD | E13: 0 | F13: 0 | G13: 0 | J13: =IF($D13="CAL",ROUND(($G13*(1+'Salary Inflation'!$B$30))*$E13,0),IF($D13="ACAD",($G13/0.9965)*(1+'Salary Inflation'!$B$31)*$E13,IF($D13="SUMR",($G13)*(1+'Salary Inflation'!$B$32)*$E13,"NA"))) -> 0 | K13: =IF($D13="CAL",ROUND(J13*'RATES-Non Fed'!$E$38,0),IF($D13="ACAD",J13*'RATES-Non Fed'!$E$44,J13*'RATES-Non Fed'!$E$45)) -> 0 | L13: 0 | M13: =IF($D13="CAL",ROUND((J13*(1+'Salary Inflation'!$C$30)),0),IF($D13="ACAD",(J13)*(1+'Salary Inflation'!$C$31),IF($D13="SUMR",(J13)*(1+'Salary Inflation'!$C$32),"NA"))) -> 0 | N13: =IF($D13="CAL",ROUND(M13*'RATES-Non Fed'!$G$38,0),IF($D13="ACAD",M13*'RATES-Non Fed'!$G$44,M13*'RATES-Non Fed'!$G$45)) -> 0 | O13: 0 | P13: 0
D14: =IF(D13="ACAD",("SUMR"),"") -> SUMR | E14: 0 | F14: 0 | G14: =IF(D13="ACAD",+G13*0.437,0) -> 0 | J14: =IF($D14="CAL",ROUND(($G14*(1+'Salary Inflation'!$B$30))*$E14,0),IF($D14="ACAD",($G14/0.9965)*(1+'Salary Inflation'!$B$31)*$E14,IF($D14="SUMR",($G14)*(1+'Salary Inflation'!$B$32)*$E14,"NA"))) -> 0 | K14: =IF($D14="CAL",ROUND(J14*'RATES-Non Fed'!$E$38,0),IF($D14="ACAD",J14*'RATES-Non Fed'!$E$44,J14*'RATES-Non Fed'!$E$45)) -> 0 | L14: 0 | M14: =IF($D14="CAL",ROUND((J14*(1+'Salary Inflation'!$C$30)),0),IF($D14="ACAD",(J14)*(1+'Salary Inflation'!$C$31),IF($D14="SUMR",(J14)*(1+'Salary Inflation'!$C$32),"NA"))) -> 0 | N14: =IF($D14="CAL",ROUND(M14*'RATES-Non Fed'!$G$38,0),IF($D14="ACAD",M14*'RATES-Non Fed'!$G$44,M14*'RATES-Non Fed'!$G$45)) -> 0 | O14: 0 | P14: 0
B15: Co | D15: ACAD | E15: 0 | F15: 0 | G15: 0 | J15: =IF($D15="CAL",ROUND(($G15*(1+'Salary Inflation'!$B$30))*$E15,0),IF($D15="ACAD",($G15/0.9965)*(1+'Salary Inflation'!$B$31)*$E15,IF($D15="SUMR",($G15)*(1+'Salary Inflation'!$B$32)*$E15,"NA"))) -> 0 | K15: =IF($D15="CAL",ROUND(J15*'RATES-Non Fed'!$E$38,0),IF($D15="ACAD",J15*'RATES-Non Fed'!$E$44,J15*'RATES-Non Fed'!$E$45)) -> 0 | L15: 0 | M15: =IF($D15="CAL",ROUND((J15*(1+'Salary Inflation'!$C$30)),0),IF($D15="ACAD",(J15)*(1+'Salary Inflation'!$C$31),IF($D15="SUMR",(J15)*(1+'Salary Inflation'!$C$32),"NA"))) -> 0 | N15: =IF($D15="CAL",ROUND(M15*'RATES-Non Fed'!$G$38,0),IF($D15="ACAD",M15*'RATES-Non Fed'!$G$44,M15*'RATES-Non Fed'!$G$45)) -> 0 | O15: 0 | P15: 0
D16: =IF(D15="ACAD",("SUMR"),"") -> SUMR | E16: 0 | F16: 0 | G16: =IF(D15="ACAD",+G15*0.428,0) -> 0 | J16: =IF($D16="CAL",ROUND(($G16*(1+'Salary Inflation'!$B$30))*$E16,0),IF($D16="ACAD",($G16/0.9965)*(1+'Salary Inflation'!$B$31)*$E16,IF($D16="SUMR",($G16)*(1+'Salary Inflation'!$B$32)*$E16,"NA"))) -> 0 | K16: =IF($D16="CAL",ROUND(J16*'RATES-Non Fed'!$E$38,0),IF($D16="ACAD",J16*'RATES-Non Fed'!$E$44,J16*'RATES-Non Fed'!$E$45)) -> 0 | L16: 0 | M16: =IF($D16="CAL",ROUND((J16*(1+'Salary Inflation'!$C$30)),0),IF($D16="ACAD",(J16)*(1+'Salary Inflation'!$C$31),IF($D16="SUMR",(J16)*(1+'Salary Inflation'!$C$32),"NA"))) -> 0 | N16: =IF($D16="CAL",ROUND(M16*'RATES-Non Fed'!$G$38,0),IF($D16="ACAD",M16*'RATES-Non Fed'!$G$44,M16*'RATES-Non Fed'!$G$45)) -> 0 | O16: 0 | P16: 0
B17: Co | D17: CAL | E17: 0 | F17: 0 | G17: 0 | J17: =IF($D17="CAL",ROUND(($G17*(1+'Salary Inflation'!$B$30))*$E17,0),IF($D17="ACAD",($G17/0.9965)*(1+'Salary Inflation'!$B$31)*$E17,IF($D17="SUMR",($G17)*(1+'Salary Inflation'!$B$32)*$E17,"NA"))) -> 0 | K17: =IF($D17="CAL",ROUND(J17*'RATES-Non Fed'!$E$38,0),IF($D17="ACAD",J17*'RATES-Non Fed'!$E$44,J17*'RATES-Non Fed'!$E$45)) -> 0 | L17: 0 | M17: =IF($D17="CAL",ROUND((J17*(1+'Salary Inflation'!$C$30)),0),IF($D17="ACAD",(J17)*(1+'Salary Inflation'!$C$31),IF($D17="SUMR",(J17)*(1+'Salary Inflation'!$C$32),"NA"))) -> 0 | N17: =IF($D17="CAL",ROUND(M17*'RATES-Non Fed'!$G$38,0),IF($D17="ACAD",M17*'RATES-Non Fed'!$G$44,M17*'RATES-Non Fed'!$G$45)) -> 0 | O17: 0 | P17: 0
B18: Co | D18: CAL | E18: 0 | F18: 0 | G18: 0 | J18: =IF($D18="CAL",ROUND(($G18*(1+'Salary Inflation'!$B$30))*$E18,0),IF($D18="ACAD",($G18/0.9965)*(1+'Salary Inflation'!$B$31)*$E18,IF($D18="SUMR",($G18)*(1+'Salary Inflation'!$B$32)*$E18,"NA"))) -> 0 | K18: =IF($D18="CAL",ROUND(J18*'RATES-Non Fed'!$E$38,0),IF($D18="ACAD",J18*'RATES-Non Fed'!$E$44,J18*'RATES-Non Fed'!$E$45)) -> 0 | L18: 0 | M18: =IF($D18="CAL",ROUND((J18*(1+'Salary Inflation'!$C$30)),0),IF($D18="ACAD",(J18)*(1+'Salary Inflation'!$C$31),IF($D18="SUMR",(J18)*(1+'Salary Inflation'!$C$32),"NA"))) -> 0 | N18: =IF($D18="CAL",ROUND(M18*'RATES-Non Fed'!$G$38,0),IF($D18="ACAD",M18*'RATES-Non Fed'!$G$44,M18*'RATES-Non Fed'!$G$45)) -> 0 | O18: 0 | P18: 0
D19: AAUP Faculty Subtotal : | J19: =SUM(J11:J18) -> 0 | K19: 0 | L19: 0 | M19: 0 | N19: 0 | O19: 0 | P19: 0
A20: B | B20: Dual Compensation Faculty
B21: Co | D21: CAL | E21: 0 | F21: =IF(D21="CAL",(52*E21/4.3333),(IF(D21="ACAD",(32*E21/4.33333),IF(D21="SUMR",(14*E21/4.33333),IF(D21="PT",(0),0))))) -> 0 | G21: 0 | J21: =ROUND(($G21*(1+'Salary Inflation'!$B$34))*$E21,0) -> 0 | K21: =ROUND(J21*'RATES-Non Fed'!E40,0) -> 0 | L21: =ROUND(K21+J21,0) -> 0 | M21: =ROUND(J21*(1+'Salary Inflation'!$C$34),0) -> 0 | N21: =ROUND(M21*'RATES-Non Fed'!G40,0) -> 0 | O21: =ROUND(M21+N21,0) -> 0 | P21: =SUM(L21+O21) -> 0
B22: Co | D22: CAL | E22: 0 | F22: =IF(D22="CAL",(52*E22/4.3333),(IF(D22="ACAD",(32*E22/4.33333),IF(D22="SUMR",(14*E22/4.33333),IF(D22="PT",(0),0))))) -> 0 | G22: 0 | J22: =ROUND(($G22*(1+'Salary Inflation'!$B$34))*$E22,0) -> 0 | K22: =ROUND(J22*'RATES-Non Fed'!E40,0) -> 0 | L22: =ROUND(K22+J22,0) -> 0 | M22: =ROUND(J22*(1+'Salary Inflation'!$C$34),0) -> 0 | N22: =ROUND(M22*'RATES-Non Fed'!G40,0) -> 0 | O22: =ROUND(M22+N22,0) -> 0 | P22: =SUM(L22+O22) -> 0
B23: Co | D23: CAL | E23: 0 | F23: =IF(D23="CAL",(52*E23/4.3333),(IF(D23="ACAD",(32*E23/4.33333),IF(D23="SUMR",(14*E23/4.33333),IF(D23="PT",(0),0))))) -> 0 | G23: 0 | J23: =ROUND(($G23*(1+'Salary Inflation'!$B$34))*$E23,0) -> 0 | K23: =ROUND(J23*'RATES-Non Fed'!E40,0) -> 0 | L23: =ROUND(K23+J23,0) -> 0 | M23: =ROUND(J23*(1+'Salary Inflation'!$C$34),0) -> 0 | N23: =ROUND(M23*'RATES-Non Fed'!G40,0) -> 0 | O23: =ROUND(M23+N23,0) -> 0 | P23: =SUM(L23+O23) -> 0
B24: Co | D24: CAL | E24: 0 | F24: =IF(D24="CAL",(52*E24/4.3333),(IF(D24="ACAD",(32*E24/4.33333),IF(D24="SUMR",(14*E24/4.33333),IF(D24="PT",(0),0))))) -> 0 | G24: 0 | J24: =ROUND(($G24*(1+'Salary Inflation'!$B$34))*$E24,0) -> 0 | K24: =ROUND(J24*'RATES-Non Fed'!E40,0) -> 0 | L24: =ROUND(K24+J24,0) -> 0 | M24: =ROUND(J24*(1+'Salary Inflation'!$C$34),0) -> 0 | N24: =ROUND(M24*'RATES-Non Fed'!G40,0) -> 0 | O24: =ROUND(M24+N24,0) -> 0 | P24: =SUM(L24+O24) -> 0
D25: Dual Comp Faculty Subtotal : | J25: =SUM(J21:J24) -> 0 | K25: 0 | L25: 0 | M25: 0 | N25: 0 | O25: 0 | P25: 0
A27: C. | B27: Other Personnel
C28: Exempt Staff (Monthly) | D28: Name
E29: 0 | F29: =SUM(52*E29/4.3333) -> 0 | G29: 0 | J29: =ROUND(($G29*(1+'Salary Inflation'!$B$33))*$E29,0) -> 0 | K29: =ROUND(J29*'RATES-Non Fed'!$E$39,0) -> 0 | L29: =SUM(J29:K29) -> 0 | M29: =ROUND(J29*(1+'Salary Inflation'!$C$33),0) -> 0 | N29: =ROUND(M29*'RATES-Non Fed'!G39,0) -> 0 | O29: =SUM(M29:N29) -> 0 | P29: =SUM(L29+O29) -> 0
E30: 0 | F30: =SUM(52*E30/4.3333) -> 0 | G30: 0 | J30: =ROUND(($G30*(1+'Salary Inflation'!$B$33))*$E30,0) -> 0 | K30: =ROUND(J30*'RATES-Non Fed'!$E$39,0) -> 0 | L30: =SUM(J30:K30) -> 0 | M30: =ROUND(J30*(1+'Salary Inflation'!$C$33),0) -> 0 | N30: =ROUND(M30*'RATES-Non Fed'!G39,0) -> 0 | O30: =SUM(M30:N30) -> 0 | P30: =SUM(L30+O30) -> 0
E31: 0 | F31: =SUM(52*E31/4.3333) -> 0 | G31: 0 | J31: =ROUND(($G31*(1+'Salary Inflation'!$B$33))*$E31,0) -> 0 | K31: =ROUND(J31*'RATES-Non Fed'!$E$39,0) -> 0 | L31: =SUM(J31:K31) -> 0 | M31: =ROUND(J31*(1+'Salary Inflation'!$C$33),0) -> 0 | N31: =ROUND(M31*'RATES-Non Fed'!G39,0) -> 0 | O31: =SUM(M31:N31) -> 0 | P31: =SUM(L31+O31) -> 0
D32: Total Exempt Staff | J32: =SUM(J29:J31) -> 0 | K32: 0 | L32: 0 | M32: 0 | N32: 0 | O32: 0 | P32: 0
C34: Post Doctoral Support | E34: 0 | F34: =SUM(52*E34/4.3333) -> 0 | G34: 0 | J34: =ROUND(($G34*(1+'Salary Inflation'!$B$33))*$E34,0) -> 0 | K34: =ROUND(J34*'RATES-Non Fed'!$E$43,0) -> 0 | L34: =SUM(J34:K34) -> 0 | M34: =ROUND(J34*(1+'Salary Inflation'!$C$33),0) -> 0 | N34: =ROUND(M34*'RATES-Non Fed'!G43,0) -> 0 | O34: =SUM(M34:N34) -> 0 | P34: =SUM(L34+O34) -> 0
C35: Graduate Students | E35: 0 | F35: =SUM(52*E35/4.3333) -> 0 | G35: 0 | J35: =ROUND(($G35*(1+'Salary Inflation'!$B$33))*$E35,0) -> 0 | K35: =ROUND(J35*'RATES-Non Fed'!E42,0) -> 0 | L35: =SUM(J35:K35) -> 0 | M35: =ROUND(J35*(1+'Salary Inflation'!$C$33),0) -> 0 | N35: =ROUND(M35*'RATES-Non Fed'!G42,0) -> 0 | O35: =SUM(M35:N35) -> 0 | P35: =SUM(L35+O35) -> 0
C36: Undergrad Students | E36: 0 | F36: =SUM(52*E36/4.3333) -> 0 | G36: 0 | J36: =ROUND(($G36*(1+'Salary Inflation'!$B$33))*$E36,0) -> 0 | K36: =ROUND(J36*'RATES-Non Fed'!E42,0) -> 0 | L36: =SUM(J36:K36) -> 0 | M36: =ROUND(J36*(1+'Salary Inflation'!$C$33),0) -> 0 | N36: =ROUND(M36*'RATES-Non Fed'!G42,0) -> 0 | O36: =SUM(M36:N36) -> 0 | P36: =SUM(L36+O36) -> 0
C37: Part-time Faculty/Staff | E37: 0 | F37: =SUM(52*E37/4.3333) -> 0 | G37: 0 | J37: =ROUND(($G37*(1+'Salary Inflation'!$B$33))*$E37,0) -> 0 | K37: =ROUND(J37*'RATES-Non Fed'!E43,0) -> 0 | L37: =SUM(J37:K37) -> 0 | M37: =ROUND(J37*(1+'Salary Inflation'!$C$33),0) -> 0 | N37: =ROUND(M37*'RATES-Non Fed'!G43,0) -> 0 | O37: =SUM(M37:N37) -> 0 | P37: =SUM(L37+O37) -> 0
C38: Non-Exempt Staff (Bi-Weekly) | E38: 0 | F38: =SUM(52*E38/4.3333) -> 0 | G38: 0 | J38: =ROUND(($G38*(1+'Salary Inflation'!$B$33))*$E38,0) -> 0 | K38: =ROUND(J38*'RATES-Non Fed'!E41,0) -> 0 | L38: =SUM(J38:K38) -> 0 | M38: =ROUND(J38*(1+'Salary Inflation'!$C$33),0) -> 0 | N38: =ROUND(M38*'RATES-Non Fed'!G41,0) -> 0 | O38: =SUM(M38:N38) -> 0 | P38: =SUM(L38+O38) -> 0
D39: Sub Totals | J39: =SUM(J19+J25+J32+J34+J35+J36+J37+J38) -> 0 | K39: 0 | L39: 0 | M39: 0 | N39: 0 | O39: 0 | P39: =SUM(P34:P38) -> 0
A41: Total Salaries and Fringe Benefits : | J41: =SUM(J39+K39) -> 0 | M41: =SUM(M39+N39) -> 0 | P41: =SUM(J41+M41) -> 0
A43: D. | B43: Equipment
C44: (list) | J44: 0 | M44: =ROUND((J44*1.02),0) -> 0 | P44: =SUM(J44:O44) -> 0
C45: (list) | J45: 0 | M45: =ROUND((J45*1.02),0) -> 0 | P45: =SUM(J45:O45) -> 0
C46: Total Equipment : | J46: =SUM(J44:J45) -> 0 | M46: =SUM(M44:M45) -> 0 | P46: =SUM(J46:O46) -> 0
A48: E. | B48: Travel
C49: Domestic | D49: (list) | J49: 0 | M49: =ROUND((J49*1.02),0) -> 0 | P49: =SUM(J49:O49) -> 0
C50: International | D50: (list) | J50: 0 | M50: =ROUND((J50*1.02),0) -> 0 | P50: =SUM(J50:O50) -> 0
C51: Total Travel : | J51: =SUM(J49:J50) -> 0 | M51: =SUM(M49:M50) -> 0 | P51: =SUM(J51:O51) -> 0
A53: G. | B53: Supplies and Other Direct Costs
C54: Materials & Supplies | J54: 0 | M54: =ROUND((J54*1.02),0) -> 0 | P54: =SUM(J54:O54) -> 0
C55: Publication Costs | J55: 0 | M55: 0 | P55: 0
C56: Consultant Services | J56: 0 | M56: 0 | P56: 0
C57: Subject Incentives | J57: 0 | M57: 0 | P57: 0
C58: UC Tuition for Trainees/Fellows | J58: 0 | M58: 0 | P58: 0
C59: UC Tuition on Research Projects | J59: 0 | M59: =ROUND((J59*1.02),0) -> 0 | P59: =SUM(J59:O59) -> 0
C60: Lab Expenses | J60: 0 | M60: 0 | P60: 0
C61: Other (Analytical Services/Instrument Use) | J61: 0 | M61: 0 | P61: 0
C62: Subcontracts 1) | J62: 0 | M62: =ROUND((J62*1.02),0) -> 0 | P62: 0
C63: 2) | J63: 0 | M63: =ROUND((J63*1.02),0) -> 0 | P63: 0
C64: 3) | J64: 0 | M64: =ROUND((J64*1.02),0) -> 0 | P64: 0
C65: 4) | J65: 0 | M65: =ROUND((J65*1.02),0) -> 0 | P65: 0
A66: Total Supplies and Other Direct Costs : | J66: =SUM(J54:J65) -> 0 | M66: =SUM(M54:M65) -> 0 | P66: 0
E68: TOTAL DIRECT COSTS: | J68: =ROUND(+J66+J51+J46+J41,0) -> 0 | M68: =ROUND(+M66+M51+M46+M41,0) -> 0 | P68: =SUM(J68:O68) -> 0
H70: Facilities and Administrative Cost Base: | J70: =J68 -> 0 | M70: =M68 -> 0 | P70: =SUM(J70:O70) -> 0
A71: Facilities and Administrative Costs Calculation:
A72: F&A Cost (on MTDC): | D72: =IF(AND(($E$79)="R",($E$81)="C"),('RATES-Non Fed'!E48),IF(AND(($E$79)="R",($E$81)="O"),('RATES-Non Fed'!E53),IF(AND(($E$79)="I",($E$81)="C"),('RATES-Non Fed'!E49),IF(AND(($E$79)="I",($E$81)="O"),('RATES-Non Fed'!E54),IF(AND(($E$79)="P",($E$81)="C"),('RATES-Non Fed'!E50),IF(AND(($E$79)="P",($E$81)="O"),('RATES-Non Fed'!E55),($E$80))))))) -> 0.62 | E72: =IF(AND(($E$79)="R",($E$81)="C"),('RATES-Non Fed'!G48),IF(AND(($E$79)="R",($E$81)="O"),('RATES-Non Fed'!G53),IF(AND(($E$79)="I",($E$81)="C"),('RATES-Non Fed'!G49),IF(AND(($E$79)="I",($E$81)="O"),('RATES-Non Fed'!G54),IF(AND(($E$79)="P",($E$81)="C"),('RATES-Non Fed'!G50),IF(AND(($E$79)="P",($E$81)="O"),('RATES-Non Fed'!G55),($E$80))))))) -> 0.62 | J72: =+J70*D72 -> 0 | M72: =+M70*E72 -> 0 | P72: =SUM(J72:O72) -> 0
A73: Total F&A Cost : | J73: =SUM(J72:J72) -> 0 | M73: =SUM(M72:M72) -> 0 | P73: =SUM(J73:O73) -> 0
C75: Total Cost | J75: =J73+J68 -> 0 | M75: =M73+M68 -> 0 | P75: =SUM(J75:O75) -> 0
C78: Facilities and Administrative Data
C79: Purpose of Grant / Contract : | E79: R | G79: (R = Research, I = Instruction, P = Public Service, S = Special Rate on Total Costs)
C80: Special F&A Rate : | E80: 0
C81: Campus Status : | E81: C | G81: (C = On Campus, O = Off Campus)
D84: Detailed F&A figures for prorated rates | H84: =+'RATES-Non Fed'!E31 -> 0.62 | J84: =J73/12*'RATES-Non Fed'!$C$48 -> 0 | L84: =+'RATES-Non Fed'!G31 -> 0.62 | M84: =M73/12*'RATES-Non Fed'!$C$48 -> 0
D85: *If both lines have the same rate, then just list as one line on forms. | H85: =+'RATES-Non Fed'!G31 -> 0.62 | J85: =J73/12*'RATES-Non Fed'!$D$48 -> 0 | L85: =+'RATES-Non Fed'!I31 -> 0.62 | M85: =M73/12*'RATES-Non Fed'!$D$48 -> 0 | N85: ='RATES-Non Fed'!Q69 -> 0
J86: =SUM(J84:J85) -> 0 | M86: =SUM(M84:M85) -> 0

Sheet 3 Year
A1: Grants / Contracts
A2: 3 Year Budget
A4: Sponsoring Agency : | D4: name | J4: Titled : | K4: name
A5: Principal Investigator : | D5: name
B6: Period : | D6: ='RATES-Non Fed'!E2 -> 2024-01-01 | E6: thru | G6: ='RATES-Non Fed'!G2 -> 1930-12-31
J8: Year 1 | M8: Year 2 | P8: Year 3 | S8: CUMULATIVE
A9: A. | B9: Salaries | J9: Sal | K9: FB | L9: Total | M9: Sal | N9: FB | O9: Total | P9: Sal | Q9: FB | R9: Total
B10: Senior Personnel | D10: App't Type | E10: % Effort | F10: PM | G10: Salary | S10: =IF(SUM(J10:N10)=0,"",SUM(J10:N10)) -> 
B11: PI | D11: ACAD | E11: 0 | F11: =IF(D11="CAL",(52*E11/4.3333),(IF(D11="ACAD",(36.35*E11/4.33333),IF(D11="SUMR",(15.65*E11/4.33333),IF(D11="PT",(0),0))))) -> 0 | G11: 0 | J11: =IF($D11="CAL",ROUND(($G11*(1+'Salary Inflation'!$B$30))*$E11,0),IF($D11="ACAD",($G11/0.9965)*(1+'Salary Inflation'!$B$31)*$E11,IF($D11="SUMR",($G11)*(1+'Salary Inflation'!$B$32)*$E11,"NA"))) -> 0 | K11: =IF(D11="CAL",ROUND(J11*'RATES-Non Fed'!$E$38,0),IF(D11="ACAD",J11*'RATES-Non Fed'!$E$44,J11*'RATES-Non Fed'!$E$45)) -> 0 | L11: =ROUND(K11+J11,0) -> 0 | M11: =IF($D11="CAL",ROUND((J11*(1+'Salary Inflation'!$C$30)),0),IF($D11="ACAD",(J11)*(1+'Salary Inflation'!$C$31),IF($D11="SUMR",(J11)*(1+'Salary Inflation'!$C$32),"NA"))) -> 0 | N11: =IF($D11="CAL",ROUND(M11*'RATES-Non Fed'!$G$38,0),IF($D11="ACAD",M11*'RATES-Non Fed'!$G$44,M11*'RATES-Non Fed'!$G$45)) -> 0 | O11: =ROUND(M11+N11,0) -> 0 | P11: =IF($D11="CAL",ROUND((M11*(1+'Salary Inflation'!$D$30)),0),IF($D11="ACAD",(M11)*(1+'Salary Inflation'!$D$31),IF($D11="SUMR",(M11)*(1+'Salary Inflation'!$D$32),"NA"))) -> 0 | Q11: =IF($D11="CAL",ROUND(P11*'RATES-Non Fed'!$I$38,0),IF($D11="ACAD",P11*'RATES-Non Fed'!$I$44,P11*'RATES-Non Fed'!$I$45)) -> 0 | R11: =SUM(P11:Q11) -> 0 | S11: =SUM(L11+O11+R11) -> 0
B12: PI | D12: SUMR | E12: 0 | F12: 0 | G12: =IF(D11="ACAD",+G11*0.437,0) -> 0 | J12: =IF($D12="CAL",ROUND(($G12*(1+'Salary Inflation'!$B$30))*$E12,0),IF($D12="ACAD",($G12/0.9965)*(1+'Salary Inflation'!$B$31)*$E12,IF($D12="SUMR",($G12)*(1+'Salary Inflation'!$B$32)*$E12,"NA"))) -> 0 | K12: =IF(D12="CAL",ROUND(J12*'RATES-Non Fed'!$E$38,0),IF(D12="ACAD",J12*'RATES-Non Fed'!$E$44,J12*'RATES-Non Fed'!$E$45)) -> 0 | L12: =ROUND(K12+J12,0) -> 0 | M12: =IF($D12="CAL",ROUND((J12*(1+'Salary Inflation'!$C$30)),0),IF($D12="ACAD",(J12)*(1+'Salary Inflation'!$C$31),IF($D12="SUMR",(J12)*(1+'Salary Inflation'!$C$32),"NA"))) -> 0 | N12: =IF($D12="CAL",ROUND(M12*'RATES-Non Fed'!$G$38,0),IF($D12="ACAD",M12*'RATES-Non Fed'!$G$44,M12*'RATES-Non Fed'!$G$45)) -> 0 | O12: 0 | P12: =IF($D12="CAL",ROUND((M12*(1+'Salary Inflation'!$D$30)),0),IF($D12="ACAD",(M12)*(1+'Salary Inflation'!$D$31),IF($D12="SUMR",(M12)*(1+'Salary Inflation'!$D$32),"NA"))) -> 0 | Q12: =IF($D12="CAL",ROUND(P12*'RATES-Non Fed'!$I$38,0),IF($D12="ACAD",P12*'RATES-Non Fed'!$I$44,P12*'RATES-Non Fed'!$I$45)) -> 0 | R12: =SUM(P12:Q12) -> 0 | S12: =SUM(L12+O12+R12) -> 0
B13: Co | D13: ACAD | E13: 0 | F13: 0 | G13: 0 | J13: =IF($D13="CAL",ROUND(($G13*(1+'Salary Inflation'!$B$30))*$E13,0),IF($D13="ACAD",($G13/0.9965)*(1+'Salary Inflation'!$B$31)*$E13,IF($D13="SUMR",($G13)*(1+'Salary Inflation'!$B$32)*$E13,"NA"))) -> 0 | K13: =IF(D13="CAL",ROUND(J13*'RATES-Non Fed'!$E$38,0),IF(D13="ACAD",J13*'RATES-Non Fed'!$E$44,J13*'RATES-Non Fed'!$E$45)) -> 0 | L13: 0 | M13: =IF($D13="CAL",ROUND((J13*(1+'Salary Inflation'!$C$30)),0),IF($D13="ACAD",(J13)*(1+'Salary Inflation'!$C$31),IF($D13="SUMR",(J13)*(1+'Salary Inflation'!$C$32),"NA"))) -> 0 | N13: =IF($D13="CAL",ROUND(M13*'RATES-Non Fed'!$G$38,0),IF($D13="ACAD",M13*'RATES-Non Fed'!$G$44,M13*'RATES-Non Fed'!$G$45)) -> 0 | O13: 0 | P13: =IF($D13="CAL",ROUND((M13*(1+'Salary Inflation'!$D$30)),0),IF($D13="ACAD",(M13)*(1+'Salary Inflation'!$D$31),IF($D13="SUMR",(M13)*(1+'Salary Inflation'!$D$32),"NA"))) -> 0 | Q13: =IF($D13="CAL",ROUND(P13*'RATES-Non Fed'!$I$38,0),IF($D13="ACAD",P13*'RATES-Non Fed'!$I$44,P13*'RATES-Non Fed'!$I$45)) -> 0 | R13: 0 | S13: 0
D14: =IF(D13="ACAD",("SUMR"),"") -> SUMR | E14: 0 | F14: 0 | G14: =IF(D13="ACAD",+G13*0.437,0) -> 0 | J14: =IF($D14="CAL",ROUND(($G14*(1+'Salary Inflation'!$B$30))*$E14,0),IF($D14="ACAD",($G14/0.9965)*(1+'Salary Inflation'!$B$31)*$E14,IF($D14="SUMR",($G14)*(1+'Salary Inflation'!$B$32)*$E14,"NA"))) -> 0 | K14: =IF(D14="CAL",ROUND(J14*'RATES-Non Fed'!$E$38,0),IF(D14="ACAD",J14*'RATES-Non Fed'!$E$44,J14*'RATES-Non Fed'!$E$45)) -> 0 | L14: 0 | M14: =IF($D14="CAL",ROUND((J14*(1+'Salary Inflation'!$C$30)),0),IF($D14="ACAD",(J14)*(1+'Salary Inflation'!$C$31),IF($D14="SUMR",(J14)*(1+'Salary Inflation'!$C$32),"NA"))) -> 0 | N14: =IF($D14="CAL",ROUND(M14*'RATES-Non Fed'!$G$38,0),IF($D14="ACAD",M14*'RATES-Non Fed'!$G$44,M14*'RATES-Non Fed'!$G$45)) -> 0 | O14: 0 | P14: =IF($D14="CAL",ROUND((M14*(1+'Salary Inflation'!$D$30)),0),IF($D14="ACAD",(M14)*(1+'Salary Inflation'!$D$31),IF($D14="SUMR",(M14)*(1+'Salary Inflation'!$D$32),"NA"))) -> 0 | Q14: =IF($D14="CAL",ROUND(P14*'RATES-Non Fed'!$I$38,0),IF($D14="ACAD",P14*'RATES-Non Fed'!$I$44,P14*'RATES-Non Fed'!$I$45)) -> 0 | R14: 0 | S14: 0
B15: Co | D15: ACAD | E15: 0 | F15: 0 | G15: 0 | J15: =IF($D15="CAL",ROUND(($G15*(1+'Salary Inflation'!$B$30))*$E15,0),IF($D15="ACAD",($G15/0.9965)*(1+'Salary Inflation'!$B$31)*$E15,IF($D15="SUMR",($G15)*(1+'Salary Inflation'!$B$32)*$E15,"NA"))) -> 0 | K15: =IF(D15="CAL",ROUND(J15*'RATES-Non Fed'!$E$38,0),IF(D15="ACAD",J15*'RATES-Non Fed'!$E$44,J15*'RATES-Non Fed'!$E$45)) -> 0 | L15: 0 | M15: =IF($D15="CAL",ROUND((J15*(1+'Salary Inflation'!$C$30)),0),IF($D15="ACAD",(J15)*(1+'Salary Inflation'!$C$31),IF($D15="SUMR",(J15)*(1+'Salary Inflation'!$C$32),"NA"))) -> 0 | N15: =IF($D15="CAL",ROUND(M15*'RATES-Non Fed'!$G$38,0),IF($D15="ACAD",M15*'RATES-Non Fed'!$G$44,M15*'RATES-Non Fed'!$G$45)) -> 0 | O15: 0 | P15: =IF($D15="CAL",ROUND((M15*(1+'Salary Inflation'!$D$30)),0),IF($D15="ACAD",(M15)*(1+'Salary Inflation'!$D$31),IF($D15="SUMR",(M15)*(1+'Salary Inflation'!$D$32),"NA"))) -> 0 | Q15: =IF($D15="CAL",ROUND(P15*'RATES-Non Fed'!$I$38,0),IF($D15="ACAD",P15*'RATES-Non Fed'!$I$44,P15*'RATES-Non Fed'!$I$45)) -> 0 | R15: 0 | S15: 0
D16: =IF(D15="ACAD",("SUMR"),"") -> SUMR | E16: 0 | F16: 0 | G16: =IF(D15="ACAD",+G15*0.428,0) -> 0 | J16: =IF($D16="CAL",ROUND(($G16*(1+'Salary Inflation'!$B$30))*$E16,0),IF($D16="ACAD",($G16/0.9965)*(1+'Salary Inflation'!$B$31)*$E16,IF($D16="SUMR",($G16)*(1+'Salary Inflation'!$B$32)*$E16,"NA"))) -> 0 | K16: =IF(D16="CAL",ROUND(J16*'RATES-Non Fed'!$E$38,0),IF(D16="ACAD",J16*'RATES-Non Fed'!$E$44,J16*'RATES-Non Fed'!$E$45)) -> 0 | L16: 0 | M16: =IF($D16="CAL",ROUND((J16*(1+'Salary Inflation'!$C$30)),0),IF($D16="ACAD",(J16)*(1+'Salary Inflation'!$C$31),IF($D16="SUMR",(J16)*(1+'Salary Inflation'!$C$32),"NA"))) -> 0 | N16: =IF($D16="CAL",ROUND(M16*'RATES-Non Fed'!$G$38,0),IF($D16="ACAD",M16*'RATES-Non Fed'!$G$44,M16*'RATES-Non Fed'!$G$45)) -> 0 | O16: 0 | P16: =IF($D16="CAL",ROUND((M16*(1+'Salary Inflation'!$D$30)),0),IF($D16="ACAD",(M16)*(1+'Salary Inflation'!$D$31),IF($D16="SUMR",(M16)*(1+'Salary Inflation'!$D$32),"NA"))) -> 0 | Q16: =IF($D16="CAL",ROUND(P16*'RATES-Non Fed'!$I$38,0),IF($D16="ACAD",P16*'RATES-Non Fed'!$I$44,P16*'RATES-Non Fed'!$I$45)) -> 0 | R16: 0 | S16: 0
B17: Co | D17: CAL | E17: 0 | F17: 0 | G17: 0 | J17: =IF($D17="CAL",ROUND(($G17*(1+'Salary Inflation'!$B$30))*$E17,0),IF($D17="ACAD",($G17/0.9965)*(1+'Salary Inflation'!$B$31)*$E17,IF($D17="SUMR",($G17)*(1+'Salary Inflation'!$B$32)*$E17,"NA"))) -> 0 | K17: =IF(D17="CAL",ROUND(J17*'RATES-Non Fed'!$E$38,0),IF(D17="ACAD",J17*'RATES-Non Fed'!$E$44,J17*'RATES-Non Fed'!$E$45)) -> 0 | L17: 0 | M17: =IF($D17="CAL",ROUND((J17*(1+'Salary Inflation'!$C$30)),0),IF($D17="ACAD",(J17)*(1+'Salary Inflation'!$C$31),IF($D17="SUMR",(J17)*(1+'Salary Inflation'!$C$32),"NA"))) -> 0 | N17: =IF($D17="CAL",ROUND(M17*'RATES-Non Fed'!$G$38,0),IF($D17="ACAD",M17*'RATES-Non Fed'!$G$44,M17*'RATES-Non Fed'!$G$45)) -> 0 | O17: 0 | P17: =IF($D17="CAL",ROUND((M17*(1+'Salary Inflation'!$D$30)),0),IF($D17="ACAD",(M17)*(1+'Salary Inflation'!$D$31),IF($D17="SUMR",(M17)*(1+'Salary Inflation'!$D$32),"NA"))) -> 0 | Q17: =IF($D17="CAL",ROUND(P17*'RATES-Non Fed'!$I$38,0),IF($D17="ACAD",P17*'RATES-Non Fed'!$I$44,P17*'RATES-Non Fed'!$I$45)) -> 0 | R17: 0 | S17: 0
B18: Co | D18: CAL | E18: 0 | F18: 0 | G18: 0 | J18: =IF($D18="CAL",ROUND(($G18*(1+'Salary Inflation'!$B$30))*$E18,0),IF($D18="ACAD",($G18/0.9965)*(1+'Salary Inflation'!$B$31)*$E18,IF($D18="SUMR",($G18)*(1+'Salary Inflation'!$B$32)*$E18,"NA"))) -> 0 | K18: =IF(D18="CAL",ROUND(J18*'RATES-Non Fed'!$E$38,0),IF(D18="ACAD",J18*'RATES-Non Fed'!$E$44,J18*'RATES-Non Fed'!$E$45)) -> 0 | L18: 0 | M18: =IF($D18="CAL",ROUND((J18*(1+'Salary Inflation'!$C$30)),0),IF($D18="ACAD",(J18)*(1+'Salary Inflation'!$C$31),IF($D18="SUMR",(J18)*(1+'Salary Inflation'!$C$32),"NA"))) -> 0 | N18: =IF($D18="CAL",ROUND(M18*'RATES-Non Fed'!$G$38,0),IF($D18="ACAD",M18*'RATES-Non Fed'!$G$44,M18*'RATES-Non Fed'!$G$45)) -> 0 | O18: 0 | P18: =IF($D18="CAL",ROUND((M18*(1+'Salary Inflation'!$D$30)),0),IF($D18="ACAD",(M18)*(1+'Salary Inflation'!$D$31),IF($D18="SUMR",(M18)*(1+'Salary Inflation'!$D$32),"NA"))) -> 0 | Q18: =IF($D18="CAL",ROUND(P18*'RATES-Non Fed'!$I$38,0),IF($D18="ACAD",P18*'RATES-Non Fed'!$I$44,P18*'RATES-Non Fed'!$I$45)) -> 0 | R18: 0 | S18: 0
D19: AAUP Faculty Subtotal : | J19: =SUM(J11:J18) -> 0 | K19: 0 | L19: 0 | M19: 0 | N19: 0 | O19: 0 | P19: 0 | Q19: 0 | R19: 0 | S19: =SUM(S11:S18) -> 0
A20: B | B20: Dual Compensation Faculty
B21: Co | D21: CAL | E21: 0 | F21: =IF(D21="CAL",(52*E21/4.3333),(IF(D21="ACAD",(32*E21/4.33333),IF(D21="SUMR",(14*E21/4.33333),IF(D21="PT",(0),0))))) -> 0 | G21: 0 | J21: =ROUND(($G21*(1+'Salary Inflation'!$B$34))*$E21,0) -> 0 | K21: =ROUND(J21*'RATES-Non Fed'!E40,0) -> 0 | L21: =ROUND(K21+J21,0) -> 0 | M21: =ROUND(J21*(1+'Salary Inflation'!$C$34),0) -> 0 | N21: =ROUND(M21*'RATES-Non Fed'!G40,0) -> 0 | O21: =ROUND(M21+N21,0) -> 0 | P21: =ROUND(M21*(1+'Salary Inflation'!$C$34),0) -> 0 | Q21: =ROUND(P21*'RATES-Non Fed'!I40,0) -> 0 | R21: =ROUND(P21+Q21,0) -> 0 | S21: =SUM(L21+O21+R21) -> 0
B22: Co | D22: CAL | E22: 0 | F22: =IF(D22="CAL",(52*E22/4.3333),(IF(D22="ACAD",(32*E22/4.33333),IF(D22="SUMR",(14*E22/4.33333),IF(D22="PT",(0),0))))) -> 0 | G22: 0 | J22: =ROUND(($G22*(1+'Salary Inflation'!$B$34))*$E22,0) -> 0 | K22: =ROUND(J22*'RATES-Non Fed'!E40,0) -> 0 | L22: =ROUND(K22+J22,0) -> 0 | M22: =ROUND(J22*(1+'Salary Inflation'!$C$34),0) -> 0 | N22: =ROUND(M22*'RATES-Non Fed'!G40,0) -> 0 | O22: =ROUND(M22+N22,0) -> 0 | P22: =ROUND(M22*(1+'Salary Inflation'!$C$34),0) -> 0 | Q22: =ROUND(P22*'RATES-Non Fed'!I40,0) -> 0 | R22: =ROUND(P22+Q22,0) -> 0 | S22: =SUM(L22+O22+R22) -> 0
B23: Co | D23: CAL | E23: 0 | F23: =IF(D23="CAL",(52*E23/4.3333),(IF(D23="ACAD",(32*E23/4.33333),IF(D23="SUMR",(14*E23/4.33333),IF(D23="PT",(0),0))))) -> 0 | G23: 0 | J23: =ROUND(($G23*(1+'Salary Inflation'!$B$34))*$E23,0) -> 0 | K23: =ROUND(J23*'RATES-Non Fed'!E40,0) -> 0 | L23: =ROUND(K23+J23,0) -> 0 | M23: =ROUND(J23*(1+'Salary Inflation'!$C$34),0) -> 0 | N23: =ROUND(M23*'RATES-Non Fed'!G40,0) -> 0 | O23: =ROUND(M23+N23,0) -> 0 | P23: =ROUND(M23*(1+'Salary Inflation'!$C$34),0) -> 0 | Q23: =ROUND(P23*'RATES-Non Fed'!I40,0) -> 0 | R23: =ROUND(P23+Q23,0) -> 0 | S23: =SUM(L23+O23+R23) -> 0
B24: Co | D24: CAL | E24: 0 | F24: =IF(D24="CAL",(52*E24/4.3333),(IF(D24="ACAD",(32*E24/4.33333),IF(D24="SUMR",(14*E24/4.33333),IF(D24="PT",(0),0))))) -> 0 | G24: 0 | J24: =ROUND(($G24*(1+'Salary Inflation'!$B$34))*$E24,0) -> 0 | K24: =ROUND(J24*'RATES-Non Fed'!E40,0) -> 0 | L24: =ROUND(K24+J24,0) -> 0 | M24: =ROUND(J24*(1+'Salary Inflation'!$C$34),0) -> 0 | N24: =ROUND(M24*'RATES-Non Fed'!G40,0) -> 0 | O24: =ROUND(M24+N24,0) -> 0 | P24: =ROUND(M24*(1+'Salary Inflation'!$C$34),0) -> 0 | Q24: =ROUND(P24*'RATES-Non Fed'!I40,0) -> 0 | R24: =ROUND(P24+Q24,0) -> 0 | S24: =SUM(L24+O24+R24) -> 0
D25: Dual Comp Faculty Subtotal : | J25: =SUM(J21:J24) -> 0 | K25: 0 | L25: 0 | M25: 0 | N25: 0 | O25: 0 | P25: 0 | Q25: 0 | R25: 0 | S25: 0
A27: C. | B27: Other Personnel
C28: Exempt Staff (Monthly) | D28: Name
E29: 0 | F29: =SUM(52*E29/4.3333) -> 0 | G29: 0 | J29: =ROUND(($G29*(1+'Salary Inflation'!$B$33))*$E29,0) -> 0 | K29: =ROUND(J29*'RATES-Non Fed'!$E$39,0) -> 0 | L29: =SUM(J29:K29) -> 0 | M29: =ROUND(J29*(1+'Salary Inflation'!$C$33),0) -> 0 | N29: =ROUND(M29*'RATES-Non Fed'!$E$39,0) -> 0 | O29: =SUM(M29:N29) -> 0 | P29: =ROUND(M29*(1+'Salary Inflation'!$D$33),0) -> 0 | Q29: =ROUND(P29*'RATES-Non Fed'!I39,0) -> 0 | R29: =SUM(P29:Q29) -> 0 | S29: =SUM(L29+O29+R29) -> 0
E30: 0 | F30: =SUM(52*E30/4.3333) -> 0 | G30: 0 | J30: =ROUND(($G30*(1+'Salary Inflation'!$B$33))*$E30,0) -> 0 | K30: =ROUND(J30*'RATES-Non Fed'!$E$39,0) -> 0 | L30: =SUM(J30:K30) -> 0 | M30: =ROUND(J30*(1+'Salary Inflation'!$C$33),0) -> 0 | N30: =ROUND(M30*'RATES-Non Fed'!$E$39,0) -> 0 | O30: =SUM(M30:N30) -> 0 | P30: =ROUND(M30*(1+'Salary Inflation'!$D$33),0) -> 0 | Q30: =ROUND(P30*'RATES-Non Fed'!I39,0) -> 0 | R30: =SUM(P30:Q30) -> 0 | S30: =SUM(L30+O30+R30) -> 0
E31: 0 | F31: =SUM(52*E31/4.3333) -> 0 | G31: 0 | J31: =ROUND(($G31*(1+'Salary Inflation'!$B$33))*$E31,0) -> 0 | K31: =ROUND(J31*'RATES-Non Fed'!$E$39,0) -> 0 | L31: =SUM(J31:K31) -> 0 | M31: =ROUND(J31*(1+'Salary Inflation'!$C$33),0) -> 0 | N31: =ROUND(M31*'RATES-Non Fed'!$E$39,0) -> 0 | O31: =SUM(M31:N31) -> 0 | P31: =ROUND(M31*(1+'Salary Inflation'!$D$33),0) -> 0 | Q31: =ROUND(P31*'RATES-Non Fed'!I39,0) -> 0 | R31: =SUM(P31:Q31) -> 0 | S31: =SUM(L31+O31+R31) -> 0
D32: Total Exempt Staff | J32: =SUM(J29:J31) -> 0 | K32: 0 | L32: 0 | M32: 0 | N32: 0 | O32: 0 | P32: 0 | Q32: =SUM(Q29:Q31) -> 0 | R32: =SUM(R29:R31) -> 0 | S32: =SUM(S29:S31) -> 0
C34: Post Doctoral Support | E34: 0 | F34: =SUM(52*E34/4.3333) -> 0 | G34: 0 | J34: =ROUND(($G34*(1+'Salary Inflation'!$B$33))*$E34,0) -> 0 | K34: =ROUND(J34*'RATES-Non Fed'!$E$43,0) -> 0 | L34: =SUM(J34:K34) -> 0 | M34: =ROUND(J34*(1+'Salary Inflation'!$C$33),0) -> 0 | N34: =ROUND(M34*'RATES-Non Fed'!$E$43,0) -> 0 | O34: =SUM(M34:N34) -> 0 | P34: =ROUND(M34*(1+'Salary Inflation'!$D$33),0) -> 0 | Q34: =ROUND(P34*'RATES-Non Fed'!I43,0) -> 0 | R34: =SUM(P34:Q34) -> 0 | S34: =SUM(L34+O34+R34) -> 0
C35: Graduate Students | E35: 0 | F35: =SUM(52*E35/4.3333) -> 0 | G35: 0 | J35: =ROUND(($G35*(1+'Salary Inflation'!$B$33))*$E35,0) -> 0 | K35: =ROUND(J35*'RATES-Non Fed'!E42,0) -> 0 | L35: =SUM(J35:K35) -> 0 | M35: =ROUND(J35*(1+'Salary Inflation'!$C$33),0) -> 0 | N35: =ROUND(M35*'RATES-Non Fed'!H42,0) -> 0 | O35: =SUM(M35:N35) -> 0 | P35: =ROUND(M35*(1+'Salary Inflation'!$D$33),0) -> 0 | Q35: =ROUND(P35*'RATES-Non Fed'!I42,0) -> 0 | R35: =SUM(P35:Q35) -> 0 | S35: =SUM(L35+O35+R35) -> 0
C36: Undergrad Students | E36: 0 | F36: =SUM(52*E36/4.3333) -> 0 | G36: 0 | J36: =ROUND(($G36*(1+'Salary Inflation'!$B$33))*$E36,0) -> 0 | K36: =ROUND(J36*'RATES-Non Fed'!E42,0) -> 0 | L36: =SUM(J36:K36) -> 0 | M36: =ROUND(J36*(1+'Salary Inflation'!$C$33),0) -> 0 | N36: =ROUND(M36*'RATES-Non Fed'!H42,0) -> 0 | O36: =SUM(M36:N36) -> 0 | P36: =ROUND(M36*(1+'Salary Inflation'!$D$33),0) -> 0 | Q36: =ROUND(P36*'RATES-Non Fed'!I42,0) -> 0 | R36: =SUM(P36:Q36) -> 0 | S36: =SUM(L36+O36+R36) -> 0
C37: Part-time Faculty/Staff | E37: 0 | F37: =SUM(52*E37/4.3333) -> 0 | G37: 0 | J37: =ROUND(($G37*(1+'Salary Inflation'!$B$33))*$E37,0) -> 0 | K37: =ROUND(J37*'RATES-Non Fed'!E43,0) -> 0 | L37: =SUM(J37:K37) -> 0 | M37: =ROUND(J37*(1+'Salary Inflation'!$C$33),0) -> 0 | N37: =ROUND(M37*'RATES-Non Fed'!H43,0) -> 0 | O37: =SUM(M37:N37) -> 0 | P37: =ROUND(M37*(1+'Salary Inflation'!$D$33),0) -> 0 | Q37: =ROUND(P37*'RATES-Non Fed'!I43,0) -> 0 | R37: =SUM(P37:Q37) -> 0 | S37: =SUM(L37+O37+R37) -> 0
C38: Non-Exempt Staff (Bi-Weekly) | E38: 0 | F38: =SUM(52*E38/4.3333) -> 0 | G38: 0 | J38: =ROUND(($G38*(1+'Salary Inflation'!$B$33))*$E38,0) -> 0 | K38: =ROUND(J38*'RATES-Non Fed'!E41,0) -> 0 | L38: =SUM(J38:K38) -> 0 | M38: =ROUND(J38*(1+'Salary Inflation'!$C$33),0) -> 0 | N38: =ROUND(M38*'RATES-Non Fed'!H41,0) -> 0 | O38: =SUM(M38:N38) -> 0 | P38: =ROUND(M38*(1+'Salary Inflation'!$D$33),0) -> 0 | Q38: =ROUND(P38*'RATES-Non Fed'!I41,0) -> 0 | R38: =SUM(P38:Q38) -> 0 | S38: =SUM(L38+O38+R38) -> 0
D39: Sub Totals | J39: =SUM(J19+J25+J32+J34+J35+J36+J37+J38) -> 0 | K39: 0 | L39: 0 | M39: 0 | N39: 0 | O39: 0 | P39: 0 | Q39: 0 | R39: 0 | S39: =SUM(S34:S38) -> 0
A41: Total Salaries and Fringe Benefits : | J41: =SUM(J39+K39) -> 0 | M41: =SUM(M39+N39) -> 0 | P41: =SUM(P39+Q39) -> 0 | S41: =SUM(J41+M41+P41) -> 0
A43: D. | B43: Equipment
C44: (list) | J44: 0 | M44: 0 | P44: 0 | S44: =SUM(J44:R44) -> 0
C45: (list) | J45: 0 | M45: 0 | P45: 0 | S45: =SUM(J45:R45) -> 0
C46: Total Equipment : | J46: =SUM(J44:J45) -> 0 | M46: =SUM(M44:M45) -> 0 | P46: =SUM(P44:P45) -> 0 | S46: =SUM(J46:R46) -> 0
A48: E. | B48: Travel
C49: Domestic | D49: (list) | J49: 0 | M49: =ROUND((J49*1.02),0) -> 0 | P49: =ROUND((M49*1.02),0) -> 0 | S49: =SUM(J49:R49) -> 0
C50: International | D50: (list) | J50: 0 | M50: =ROUND((J50*1.02),0) -> 0 | P50: =ROUND((M50*1.02),0) -> 0 | S50: =SUM(J50:R50) -> 0
C51: Total Travel : | J51: =SUM(J49:J50) -> 0 | M51: =SUM(M49:M50) -> 0 | P51: =SUM(P49:P50) -> 0 | S51: =SUM(J51:R51) -> 0
A53: G. | B53: Supplies and Other Direct Costs
C54: Materials & Supplies | J54: 0 | M54: =ROUND((J54*1.02),0) -> 0 | P54: =ROUND((M54*1.02),0) -> 0 | S54: =SUM(J54:R54) -> 0
C55: Publication Costs | J55: 0 | M55: =ROUND((J55*1.02),0) -> 0 | P55: =ROUND((M55*1.02),0) -> 0 | S55: 0
C56: Consultant Services | J56: 0 | M56: 0 | P56: 0 | S56: 0
C57: Subject Incentives | J57: 0 | M57: 0 | P57: 0 | S57: 0
C58: UC Tuition for Trainees/Fellows | J58: 0 | M58: 0 | P58: 0 | S58: 0
C59: UC Tuition on Research Projects | J59: 0 | M59: =ROUND((J59*1.02),0) -> 0 | P59: =ROUND((M59*1.02),0) -> 0 | S59: =SUM(J59:R59) -> 0
C60: Lab Expenses | J60: 0 | M60: 0 | P60: 0 | S60: 0
C61: Other (Analytical Services/Instrument Use) | J61: 0 | M61: 0 | P61: 0 | S61: 0
C62: Subcontracts 1) | J62: 0 | M62: 0 | P62: 0 | S62: 0
C63: 2) | J63: 0 | M63: 0 | P63: 0 | S63: 0
C64: 3) | J64: 0 | M64: 0 | P64: 0 | S64: 0
C65: 4) | J65: 0 | M65: 0 | P65: 0 | S65: 0
A66: Total Supplies and Other Direct Costs : | J66: =SUM(J54:J65) -> 0 | M66: =SUM(M54:M65) -> 0 | P66: =SUM(P54:P65) -> 0 | S66: 0
E68: TOTAL DIRECT COSTS: | J68: =ROUND(+J66+J51+J46+J41,0) -> 0 | M68: =ROUND(+M66+M51+M46+M41,0) -> 0 | P68: =ROUND(+P66+P51+P46+P41,0) -> 0 | S68: =SUM(J68:R68) -> 0
H70: Facilities and Administrative Cost Base: | J70: =J68 -> 0 | M70: =M68 -> 0 | P70: =P68 -> 0 | S70: =SUM(J70:R70) -> 0
A71: Facilities and Administrative Costs Calculation:
A72: F&A Cost (on MTDC): | D72: =IF(AND(($E$79)="R",($E$81)="C"),('RATES-Non Fed'!E48),IF(AND(($E$79)="R",($E$81)="O"),('RATES-Non Fed'!E53),IF(AND(($E$79)="I",($E$81)="C"),('RATES-Non Fed'!E49),IF(AND(($E$79)="I",($E$81)="O"),('RATES-Non Fed'!E54),IF(AND(($E$79)="P",($E$81)="C"),('RATES-Non Fed'!E50),IF(AND(($E$79)="P",($E$81)="O"),('RATES-Non Fed'!E55),($E$80))))))) -> 0.62 | E72: =IF(AND(($E$79)="R",($E$81)="C"),('RATES-Non Fed'!G48),IF(AND(($E$79)="R",($E$81)="O"),('RATES-Non Fed'!G53),IF(AND(($E$79)="I",($E$81)="C"),('RATES-Non Fed'!G49),IF(AND(($E$79)="I",($E$81)="O"),('RATES-Non Fed'!G54),IF(AND(($E$79)="P",($E$81)="C"),('RATES-Non Fed'!G50),IF(AND(($E$79)="P",($E$81)="O"),('RATES-Non Fed'!G55),($E$80))))))) -> 0.62 | F72: =IF(AND(($E$79)="R",($E$81)="C"),('RATES-Non Fed'!I48),IF(AND(($E$79)="R",($E$81)="O"),('RATES-Non Fed'!I53),IF(AND(($E$79)="I",($E$81)="C"),('RATES-Non Fed'!I49),IF(AND(($E$79)="I",($E$81)="O"),('RATES-Non Fed'!I54),IF(AND(($E$79)="P",($E$81)="C"),('RATES-Non Fed'!I50),IF(AND(($E$79)="P",($E$81)="O"),('RATES-Non Fed'!I55),($E$80))))))) -> 0.62 | J72: =+J70*D72 -> 0 | M72: =+M70*E72 -> 0 | P72: =+P70*F72 -> 0 | S72: =SUM(J72:R72) -> 0
A73: Total F&A Cost : | J73: =SUM(J72:J72) -> 0 | M73: =SUM(M72:M72) -> 0 | P73: =SUM(P72:P72) -> 0 | S73: =SUM(J73:R73) -> 0
C75: Total Cost | J75: =J73+J68 -> 0 | M75: =M73+M68 -> 0 | P75: =P73+P68 -> 0 | S75: =SUM(J75:R75) -> 0
C78: Facilities and Administrative Data
C79: Purpose of Grant / Contract : | E79: R | G79: (R = Research, I = Instruction, P = Public Service, S = Special Rate on Total Costs)
C80: Special F&A Rate : | E80: 0.1
C81: Campus Status : | E81: C | G81: (C = On Campus, O = Off Campus)
D83: Detailed F&A figures for prorated rates | H83: =+'RATES-Non Fed'!E31 -> 0.62 | J83: =J73/12*'RATES-Non Fed'!$C$48 -> 0 | L83: =+'RATES-Non Fed'!G31 -> 0.62 | M83: =M73/12*'RATES-Non Fed'!$C$48 -> 0 | O83: =+'RATES-Non Fed'!I31 -> 0.62 | P83: =P73/12*'RATES-Non Fed'!$C$48 -> 0
D84: *If both lines have the same rate, then just list as one line on forms. | H84: =+'RATES-Non Fed'!G31 -> 0.62 | J84: =J73/12*'RATES-Non Fed'!$D$48 -> 0 | L84: =+'RATES-Non Fed'!I31 -> 0.62 | M84: =M73/12*'RATES-Non Fed'!$D$48 -> 0 | O84: =+'RATES-Non Fed'!K31 -> 0.62 | P84: =P73/12*'RATES-Non Fed'!$D$48 -> 0
J85: =SUM(J83:J84) -> 0 | M85: =SUM(M83:M84) -> 0 | P85: =SUM(P83:P84) -> 0 | Q85: ='RATES-Non Fed'!Q69 -> 0

Sheet 4 Year
A1: Grants / Contracts
A2: 4 Year Budget
A4: Sponsoring Agency : | D4: name | J4: Titled : | K4: name
A5: Principal Investigator : | D5: name
B6: Period : | D6: ='RATES-Non Fed'!E2 -> 2024-01-01 | E6: thru | G6: ='RATES-Non Fed'!G2 -> 1930-12-31
J8: Year 1 | M8: Year 2 | P8: Year 3 | S8: Year 4 | V8: CUMULATIVE
A9: A. | B9: Salaries | J9: Sal | K9: FB | L9: Total | M9: Sal | N9: FB | O9: Total | P9: Sal | Q9: FB | R9: Total | S9: Sal | T9: FB | U9: Total
B10: Senior Personnel | D10: App't Type | E10: % Effort | F10: PM | G10: Salary | V10: =IF(SUM(J10:N10)=0,"",SUM(J10:N10)) -> 
B11: PI | D11: ACAD | E11: 0 | F11: =IF(D11="CAL",(52*E11/4.3333),(IF(D11="ACAD",(36.35*E11/4.33333),IF(D11="SUMR",(15.65*E11/4.33333),IF(D11="PT",(0),0))))) -> 0 | G11: 0 | J11: =IF($D11="CAL",ROUND(($G11*(1+'Salary Inflation'!$B$30))*$E11,0),IF($D11="ACAD",($G11/0.9965)*(1+'Salary Inflation'!$B$31)*$E11,IF($D11="SUMR",($G11)*(1+'Salary Inflation'!$B$32)*$E11,"NA"))) -> 0 | K11: =IF(D11="CAL",ROUND(J11*'RATES-Non Fed'!$E$38,0),IF(D11="ACAD",J11*'RATES-Non Fed'!$E$44,J11*'RATES-Non Fed'!$E$45)) -> 0 | L11: =ROUND(K11+J11,0) -> 0 | M11: =IF($D11="CAL",ROUND((J11*(1+'Salary Inflation'!$C$30)),0),IF($D11="ACAD",(J11)*(1+'Salary Inflation'!$C$31),IF($D11="SUMR",(J11)*(1+'Salary Inflation'!$C$32),"NA"))) -> 0 | N11: =IF($D11="CAL",ROUND(M11*'RATES-Non Fed'!$G$38,0),IF($D11="ACAD",M11*'RATES-Non Fed'!$G$44,M11*'RATES-Non Fed'!$G$45)) -> 0 | O11: =ROUND(M11+N11,0) -> 0 | P11: =IF($D11="CAL",ROUND((M11*(1+'Salary Inflation'!$D$30)),0),IF($D11="ACAD",(M11)*(1+'Salary Inflation'!$D$31),IF($D11="SUMR",(M11)*(1+'Salary Inflation'!$D$32),"NA"))) -> 0 | Q11: =IF($D11="CAL",ROUND(P11*'RATES-Non Fed'!$I$38,0),IF($D11="ACAD",P11*'RATES-Non Fed'!$I$44,P11*'RATES-Non Fed'!$I$45)) -> 0 | R11: =SUM(P11:Q11) -> 0 | S11: =IF($D11="CAL",ROUND((P11*(1+'Salary Inflation'!$E$30)),0),IF($D11="ACAD",(P11)*(1+'Salary Inflation'!$E$31),IF($D11="SUMR",(P11)*(1+'Salary Inflation'!$E$32),"NA"))) -> 0 | T11: =IF($D11="CAL",ROUND(S11*'RATES-Non Fed'!$K$38,0),IF($D11="ACAD",S11*'RATES-Non Fed'!$K$44,S11*'RATES-Non Fed'!$K$45)) -> 0 | U11: =SUM(S11:T11) -> 0 | V11: =SUM(L11+O11+R11+U11) -> 0
B12: PI | D12: SUMR | E12: 0 | F12: 0 | G12: =IF(D11="ACAD",+G11*0.437,0) -> 0 | J12: =IF($D12="CAL",ROUND(($G12*(1+'Salary Inflation'!$B$30))*$E12,0),IF($D12="ACAD",($G12/0.9965)*(1+'Salary Inflation'!$B$31)*$E12,IF($D12="SUMR",($G12)*(1+'Salary Inflation'!$B$32)*$E12,"NA"))) -> 0 | K12: =IF(D12="CAL",ROUND(J12*'RATES-Non Fed'!$E$38,0),IF(D12="ACAD",J12*'RATES-Non Fed'!$E$44,J12*'RATES-Non Fed'!$E$45)) -> 0 | L12: =ROUND(K12+J12,0) -> 0 | M12: =IF($D12="CAL",ROUND((J12*(1+'Salary Inflation'!$C$30)),0),IF($D12="ACAD",(J12)*(1+'Salary Inflation'!$C$31),IF($D12="SUMR",(J12)*(1+'Salary Inflation'!$C$32),"NA"))) -> 0 | N12: =IF($D12="CAL",ROUND(M12*'RATES-Non Fed'!$G$38,0),IF($D12="ACAD",M12*'RATES-Non Fed'!$G$44,M12*'RATES-Non Fed'!$G$45)) -> 0 | O12: 0 | P12: =IF($D12="CAL",ROUND((M12*(1+'Salary Inflation'!$D$30)),0),IF($D12="ACAD",(M12)*(1+'Salary Inflation'!$D$31),IF($D12="SUMR",(M12)*(1+'Salary Inflation'!$D$32),"NA"))) -> 0 | Q12: =IF($D12="CAL",ROUND(P12*'RATES-Non Fed'!$I$38,0),IF($D12="ACAD",P12*'RATES-Non Fed'!$I$44,P12*'RATES-Non Fed'!$I$45)) -> 0 | R12: 0 | S12: =IF($D12="CAL",ROUND((P12*(1+'Salary Inflation'!$E$30)),0),IF($D12="ACAD",(P12)*(1+'Salary Inflation'!$E$31),IF($D12="SUMR",(P12)*(1+'Salary Inflation'!$E$32),"NA"))) -> 0 | T12: =IF($D12="CAL",ROUND(S12*'RATES-Non Fed'!$K$38,0),IF($D12="ACAD",S12*'RATES-Non Fed'!$K$44,S12*'RATES-Non Fed'!$K$45)) -> 0 | U12: =SUM(S12:T12) -> 0 | V12: =SUM(L12+O12+R12+U12) -> 0
B13: Co | D13: ACAD | E13: 0 | F13: 0 | G13: 0 | J13: =IF($D13="CAL",ROUND(($G13*(1+'Salary Inflation'!$B$30))*$E13,0),IF($D13="ACAD",($G13/0.9965)*(1+'Salary Inflation'!$B$31)*$E13,IF($D13="SUMR",($G13)*(1+'Salary Inflation'!$B$32)*$E13,"NA"))) -> 0 | K13: =IF(D13="CAL",ROUND(J13*'RATES-Non Fed'!$E$38,0),IF(D13="ACAD",J13*'RATES-Non Fed'!$E$44,J13*'RATES-Non Fed'!$E$45)) -> 0 | L13: 0 | M13: =IF($D13="CAL",ROUND((J13*(1+'Salary Inflation'!$C$30)),0),IF($D13="ACAD",(J13)*(1+'Salary Inflation'!$C$31),IF($D13="SUMR",(J13)*(1+'Salary Inflation'!$C$32),"NA"))) -> 0 | N13: =IF($D13="CAL",ROUND(M13*'RATES-Non Fed'!$G$38,0),IF($D13="ACAD",M13*'RATES-Non Fed'!$G$44,M13*'RATES-Non Fed'!$G$45)) -> 0 | O13: 0 | P13: =IF($D13="CAL",ROUND((M13*(1+'Salary Inflation'!$D$30)),0),IF($D13="ACAD",(M13)*(1+'Salary Inflation'!$D$31),IF($D13="SUMR",(M13)*(1+'Salary Inflation'!$D$32),"NA"))) -> 0 | Q13: =IF($D13="CAL",ROUND(P13*'RATES-Non Fed'!$I$38,0),IF($D13="ACAD",P13*'RATES-Non Fed'!$I$44,P13*'RATES-Non Fed'!$I$45)) -> 0 | R13: 0 | S13: =IF($D13="CAL",ROUND((P13*(1+'Salary Inflation'!$E$30)),0),IF($D13="ACAD",(P13)*(1+'Salary Inflation'!$E$31),IF($D13="SUMR",(P13)*(1+'Salary Inflation'!$E$32),"NA"))) -> 0 | T13: =IF($D13="CAL",ROUND(S13*'RATES-Non Fed'!$K$38,0),IF($D13="ACAD",S13*'RATES-Non Fed'!$K$44,S13*'RATES-Non Fed'!$K$45)) -> 0 | U13: 0 | V13: 0
D14: =IF(D13="ACAD",("SUMR"),"") -> SUMR | E14: 0 | F14: 0 | G14: =IF(D13="ACAD",+G13*0.437,0) -> 0 | J14: =IF($D14="CAL",ROUND(($G14*(1+'Salary Inflation'!$B$30))*$E14,0),IF($D14="ACAD",($G14/0.9965)*(1+'Salary Inflation'!$B$31)*$E14,IF($D14="SUMR",($G14)*(1+'Salary Inflation'!$B$32)*$E14,"NA"))) -> 0 | K14: =IF(D14="CAL",ROUND(J14*'RATES-Non Fed'!$E$38,0),IF(D14="ACAD",J14*'RATES-Non Fed'!$E$44,J14*'RATES-Non Fed'!$E$45)) -> 0 | L14: 0 | M14: =IF($D14="CAL",ROUND((J14*(1+'Salary Inflation'!$C$30)),0),IF($D14="ACAD",(J14)*(1+'Salary Inflation'!$C$31),IF($D14="SUMR",(J14)*(1+'Salary Inflation'!$C$32),"NA"))) -> 0 | N14: =IF($D14="CAL",ROUND(M14*'RATES-Non Fed'!$G$38,0),IF($D14="ACAD",M14*'RATES-Non Fed'!$G$44,M14*'RATES-Non Fed'!$G$45)) -> 0 | O14: 0 | P14: =IF($D14="CAL",ROUND((M14*(1+'Salary Inflation'!$D$30)),0),IF($D14="ACAD",(M14)*(1+'Salary Inflation'!$D$31),IF($D14="SUMR",(M14)*(1+'Salary Inflation'!$D$32),"NA"))) -> 0 | Q14: =IF($D14="CAL",ROUND(P14*'RATES-Non Fed'!$I$38,0),IF($D14="ACAD",P14*'RATES-Non Fed'!$I$44,P14*'RATES-Non Fed'!$I$45)) -> 0 | R14: 0 | S14: =IF($D14="CAL",ROUND((P14*(1+'Salary Inflation'!$E$30)),0),IF($D14="ACAD",(P14)*(1+'Salary Inflation'!$E$31),IF($D14="SUMR",(P14)*(1+'Salary Inflation'!$E$32),"NA"))) -> 0 | T14: =IF($D14="CAL",ROUND(S14*'RATES-Non Fed'!$K$38,0),IF($D14="ACAD",S14*'RATES-Non Fed'!$K$44,S14*'RATES-Non Fed'!$K$45)) -> 0 | U14: 0 | V14: 0
B15: Co | D15: ACAD | E15: 0 | F15: 0 | G15: 0 | J15: =IF($D15="CAL",ROUND(($G15*(1+'Salary Inflation'!$B$30))*$E15,0),IF($D15="ACAD",($G15/0.9965)*(1+'Salary Inflation'!$B$31)*$E15,IF($D15="SUMR",($G15)*(1+'Salary Inflation'!$B$32)*$E15,"NA"))) -> 0 | K15: =IF(D15="CAL",ROUND(J15*'RATES-Non Fed'!$E$38,0),IF(D15="ACAD",J15*'RATES-Non Fed'!$E$44,J15*'RATES-Non Fed'!$E$45)) -> 0 | L15: 0 | M15: =IF($D15="CAL",ROUND((J15*(1+'Salary Inflation'!$C$30)),0),IF($D15="ACAD",(J15)*(1+'Salary Inflation'!$C$31),IF($D15="SUMR",(J15)*(1+'Salary Inflation'!$C$32),"NA"))) -> 0 | N15: =IF($D15="CAL",ROUND(M15*'RATES-Non Fed'!$G$38,0),IF($D15="ACAD",M15*'RATES-Non Fed'!$G$44,M15*'RATES-Non Fed'!$G$45)) -> 0 | O15: 0 | P15: =IF($D15="CAL",ROUND((M15*(1+'Salary Inflation'!$D$30)),0),IF($D15="ACAD",(M15)*(1+'Salary Inflation'!$D$31),IF($D15="SUMR",(M15)*(1+'Salary Inflation'!$D$32),"NA"))) -> 0 | Q15: =IF($D15="CAL",ROUND(P15*'RATES-Non Fed'!$I$38,0),IF($D15="ACAD",P15*'RATES-Non Fed'!$I$44,P15*'RATES-Non Fed'!$I$45)) -> 0 | R15: 0 | S15: =IF($D15="CAL",ROUND((P15*(1+'Salary Inflation'!$E$30)),0),IF($D15="ACAD",(P15)*(1+'Salary Inflation'!$E$31),IF($D15="SUMR",(P15)*(1+'Salary Inflation'!$E$32),"NA"))) -> 0 | T15: =IF($D15="CAL",ROUND(S15*'RATES-Non Fed'!$K$38,0),IF($D15="ACAD",S15*'RATES-Non Fed'!$K$44,S15*'RATES-Non Fed'!$K$45)) -> 0 | U15: 0 | V15: 0
D16: =IF(D15="ACAD",("SUMR"),"") -> SUMR | E16: 0 | F16: 0 | G16: =IF(D15="ACAD",+G15*0.428,0) -> 0 | J16: =IF($D16="CAL",ROUND(($G16*(1+'Salary Inflation'!$B$30))*$E16,0),IF($D16="ACAD",($G16/0.9965)*(1+'Salary Inflation'!$B$31)*$E16,IF($D16="SUMR",($G16)*(1+'Salary Inflation'!$B$32)*$E16,"NA"))) -> 0 | K16: =IF(D16="CAL",ROUND(J16*'RATES-Non Fed'!$E$38,0),IF(D16="ACAD",J16*'RATES-Non Fed'!$E$44,J16*'RATES-Non Fed'!$E$45)) -> 0 | L16: 0 | M16: =IF($D16="CAL",ROUND((J16*(1+'Salary Inflation'!$C$30)),0),IF($D16="ACAD",(J16)*(1+'Salary Inflation'!$C$31),IF($D16="SUMR",(J16)*(1+'Salary Inflation'!$C$32),"NA"))) -> 0 | N16: =IF($D16="CAL",ROUND(M16*'RATES-Non Fed'!$G$38,0),IF($D16="ACAD",M16*'RATES-Non Fed'!$G$44,M16*'RATES-Non Fed'!$G$45)) -> 0 | O16: 0 | P16: =IF($D16="CAL",ROUND((M16*(1+'Salary Inflation'!$D$30)),0),IF($D16="ACAD",(M16)*(1+'Salary Inflation'!$D$31),IF($D16="SUMR",(M16)*(1+'Salary Inflation'!$D$32),"NA"))) -> 0 | Q16: =IF($D16="CAL",ROUND(P16*'RATES-Non Fed'!$I$38,0),IF($D16="ACAD",P16*'RATES-Non Fed'!$I$44,P16*'RATES-Non Fed'!$I$45)) -> 0 | R16: 0 | S16: =IF($D16="CAL",ROUND((P16*(1+'Salary Inflation'!$E$30)),0),IF($D16="ACAD",(P16)*(1+'Salary Inflation'!$E$31),IF($D16="SUMR",(P16)*(1+'Salary Inflation'!$E$32),"NA"))) -> 0 | T16: =IF($D16="CAL",ROUND(S16*'RATES-Non Fed'!$K$38,0),IF($D16="ACAD",S16*'RATES-Non Fed'!$K$44,S16*'RATES-Non Fed'!$K$45)) -> 0 | U16: 0 | V16: 0
B17: Co | D17: CAL | E17: 0 | F17: 0 | G17: 0 | J17: =IF($D17="CAL",ROUND(($G17*(1+'Salary Inflation'!$B$30))*$E17,0),IF($D17="ACAD",($G17/0.9965)*(1+'Salary Inflation'!$B$31)*$E17,IF($D17="SUMR",($G17)*(1+'Salary Inflation'!$B$32)*$E17,"NA"))) -> 0 | K17: =IF(D17="CAL",ROUND(J17*'RATES-Non Fed'!$E$38,0),IF(D17="ACAD",J17*'RATES-Non Fed'!$E$44,J17*'RATES-Non Fed'!$E$45)) -> 0 | L17: 0 | M17: =IF($D17="CAL",ROUND((J17*(1+'Salary Inflation'!$C$30)),0),IF($D17="ACAD",(J17)*(1+'Salary Inflation'!$C$31),IF($D17="SUMR",(J17)*(1+'Salary Inflation'!$C$32),"NA"))) -> 0 | N17: =IF($D17="CAL",ROUND(M17*'RATES-Non Fed'!$G$38,0),IF($D17="ACAD",M17*'RATES-Non Fed'!$G$44,M17*'RATES-Non Fed'!$G$45)) -> 0 | O17: 0 | P17: =IF($D17="CAL",ROUND((M17*(1+'Salary Inflation'!$D$30)),0),IF($D17="ACAD",(M17)*(1+'Salary Inflation'!$D$31),IF($D17="SUMR",(M17)*(1+'Salary Inflation'!$D$32),"NA"))) -> 0 | Q17: =IF($D17="CAL",ROUND(P17*'RATES-Non Fed'!$I$38,0),IF($D17="ACAD",P17*'RATES-Non Fed'!$I$44,P17*'RATES-Non Fed'!$I$45)) -> 0 | R17: 0 | S17: =IF($D17="CAL",ROUND((P17*(1+'Salary Inflation'!$E$30)),0),IF($D17="ACAD",(P17)*(1+'Salary Inflation'!$E$31),IF($D17="SUMR",(P17)*(1+'Salary Inflation'!$E$32),"NA"))) -> 0 | T17: =IF($D17="CAL",ROUND(S17*'RATES-Non Fed'!$K$38,0),IF($D17="ACAD",S17*'RATES-Non Fed'!$K$44,S17*'RATES-Non Fed'!$K$45)) -> 0 | U17: 0 | V17: 0
B18: Co | D18: CAL | E18: 0 | F18: 0 | G18: 0 | J18: =IF($D18="CAL",ROUND(($G18*(1+'Salary Inflation'!$B$30))*$E18,0),IF($D18="ACAD",($G18/0.9965)*(1+'Salary Inflation'!$B$31)*$E18,IF($D18="SUMR",($G18)*(1+'Salary Inflation'!$B$32)*$E18,"NA"))) -> 0 | K18: =IF(D18="CAL",ROUND(J18*'RATES-Non Fed'!$E$38,0),IF(D18="ACAD",J18*'RATES-Non Fed'!$E$44,J18*'RATES-Non Fed'!$E$45)) -> 0 | L18: 0 | M18: =IF($D18="CAL",ROUND((J18*(1+'Salary Inflation'!$C$30)),0),IF($D18="ACAD",(J18)*(1+'Salary Inflation'!$C$31),IF($D18="SUMR",(J18)*(1+'Salary Inflation'!$C$32),"NA"))) -> 0 | N18: =IF($D18="CAL",ROUND(M18*'RATES-Non Fed'!$G$38,0),IF($D18="ACAD",M18*'RATES-Non Fed'!$G$44,M18*'RATES-Non Fed'!$G$45)) -> 0 | O18: 0 | P18: =IF($D18="CAL",ROUND((M18*(1+'Salary Inflation'!$D$30)),0),IF($D18="ACAD",(M18)*(1+'Salary Inflation'!$D$31),IF($D18="SUMR",(M18)*(1+'Salary Inflation'!$D$32),"NA"))) -> 0 | Q18: =IF($D18="CAL",ROUND(P18*'RATES-Non Fed'!$I$38,0),IF($D18="ACAD",P18*'RATES-Non Fed'!$I$44,P18*'RATES-Non Fed'!$I$45)) -> 0 | R18: 0 | S18: =IF($D18="CAL",ROUND((P18*(1+'Salary Inflation'!$E$30)),0),IF($D18="ACAD",(P18)*(1+'Salary Inflation'!$E$31),IF($D18="SUMR",(P18)*(1+'Salary Inflation'!$E$32),"NA"))) -> 0 | T18: =IF($D18="CAL",ROUND(S18*'RATES-Non Fed'!$K$38,0),IF($D18="ACAD",S18*'RATES-Non Fed'!$K$44,S18*'RATES-Non Fed'!$K$45)) -> 0 | U18: 0 | V18: 0
D19: AAUP Faculty Subtotal : | J19: =SUM(J11:J18) -> 0 | K19: 0 | L19: 0 | M19: 0 | N19: 0 | O19: 0 | P19: 0 | Q19: 0 | R19: 0 | S19: 0 | T19: 0 | U19: 0 | V19: 0
A20: B | B20: Dual Compensation Faculty
B21: Co | D21: CAL | E21: 0 | F21: =IF(D21="CAL",(52*E21/4.3333),(IF(D21="ACAD",(32*E21/4.33333),IF(D21="SUMR",(14*E21/4.33333),IF(D21="PT",(0),0))))) -> 0 | G21: 0 | J21: =ROUND(($G21*(1+'Salary Inflation'!$B$34))*$E21,0) -> 0 | K21: =ROUND(J21*'RATES-Non Fed'!E40,0) -> 0 | L21: =ROUND(K21+J21,0) -> 0 | M21: =ROUND(J21*(1+'Salary Inflation'!$C$34),0) -> 0 | N21: =ROUND(M21*'RATES-Non Fed'!G40,0) -> 0 | O21: =ROUND(M21+N21,0) -> 0 | P21: =ROUND(M21*(1+'Salary Inflation'!$C$34),0) -> 0 | Q21: =ROUND(P21*'RATES-Non Fed'!I40,0) -> 0 | R21: =ROUND(P21+Q21,0) -> 0 | S21: =ROUND(P21*(1+'Salary Inflation'!$C$34),0) -> 0 | T21: =ROUND(S21*'RATES-Non Fed'!K40,0) -> 0 | U21: =SUM(S21:T21) -> 0 | V21: =SUM(L21+O21+R21+U21) -> 0
B22: Co | D22: CAL | E22: 0 | F22: =IF(D22="CAL",(52*E22/4.3333),(IF(D22="ACAD",(32*E22/4.33333),IF(D22="SUMR",(14*E22/4.33333),IF(D22="PT",(0),0))))) -> 0 | G22: 0 | J22: =ROUND(($G22*(1+'Salary Inflation'!$B$34))*$E22,0) -> 0 | K22: =ROUND(J22*'RATES-Non Fed'!E40,0) -> 0 | L22: =ROUND(K22+J22,0) -> 0 | M22: =ROUND(J22*(1+'Salary Inflation'!$C$34),0) -> 0 | N22: =ROUND(M22*'RATES-Non Fed'!G40,0) -> 0 | O22: =ROUND(M22+N22,0) -> 0 | P22: =ROUND(M22*(1+'Salary Inflation'!$C$34),0) -> 0 | Q22: =ROUND(P22*'RATES-Non Fed'!I40,0) -> 0 | R22: =ROUND(P22+Q22,0) -> 0 | S22: =ROUND(P22*(1+'Salary Inflation'!$C$34),0) -> 0 | T22: =ROUND(S22*'RATES-Non Fed'!K40,0) -> 0 | U22: =SUM(S22:T22) -> 0 | V22: =SUM(L22+O22+R22+U22) -> 0
B23: Co | D23: CAL | E23: 0 | F23: =IF(D23="CAL",(52*E23/4.3333),(IF(D23="ACAD",(32*E23/4.33333),IF(D23="SUMR",(14*E23/4.33333),IF(D23="PT",(0),0))))) -> 0 | G23: 0 | J23: =ROUND(($G23*(1+'Salary Inflation'!$B$34))*$E23,0) -> 0 | K23: =ROUND(J23*'RATES-Non Fed'!E40,0) -> 0 | L23: =ROUND(K23+J23,0) -> 0 | M23: =ROUND(J23*(1+'Salary Inflation'!$C$34),0) -> 0 | N23: =ROUND(M23*'RATES-Non Fed'!G40,0) -> 0 | O23: =ROUND(M23+N23,0) -> 0 | P23: =ROUND(M23*(1+'Salary Inflation'!$C$34),0) -> 0 | Q23: =ROUND(P23*'RATES-Non Fed'!I40,0) -> 0 | R23: =ROUND(P23+Q23,0) -> 0 | S23: =ROUND(P23*(1+'Salary Inflation'!$C$34),0) -> 0 | T23: =ROUND(S23*'RATES-Non Fed'!K40,0) -> 0 | U23: =SUM(S23:T23) -> 0 | V23: =SUM(L23+O23+R23+U23) -> 0
B24: Co | D24: CAL | E24: 0 | F24: =IF(D24="CAL",(52*E24/4.3333),(IF(D24="ACAD",(32*E24/4.33333),IF(D24="SUMR",(14*E24/4.33333),IF(D24="PT",(0),0))))) -> 0 | G24: 0 | J24: =ROUND(($G24*(1+'Salary Inflation'!$B$34))*$E24,0) -> 0 | K24: =ROUND(J24*'RATES-Non Fed'!E40,0) -> 0 | L24: =ROUND(K24+J24,0) -> 0 | M24: =ROUND(J24*(1+'Salary Inflation'!$C$34),0) -> 0 | N24: =ROUND(M24*'RATES-Non Fed'!G40,0) -> 0 | O24: =ROUND(M24+N24,0) -> 0 | P24: =ROUND(M24*(1+'Salary Inflation'!$C$34),0) -> 0 | Q24: =ROUND(P24*'RATES-Non Fed'!I40,0) -> 0 | R24: =ROUND(P24+Q24,0) -> 0 | S24: =ROUND(P24*(1+'Salary Inflation'!$C$34),0) -> 0 | T24: =ROUND(S24*'RATES-Non Fed'!K40,0) -> 0 | U24: =SUM(S24:T24) -> 0 | V24: =SUM(L24+O24+R24+U24) -> 0
D25: Dual Comp Faculty Subtotal : | J25: =SUM(J21:J24) -> 0 | K25: 0 | L25: 0 | M25: 0 | N25: 0 | O25: 0 | P25: 0 | Q25: 0 | R25: 0 | S25: =SUM(S21:S24) -> 0 | T25: 0 | V25: =SUM(V21:V24) -> 0
A27: C. | B27: Other Personnel
C28: Exempt Staff (Monthly) | D28: Name
E29: 0 | F29: =SUM(52*E29/4.3333) -> 0 | G29: 0 | J29: =ROUND(($G29*(1+'Salary Inflation'!$B$33))*$E29,0) -> 0 | K29: =ROUND(J29*'RATES-Non Fed'!$E$39,0) -> 0 | L29: =SUM(J29:K29) -> 0 | M29: =ROUND(J29*(1+'Salary Inflation'!$C$33),0) -> 0 | N29: =ROUND(M29*'RATES-Non Fed'!$E$39,0) -> 0 | O29: =SUM(M29:N29) -> 0 | P29: =ROUND(M29*(1+'Salary Inflation'!$D$33),0) -> 0 | Q29: =ROUND(P29*'RATES-Non Fed'!$E$39,0) -> 0 | R29: =SUM(P29:Q29) -> 0 | S29: =ROUND(P29*(1+'Salary Inflation'!$E$33),0) -> 0 | T29: =ROUND(S29*'RATES-Non Fed'!K39,0) -> 0 | U29: =SUM(S29:T29) -> 0 | V29: =SUM(L29+O29+R29+U29) -> 0
E30: 0 | F30: =SUM(52*E30/4.3333) -> 0 | G30: 0 | J30: =ROUND(($G30*(1+'Salary Inflation'!$B$33))*$E30,0) -> 0 | K30: =ROUND(J30*'RATES-Non Fed'!$E$39,0) -> 0 | L30: =SUM(J30:K30) -> 0 | M30: =ROUND(J30*(1+'Salary Inflation'!$C$33),0) -> 0 | N30: =ROUND(M30*'RATES-Non Fed'!$E$39,0) -> 0 | O30: =SUM(M30:N30) -> 0 | P30: =ROUND(M30*(1+'Salary Inflation'!$D$33),0) -> 0 | Q30: =ROUND(P30*'RATES-Non Fed'!$E$39,0) -> 0 | R30: =SUM(P30:Q30) -> 0 | S30: =ROUND(P30*(1+'Salary Inflation'!$E$33),0) -> 0 | T30: =ROUND(S30*'RATES-Non Fed'!K40,0) -> 0 | U30: =SUM(S30:T30) -> 0 | V30: =SUM(L30+O30+R30+U30) -> 0
E31: 0 | F31: =SUM(52*E31/4.3333) -> 0 | G31: 0 | J31: =ROUND(($G31*(1+'Salary Inflation'!$B$33))*$E31,0) -> 0 | K31: =ROUND(J31*'RATES-Non Fed'!$E$39,0) -> 0 | L31: =SUM(J31:K31) -> 0 | M31: =ROUND(J31*(1+'Salary Inflation'!$C$33),0) -> 0 | N31: =ROUND(M31*'RATES-Non Fed'!$E$39,0) -> 0 | O31: =SUM(M31:N31) -> 0 | P31: =ROUND(M31*(1+'Salary Inflation'!$D$33),0) -> 0 | Q31: =ROUND(P31*'RATES-Non Fed'!$E$39,0) -> 0 | R31: =SUM(P31:Q31) -> 0 | S31: =ROUND(P31*(1+'Salary Inflation'!$E$33),0) -> 0 | T31: =ROUND(S31*'RATES-Non Fed'!K41,0) -> 0 | U31: =SUM(S31:T31) -> 0 | V31: =SUM(L31+O31+R31+U31) -> 0
D32: Total Exempt Staff | J32: =SUM(J29:J31) -> 0 | K32: 0 | L32: 0 | M32: 0 | N32: 0 | O32: 0 | P32: 0 | Q32: 0 | R32: 0 | S32: 0 | T32: =SUM(T29:T31) -> 0 | U32: =SUM(U29:U31) -> 0 | V32: =SUM(V29:V31) -> 0
C34: Post Doctoral Support | E34: 0 | F34: =SUM(52*E34/4.3333) -> 0 | G34: 0 | J34: =ROUND(($G34*(1+'Salary Inflation'!$B$33))*$E34,0) -> 0 | K34: =ROUND(J34*'RATES-Non Fed'!$E$43,0) -> 0 | L34: =SUM(J34:K34) -> 0 | M34: =ROUND(J34*(1+'Salary Inflation'!$C$33),0) -> 0 | N34: =ROUND(M34*'RATES-Non Fed'!$E$43,0) -> 0 | O34: =SUM(M34:N34) -> 0 | P34: =ROUND(M34*(1+'Salary Inflation'!$D$33),0) -> 0 | Q34: =ROUND(P34*'RATES-Non Fed'!$E$43,0) -> 0 | R34: =SUM(P34:Q34) -> 0 | S34: =ROUND(P34*(1+'Salary Inflation'!$E$33),0) -> 0 | T34: =ROUND(S34*'RATES-Non Fed'!$E$43,0) -> 0 | U34: =SUM(S34:T34) -> 0 | V34: =SUM(L34+O34+R34+U34) -> 0
C35: Graduate Students | E35: 0 | F35: =SUM(52*E35/4.3333) -> 0 | G35: 0 | J35: =ROUND(($G35*(1+'Salary Inflation'!$B$33))*$E35,0) -> 0 | K35: =ROUND(J35*'RATES-Non Fed'!E42,0) -> 0 | L35: =SUM(J35:K35) -> 0 | M35: =ROUND(J35*(1+'Salary Inflation'!$C$33),0) -> 0 | N35: =ROUND(M35*'RATES-Non Fed'!H42,0) -> 0 | O35: =SUM(M35:N35) -> 0 | P35: =ROUND(M35*(1+'Salary Inflation'!$D$33),0) -> 0 | Q35: =ROUND(P35*'RATES-Non Fed'!K42,0) -> 0 | R35: =SUM(P35:Q35) -> 0 | S35: =ROUND(P35*(1+'Salary Inflation'!$E$33),0) -> 0 | T35: =ROUND(S35*'RATES-Non Fed'!N42,0) -> 0 | U35: =SUM(S35:T35) -> 0 | V35: =SUM(L35+O35+R35+U35) -> 0
C36: Undergrad Students | E36: 0 | F36: =SUM(52*E36/4.3333) -> 0 | G36: 0 | J36: =ROUND(($G36*(1+'Salary Inflation'!$B$33))*$E36,0) -> 0 | K36: =ROUND(J36*'RATES-Non Fed'!E42,0) -> 0 | L36: =SUM(J36:K36) -> 0 | M36: =ROUND(J36*(1+'Salary Inflation'!$C$33),0) -> 0 | N36: =ROUND(M36*'RATES-Non Fed'!H42,0) -> 0 | O36: =SUM(M36:N36) -> 0 | P36: =ROUND(M36*(1+'Salary Inflation'!$D$33),0) -> 0 | Q36: =ROUND(P36*'RATES-Non Fed'!K42,0) -> 0 | R36: =SUM(P36:Q36) -> 0 | S36: =ROUND(P36*(1+'Salary Inflation'!$E$33),0) -> 0 | T36: =ROUND(S36*'RATES-Non Fed'!N42,0) -> 0 | U36: =SUM(S36:T36) -> 0 | V36: =SUM(L36+O36+R36+U36) -> 0
C37: Part-time Faculty/Staff | E37: 0 | F37: =SUM(52*E37/4.3333) -> 0 | G37: 0 | J37: =ROUND(($G37*(1+'Salary Inflation'!$B$33))*$E37,0) -> 0 | K37: =ROUND(J37*'RATES-Non Fed'!E43,0) -> 0 | L37: =SUM(J37:K37) -> 0 | M37: =ROUND(J37*(1+'Salary Inflation'!$C$33),0) -> 0 | N37: =ROUND(M37*'RATES-Non Fed'!H43,0) -> 0 | O37: =SUM(M37:N37) -> 0 | P37: =ROUND(M37*(1+'Salary Inflation'!$D$33),0) -> 0 | Q37: =ROUND(P37*'RATES-Non Fed'!K43,0) -> 0 | R37: =SUM(P37:Q37) -> 0 | S37: =ROUND(P37*(1+'Salary Inflation'!$E$33),0) -> 0 | T37: =ROUND(S37*'RATES-Non Fed'!N43,0) -> 0 | U37: =SUM(S37:T37) -> 0 | V37: =SUM(L37+O37+R37+U37) -> 0
C38: Non-Exempt Staff (Bi-Weekly) | E38: 0 | F38: =SUM(52*E38/4.3333) -> 0 | G38: 0 | J38: =ROUND(($G38*(1+'Salary Inflation'!$B$33))*$E38,0) -> 0 | K38: =ROUND(J38*'RATES-Non Fed'!E41,0) -> 0 | L38: =SUM(J38:K38) -> 0 | M38: =ROUND(J38*(1+'Salary Inflation'!$C$33),0) -> 0 | N38: =ROUND(M38*'RATES-Non Fed'!H41,0) -> 0 | O38: =SUM(M38:N38) -> 0 | P38: =ROUND(M38*(1+'Salary Inflation'!$D$33),0) -> 0 | Q38: =ROUND(P38*'RATES-Non Fed'!K41,0) -> 0 | R38: =SUM(P38:Q38) -> 0 | S38: =ROUND(P38*(1+'Salary Inflation'!$E$33),0) -> 0 | T38: =ROUND(S38*'RATES-Non Fed'!N41,0) -> 0 | U38: =SUM(S38:T38) -> 0 | V38: =SUM(L38+O38+R38+U38) -> 0
D39: Sub Totals | J39: =SUM(J19+J25+J32+J34+J35+J36+J37+J38) -> 0 | K39: 0 | L39: 0 | M39: 0 | N39: 0 | O39: 0 | P39: 0 | Q39: 0 | R39: 0 | S39: 0 | T39: 0 | U39: 0 | V39: =SUM(V34:V38) -> 0
A41: Total Salaries and Fringe Benefits : | J41: =SUM(J39+K39) -> 0 | M41: =SUM(M39+N39) -> 0 | P41: =SUM(P39+Q39) -> 0 | S41: =SUM(S39+T39) -> 0 | V41: =SUM(J41+M41+P41+S41) -> 0
A43: D. | B43: Equipment
C44: (list) | J44: 0 | M44: 0 | P44: 0 | S44: 0 | V44: =SUM(J44:U44) -> 0
C45: (list) | J45: 0 | M45: 0 | P45: 0 | S45: 0 | V45: =SUM(J45:U45) -> 0
C46: Total Equipment : | J46: =SUM(J44:J45) -> 0 | M46: =SUM(M44:M45) -> 0 | P46: =SUM(P44:P45) -> 0 | S46: =SUM(S44:S45) -> 0 | V46: =SUM(J46:U46) -> 0
A48: E. | B48: Travel
C49: Domestic | D49: (list) | J49: 0 | M49: =ROUND((J49*1.02),0) -> 0 | P49: =ROUND((M49*1.02),0) -> 0 | S49: =ROUND((P49*1.02),0) -> 0 | V49: =SUM(J49:U49) -> 0
C50: International | D50: (list) | J50: 0 | M50: =ROUND((J50*1.02),0) -> 0 | P50: =ROUND((M50*1.02),0) -> 0 | S50: =ROUND((P50*1.02),0) -> 0 | V50: =SUM(J50:U50) -> 0
C51: Total Travel : | J51: =SUM(J49:J50) -> 0 | M51: =SUM(M49:M50) -> 0 | P51: =SUM(P49:P50) -> 0 | S51: =SUM(S49:S50) -> 0 | V51: =SUM(J51:U51) -> 0
A53: G. | B53: Supplies and Other Direct Costs
C54: Materials & Supplies | J54: 0 | M54: =ROUND((J54*1.02),0) -> 0 | P54: =ROUND((M54*1.02),0) -> 0 | S54: =ROUND((P54*1.02),0) -> 0 | V54: =SUM(J54:U54) -> 0
C55: Publication Costs | J55: 0 | M55: =ROUND((J55*1.02),0) -> 0 | P55: =ROUND((M55*1.02),0) -> 0 | S55: =ROUND((P55*1.02),0) -> 0 | V55: 0
C56: Consultant Services | J56: 0 | M56: 0 | P56: 0 | S56: 0 | V56: 0
C57: Subject Incentives | J57: 0 | M57: 0 | P57: 0 | S57: 0 | V57: 0
C58: UC Tuition for Trainees/Fellows | J58: 0 | M58: 0 | P58: 0 | S58: 0 | V58: 0
C59: UC Tuition on Research Projects | J59: 0 | M59: =ROUND((J59*1.02),0) -> 0 | P59: =ROUND((M59*1.02),0) -> 0 | S59: =ROUND((P59*1.02),0) -> 0 | V59: =SUM(J59:U59) -> 0
C60: Lab Expenses | J60: 0 | M60: 0 | P60: 0 | S60: 0 | V60: 0
C61: Other (Analytical Services/Instrument Use) | J61: 0 | M61: 0 | P61: 0 | S61: 0 | V61: 0
C62: Subcontracts 1) | J62: 0 | M62: 0 | P62: 0 | S62: 0 | V62: 0
C63: 2) | J63: 0 | M63: 0 | P63: 0 | S63: 0 | V63: 0
C64: 3) | J64: 0 | M64: 0 | P64: 0 | S64: 0 | V64: 0
C65: 4) | J65: 0 | M65: 0 | P65: 0 | S65: 0 | V65: 0
A66: Total Supplies and Other Direct Costs : | J66: =SUM(J54:J65) -> 0 | M66: =SUM(M54:M65) -> 0 | P66: =SUM(P54:P65) -> 0 | S66: =SUM(S54:S65) -> 0 | V66: 0
E68: TOTAL DIRECT COSTS: | J68: =ROUND(+J66+J51+J46+J41,0) -> 0 | M68: =ROUND(+M66+M51+M46+M41,0) -> 0 | P68: =ROUND(+P66+P51+P46+P41,0) -> 0 | S68: =ROUND(+S66+S51+S46+S41,0) -> 0 | V68: =SUM(J68:U68) -> 0
H70: Facilities and Administrative Cost Base: | J70: =J68 -> 0 | M70: =M68 -> 0 | P70: =P68 -> 0 | S70: =S68 -> 0 | V70: =SUM(J70:U70) -> 0
A71: Facilities and Administrative Costs Calculation:
A72: F&A Cost (on MTDC): | D72: =IF(AND(($E$79)="R",($E$81)="C"),('RATES-Non Fed'!E48),IF(AND(($E$79)="R",($E$81)="O"),('RATES-Non Fed'!E53),IF(AND(($E$79)="I",($E$81)="C"),('RATES-Non Fed'!E49),IF(AND(($E$79)="I",($E$81)="O"),('RATES-Non Fed'!E54),IF(AND(($E$79)="P",($E$81)="C"),('RATES-Non Fed'!E50),IF(AND(($E$79)="P",($E$81)="O"),('RATES-Non Fed'!E55),($E$80))))))) -> 0.62 | E72: =IF(AND(($E$79)="R",($E$81)="C"),('RATES-Non Fed'!G48),IF(AND(($E$79)="R",($E$81)="O"),('RATES-Non Fed'!G53),IF(AND(($E$79)="I",($E$81)="C"),('RATES-Non Fed'!G49),IF(AND(($E$79)="I",($E$81)="O"),('RATES-Non Fed'!G54),IF(AND(($E$79)="P",($E$81)="C"),('RATES-Non Fed'!G50),IF(AND(($E$79)="P",($E$81)="O"),('RATES-Non Fed'!G55),($E$80))))))) -> 0.62 | F72: =IF(AND(($E$79)="R",($E$81)="C"),('RATES-Non Fed'!I48),IF(AND(($E$79)="R",($E$81)="O"),('RATES-Non Fed'!I53),IF(AND(($E$79)="I",($E$81)="C"),('RATES-Non Fed'!I49),IF(AND(($E$79)="I",($E$81)="O"),('RATES-Non Fed'!I54),IF(AND(($E$79)="P",($E$81)="C"),('RATES-Non Fed'!I50),IF(AND(($E$79)="P",($E$81)="O"),('RATES-Non Fed'!I55),($E$80))))))) -> 0.62 | G72: =IF(AND(($E$79)="R",($E$81)="C"),('RATES-Non Fed'!K48),IF(AND(($E$79)="R",($E$81)="O"),('RATES-Non Fed'!K53),IF(AND(($E$79)="I",($E$81)="C"),('RATES-Non Fed'!K49),IF(AND(($E$79)="I",($E$81)="O"),('RATES-Non Fed'!K54),IF(AND(($E$79)="P",($E$81)="C"),('RATES-Non Fed'!K50),IF(AND(($E$79)="P",($E$81)="O"),('RATES-Non Fed'!K55),($E$80))))))) -> 0.62 | J72: =+J70*D72 -> 0 | M72: =+M70*E72 -> 0 | P72: =+P70*F72 -> 0 | S72: =+S70*G72 -> 0 | V72: =SUM(J72:U72) -> 0
A73: Total F&A Cost : | J73: =SUM(J72:J72) -> 0 | M73: =SUM(M72:M72) -> 0 | P73: =SUM(P72:P72) -> 0 | S73: =SUM(S72:S72) -> 0 | V73: =SUM(J73:U73) -> 0
C75: Total Cost | J75: =J73+J68 -> 0 | M75: =M73+M68 -> 0 | P75: =P73+P68 -> 0 | S75: =S73+S68 -> 0 | V75: =SUM(J75:U75) -> 0
C78: Facilities and Administrative Data
C79: Purpose of Grant / Contract : | E79: R | G79: (R = Research, I = Instruction, P = Public Service, S = Special Rate on Total Costs)
C80: Special F&A Rate : | E80: 0.1
C81: Campus Status : | E81: C | G81: (C = On Campus, O = Off Campus)
D83: Detailed F&A figures for prorated rates | H83: =+'RATES-Non Fed'!E31 -> 0.62 | J83: =J73/12*'RATES-Non Fed'!$C$48 -> 0 | L83: =+'RATES-Non Fed'!G31 -> 0.62 | M83: =M73/12*'RATES-Non Fed'!$C$48 -> 0 | O83: =+'RATES-Non Fed'!I31 -> 0.62 | P83: =P73/12*'RATES-Non Fed'!$C$48 -> 0 | R83: =+'RATES-Non Fed'!K31 -> 0.62 | S83: =S73/12*'RATES-Non Fed'!$C$48 -> 0
D84: *If both lines have the same rate, then just list as one line on forms. | H84: =+'RATES-Non Fed'!G31 -> 0.62 | J84: =J73/12*'RATES-Non Fed'!$D$48 -> 0 | L84: =+'RATES-Non Fed'!I31 -> 0.62 | M84: =M73/12*'RATES-Non Fed'!$D$48 -> 0 | O84: =+'RATES-Non Fed'!K31 -> 0.62 | P84: =P73/12*'RATES-Non Fed'!$D$48 -> 0 | R84: =+'RATES-Non Fed'!M31 -> 0.62 | S84: =S73/12*'RATES-Non Fed'!$D$48 -> 0
J85: =SUM(J83:J84) -> 0 | M85: =SUM(M83:M84) -> 0 | P85: =SUM(P83:P84) -> 0 | S85: =SUM(S83:S84) -> 0 | U85: ='RATES-Non Fed'!Q69 -> 0

Sheet 5 Year
A1: Grants / Contracts
A2: 5 Year Budget
A4: Sponsoring Agency : | D4: name | J4: Titled : | K4: name
A5: Principal Investigator : | D5: name
B6: Period : | D6: ='RATES-Non Fed'!E2 -> 2024-01-01 | E6: thru | G6: ='RATES-Non Fed'!G2 -> 1930-12-31
J8: Year 1 | M8: Year 2 | P8: Year 3 | S8: Year 4 | V8: Year 5 | Y8: CUMULATIVE
A9: A. | B9: Salaries | J9: Sal | K9: FB | L9: Total | M9: Sal | N9: FB | O9: Total | P9: Sal | Q9: FB | R9: Total | S9: Sal | T9: FB | U9: Total | V9: Sal | W9: FB | X9: Total
B10: Senior Personnel | D10: App't Type | E10: % Effort | F10: PM | G10: Salary | Y10: =IF(SUM(J10:N10)=0,"",SUM(J10:N10)) -> 
B11: PI | D11: ACAD | E11: 0 | F11: =IF(D11="CAL",(52*E11/4.3333),(IF(D11="ACAD",(36.35*E11/4.33333),IF(D11="SUMR",(15.65*E11/4.33333),IF(D11="PT",(0),0))))) -> 0 | G11: 0 | J11: =IF($D11="CAL",ROUND(($G11*(1+'Salary Inflation'!$B$30))*$E11,0),IF($D11="ACAD",($G11/0.9965)*(1+'Salary Inflation'!$B$31)*$E11,IF($D11="SUMR",($G11)*(1+'Salary Inflation'!$B$32)*$E11,"NA"))) -> 0 | K11: =IF(D11="CAL",ROUND(J11*'RATES-Non Fed'!$E$38,0),IF(D11="ACAD",J11*'RATES-Non Fed'!$E$44,J11*'RATES-Non Fed'!$E$45)) -> 0 | L11: =ROUND(K11+J11,0) -> 0 | M11: =IF($D11="CAL",ROUND((J11*(1+'Salary Inflation'!$C$30)),0),IF($D11="ACAD",(J11)*(1+'Salary Inflation'!$C$31),IF($D11="SUMR",(J11)*(1+'Salary Inflation'!$C$32),"NA"))) -> 0 | N11: =IF($D11="CAL",ROUND(M11*'RATES-Non Fed'!$G$38,0),IF($D11="ACAD",M11*'RATES-Non Fed'!$G$44,M11*'RATES-Non Fed'!$G$45)) -> 0 | O11: =ROUND(M11+N11,0) -> 0 | P11: =IF($D11="CAL",ROUND((M11*(1+'Salary Inflation'!$D$30)),0),IF($D11="ACAD",(M11)*(1+'Salary Inflation'!$D$31),IF($D11="SUMR",(M11)*(1+'Salary Inflation'!$D$32),"NA"))) -> 0 | Q11: =IF($D11="CAL",ROUND(P11*'RATES-Non Fed'!$I$38,0),IF($D11="ACAD",P11*'RATES-Non Fed'!$I$44,P11*'RATES-Non Fed'!$I$45)) -> 0 | R11: =SUM(P11:Q11) -> 0 | S11: =IF($D11="CAL",ROUND((P11*(1+'Salary Inflation'!$E$30)),0),IF($D11="ACAD",(P11)*(1+'Salary Inflation'!$E$31),IF($D11="SUMR",(P11)*(1+'Salary Inflation'!$E$32),"NA"))) -> 0 | T11: =IF($D11="CAL",ROUND(S11*'RATES-Non Fed'!$K$38,0),IF($D11="ACAD",S11*'RATES-Non Fed'!$K$44,S11*'RATES-Non Fed'!$K$45)) -> 0 | U11: =SUM(S11:T11) -> 0 | V11: =IF($D11="CAL",ROUND((S11*(1+'Salary Inflation'!$F$30)),0),IF($D11="ACAD",(S11)*(1+'Salary Inflation'!$F$31),IF($D11="SUMR",(S11)*(1+'Salary Inflation'!$F$32),"NA"))) -> 0 | W11: =IF($D11="CAL",ROUND(V11*'RATES-Non Fed'!$M$38,0),IF($D11="ACAD",V11*'RATES-Non Fed'!$M$44,V11*'RATES-Non Fed'!$M$45)) -> 0 | X11: =SUM(V11:W11) -> 0 | Y11: =SUM(L11+O11+R11+U11+X11) -> 0
B12: PI | D12: SUMR | E12: 0 | F12: 0 | G12: =IF(D11="ACAD",+G11*0.437,0) -> 0 | J12: =IF($D12="CAL",ROUND(($G12*(1+'Salary Inflation'!$B$30))*$E12,0),IF($D12="ACAD",($G12/0.9965)*(1+'Salary Inflation'!$B$31)*$E12,IF($D12="SUMR",($G12)*(1+'Salary Inflation'!$B$32)*$E12,"NA"))) -> 0 | K12: =IF(D12="CAL",ROUND(J12*'RATES-Non Fed'!$E$38,0),IF(D12="ACAD",J12*'RATES-Non Fed'!$E$44,J12*'RATES-Non Fed'!$E$45)) -> 0 | L12: =ROUND(K12+J12,0) -> 0 | M12: =IF($D12="CAL",ROUND((J12*(1+'Salary Inflation'!$C$30)),0),IF($D12="ACAD",(J12)*(1+'Salary Inflation'!$C$31),IF($D12="SUMR",(J12)*(1+'Salary Inflation'!$C$32),"NA"))) -> 0 | N12: =IF($D12="CAL",ROUND(M12*'RATES-Non Fed'!$G$38,0),IF($D12="ACAD",M12*'RATES-Non Fed'!$G$44,M12*'RATES-Non Fed'!$G$45)) -> 0 | O12: 0 | P12: =IF($D12="CAL",ROUND((M12*(1+'Salary Inflation'!$D$30)),0),IF($D12="ACAD",(M12)*(1+'Salary Inflation'!$D$31),IF($D12="SUMR",(M12)*(1+'Salary Inflation'!$D$32),"NA"))) -> 0 | Q12: =IF($D12="CAL",ROUND(P12*'RATES-Non Fed'!$I$38,0),IF($D12="ACAD",P12*'RATES-Non Fed'!$I$44,P12*'RATES-Non Fed'!$I$45)) -> 0 | R12: 0 | S12: =IF($D12="CAL",ROUND((P12*(1+'Salary Inflation'!$E$30)),0),IF($D12="ACAD",(P12)*(1+'Salary Inflation'!$E$31),IF($D12="SUMR",(P12)*(1+'Salary Inflation'!$E$32),"NA"))) -> 0 | T12: =IF($D12="CAL",ROUND(S12*'RATES-Non Fed'!$K$38,0),IF($D12="ACAD",S12*'RATES-Non Fed'!$K$44,S12*'RATES-Non Fed'!$K$45)) -> 0 | U12: =SUM(S12:T12) -> 0 | V12: =IF($D12="CAL",ROUND((S12*(1+'Salary Inflation'!$F$30)),0),IF($D12="ACAD",(S12)*(1+'Salary Inflation'!$F$31),IF($D12="SUMR",(S12)*(1+'Salary Inflation'!$F$32),"NA"))) -> 0 | W12: =IF($D12="CAL",ROUND(V12*'RATES-Non Fed'!$M$38,0),IF($D12="ACAD",V12*'RATES-Non Fed'!$M$44,V12*'RATES-Non Fed'!$M$45)) -> 0 | X12: 0 | Y12: =SUM(L12+O12+R12+U12+X12) -> 0
B13: Co | D13: ACAD | E13: 0 | F13: 0 | G13: 0 | J13: =IF($D13="CAL",ROUND(($G13*(1+'Salary Inflation'!$B$30))*$E13,0),IF($D13="ACAD",($G13/0.9965)*(1+'Salary Inflation'!$B$31)*$E13,IF($D13="SUMR",($G13)*(1+'Salary Inflation'!$B$32)*$E13,"NA"))) -> 0 | K13: =IF(D13="CAL",ROUND(J13*'RATES-Non Fed'!$E$38,0),IF(D13="ACAD",J13*'RATES-Non Fed'!$E$44,J13*'RATES-Non Fed'!$E$45)) -> 0 | L13: 0 | M13: =IF($D13="CAL",ROUND((J13*(1+'Salary Inflation'!$C$30)),0),IF($D13="ACAD",(J13)*(1+'Salary Inflation'!$C$31),IF($D13="SUMR",(J13)*(1+'Salary Inflation'!$C$32),"NA"))) -> 0 | N13: =IF($D13="CAL",ROUND(M13*'RATES-Non Fed'!$G$38,0),IF($D13="ACAD",M13*'RATES-Non Fed'!$G$44,M13*'RATES-Non Fed'!$G$45)) -> 0 | O13: 0 | P13: =IF($D13="CAL",ROUND((M13*(1+'Salary Inflation'!$D$30)),0),IF($D13="ACAD",(M13)*(1+'Salary Inflation'!$D$31),IF($D13="SUMR",(M13)*(1+'Salary Inflation'!$D$32),"NA"))) -> 0 | Q13: =IF($D13="CAL",ROUND(P13*'RATES-Non Fed'!$I$38,0),IF($D13="ACAD",P13*'RATES-Non Fed'!$I$44,P13*'RATES-Non Fed'!$I$45)) -> 0 | R13: 0 | S13: =IF($D13="CAL",ROUND((P13*(1+'Salary Inflation'!$E$30)),0),IF($D13="ACAD",(P13)*(1+'Salary Inflation'!$E$31),IF($D13="SUMR",(P13)*(1+'Salary Inflation'!$E$32),"NA"))) -> 0 | T13: =IF($D13="CAL",ROUND(S13*'RATES-Non Fed'!$K$38,0),IF($D13="ACAD",S13*'RATES-Non Fed'!$K$44,S13*'RATES-Non Fed'!$K$45)) -> 0 | U13: 0 | V13: =IF($D13="CAL",ROUND((S13*(1+'Salary Inflation'!$F$30)),0),IF($D13="ACAD",(S13)*(1+'Salary Inflation'!$F$31),IF($D13="SUMR",(S13)*(1+'Salary Inflation'!$F$32),"NA"))) -> 0 | W13: =IF($D13="CAL",ROUND(V13*'RATES-Non Fed'!$M$38,0),IF($D13="ACAD",V13*'RATES-Non Fed'!$M$44,V13*'RATES-Non Fed'!$M$45)) -> 0 | X13: 0 | Y13: 0
D14: =IF(D13="ACAD",("SUMR"),"") -> SUMR | E14: 0 | F14: 0 | G14: =IF(D13="ACAD",+G13*0.437,0) -> 0 | J14: =IF($D14="CAL",ROUND(($G14*(1+'Salary Inflation'!$B$30))*$E14,0),IF($D14="ACAD",($G14/0.9965)*(1+'Salary Inflation'!$B$31)*$E14,IF($D14="SUMR",($G14)*(1+'Salary Inflation'!$B$32)*$E14,"NA"))) -> 0 | K14: =IF(D14="CAL",ROUND(J14*'RATES-Non Fed'!$E$38,0),IF(D14="ACAD",J14*'RATES-Non Fed'!$E$44,J14*'RATES-Non Fed'!$E$45)) -> 0 | L14: 0 | M14: =IF($D14="CAL",ROUND((J14*(1+'Salary Inflation'!$C$30)),0),IF($D14="ACAD",(J14)*(1+'Salary Inflation'!$C$31),IF($D14="SUMR",(J14)*(1+'Salary Inflation'!$C$32),"NA"))) -> 0 | N14: =IF($D14="CAL",ROUND(M14*'RATES-Non Fed'!$G$38,0),IF($D14="ACAD",M14*'RATES-Non Fed'!$G$44,M14*'RATES-Non Fed'!$G$45)) -> 0 | O14: 0 | P14: =IF($D14="CAL",ROUND((M14*(1+'Salary Inflation'!$D$30)),0),IF($D14="ACAD",(M14)*(1+'Salary Inflation'!$D$31),IF($D14="SUMR",(M14)*(1+'Salary Inflation'!$D$32),"NA"))) -> 0 | Q14: =IF($D14="CAL",ROUND(P14*'RATES-Non Fed'!$I$38,0),IF($D14="ACAD",P14*'RATES-Non Fed'!$I$44,P14*'RATES-Non Fed'!$I$45)) -> 0 | R14: 0 | S14: =IF($D14="CAL",ROUND((P14*(1+'Salary Inflation'!$E$30)),0),IF($D14="ACAD",(P14)*(1+'Salary Inflation'!$E$31),IF($D14="SUMR",(P14)*(1+'Salary Inflation'!$E$32),"NA"))) -> 0 | T14: =IF($D14="CAL",ROUND(S14*'RATES-Non Fed'!$K$38,0),IF($D14="ACAD",S14*'RATES-Non Fed'!$K$44,S14*'RATES-Non Fed'!$K$45)) -> 0 | U14: 0 | V14: =IF($D14="CAL",ROUND((S14*(1+'Salary Inflation'!$F$30)),0),IF($D14="ACAD",(S14)*(1+'Salary Inflation'!$F$31),IF($D14="SUMR",(S14)*(1+'Salary Inflation'!$F$32),"NA"))) -> 0 | W14: =IF($D14="CAL",ROUND(V14*'RATES-Non Fed'!$M$38,0),IF($D14="ACAD",V14*'RATES-Non Fed'!$M$44,V14*'RATES-Non Fed'!$M$45)) -> 0 | X14: 0 | Y14: 0
B15: Co | D15: ACAD | E15: 0 | F15: 0 | G15: 0 | J15: =IF($D15="CAL",ROUND(($G15*(1+'Salary Inflation'!$B$30))*$E15,0),IF($D15="ACAD",($G15/0.9965)*(1+'Salary Inflation'!$B$31)*$E15,IF($D15="SUMR",($G15)*(1+'Salary Inflation'!$B$32)*$E15,"NA"))) -> 0 | K15: =IF(D15="CAL",ROUND(J15*'RATES-Non Fed'!$E$38,0),IF(D15="ACAD",J15*'RATES-Non Fed'!$E$44,J15*'RATES-Non Fed'!$E$45)) -> 0 | L15: 0 | M15: =IF($D15="CAL",ROUND((J15*(1+'Salary Inflation'!$C$30)),0),IF($D15="ACAD",(J15)*(1+'Salary Inflation'!$C$31),IF($D15="SUMR",(J15)*(1+'Salary Inflation'!$C$32),"NA"))) -> 0 | N15: =IF($D15="CAL",ROUND(M15*'RATES-Non Fed'!$G$38,0),IF($D15="ACAD",M15*'RATES-Non Fed'!$G$44,M15*'RATES-Non Fed'!$G$45)) -> 0 | O15: 0 | P15: =IF($D15="CAL",ROUND((M15*(1+'Salary Inflation'!$D$30)),0),IF($D15="ACAD",(M15)*(1+'Salary Inflation'!$D$31),IF($D15="SUMR",(M15)*(1+'Salary Inflation'!$D$32),"NA"))) -> 0 | Q15: =IF($D15="CAL",ROUND(P15*'RATES-Non Fed'!$I$38,0),IF($D15="ACAD",P15*'RATES-Non Fed'!$I$44,P15*'RATES-Non Fed'!$I$45)) -> 0 | R15: 0 | S15: =IF($D15="CAL",ROUND((P15*(1+'Salary Inflation'!$E$30)),0),IF($D15="ACAD",(P15)*(1+'Salary Inflation'!$E$31),IF($D15="SUMR",(P15)*(1+'Salary Inflation'!$E$32),"NA"))) -> 0 | T15: =IF($D15="CAL",ROUND(S15*'RATES-Non Fed'!$K$38,0),IF($D15="ACAD",S15*'RATES-Non Fed'!$K$44,S15*'RATES-Non Fed'!$K$45)) -> 0 | U15: 0 | V15: =IF($D15="CAL",ROUND((S15*(1+'Salary Inflation'!$F$30)),0),IF($D15="ACAD",(S15)*(1+'Salary Inflation'!$F$31),IF($D15="SUMR",(S15)*(1+'Salary Inflation'!$F$32),"NA"))) -> 0 | W15: =IF($D15="CAL",ROUND(V15*'RATES-Non Fed'!$M$38,0),IF($D15="ACAD",V15*'RATES-Non Fed'!$M$44,V15*'RATES-Non Fed'!$M$45)) -> 0 | X15: 0 | Y15: 0
D16: =IF(D15="ACAD",("SUMR"),"") -> SUMR | E16: 0 | F16: 0 | G16: =IF(D15="ACAD",+G15*0.428,0) -> 0 | J16: =IF($D16="CAL",ROUND(($G16*(1+'Salary Inflation'!$B$30))*$E16,0),IF($D16="ACAD",($G16/0.9965)*(1+'Salary Inflation'!$B$31)*$E16,IF($D16="SUMR",($G16)*(1+'Salary Inflation'!$B$32)*$E16,"NA"))) -> 0 | K16: =IF(D16="CAL",ROUND(J16*'RATES-Non Fed'!$E$38,0),IF(D16="ACAD",J16*'RATES-Non Fed'!$E$44,J16*'RATES-Non Fed'!$E$45)) -> 0 | L16: 0 | M16: =IF($D16="CAL",ROUND((J16*(1+'Salary Inflation'!$C$30)),0),IF($D16="ACAD",(J16)*(1+'Salary Inflation'!$C$31),IF($D16="SUMR",(J16)*(1+'Salary Inflation'!$C$32),"NA"))) -> 0 | N16: =IF($D16="CAL",ROUND(M16*'RATES-Non Fed'!$G$38,0),IF($D16="ACAD",M16*'RATES-Non Fed'!$G$44,M16*'RATES-Non Fed'!$G$45)) -> 0 | O16: 0 | P16: =IF($D16="CAL",ROUND((M16*(1+'Salary Inflation'!$D$30)),0),IF($D16="ACAD",(M16)*(1+'Salary Inflation'!$D$31),IF($D16="SUMR",(M16)*(1+'Salary Inflation'!$D$32),"NA"))) -> 0 | Q16: =IF($D16="CAL",ROUND(P16*'RATES-Non Fed'!$I$38,0),IF($D16="ACAD",P16*'RATES-Non Fed'!$I$44,P16*'RATES-Non Fed'!$I$45)) -> 0 | R16: 0 | S16: =IF($D16="CAL",ROUND((P16*(1+'Salary Inflation'!$E$30)),0),IF($D16="ACAD",(P16)*(1+'Salary Inflation'!$E$31),IF($D16="SUMR",(P16)*(1+'Salary Inflation'!$E$32),"NA"))) -> 0 | T16: =IF($D16="CAL",ROUND(S16*'RATES-Non Fed'!$K$38,0),IF($D16="ACAD",S16*'RATES-Non Fed'!$K$44,S16*'RATES-Non Fed'!$K$45)) -> 0 | U16: 0 | V16: =IF($D16="CAL",ROUND((S16*(1+'Salary Inflation'!$F$30)),0),IF($D16="ACAD",(S16)*(1+'Salary Inflation'!$F$31),IF($D16="SUMR",(S16)*(1+'Salary Inflation'!$F$32),"NA"))) -> 0 | W16: =IF($D16="CAL",ROUND(V16*'RATES-Non Fed'!$M$38,0),IF($D16="ACAD",V16*'RATES-Non Fed'!$M$44,V16*'RATES-Non Fed'!$M$45)) -> 0 | X16: 0 | Y16: 0
B17: Co | D17: CAL | E17: 0 | F17: 0 | G17: 0 | J17: =IF($D17="CAL",ROUND(($G17*(1+'Salary Inflation'!$B$30))*$E17,0),IF($D17="ACAD",($G17/0.9965)*(1+'Salary Inflation'!$B$31)*$E17,IF($D17="SUMR",($G17)*(1+'Salary Inflation'!$B$32)*$E17,"NA"))) -> 0 | K17: =IF(D17="CAL",ROUND(J17*'RATES-Non Fed'!$E$38,0),IF(D17="ACAD",J17*'RATES-Non Fed'!$E$44,J17*'RATES-Non Fed'!$E$45)) -> 0 | L17: 0 | M17: =IF($D17="CAL",ROUND((J17*(1+'Salary Inflation'!$C$30)),0),IF($D17="ACAD",(J17)*(1+'Salary Inflation'!$C$31),IF($D17="SUMR",(J17)*(1+'Salary Inflation'!$C$32),"NA"))) -> 0 | N17: =IF($D17="CAL",ROUND(M17*'RATES-Non Fed'!$G$38,0),IF($D17="ACAD",M17*'RATES-Non Fed'!$G$44,M17*'RATES-Non Fed'!$G$45)) -> 0 | O17: 0 | P17: =IF($D17="CAL",ROUND((M17*(1+'Salary Inflation'!$D$30)),0),IF($D17="ACAD",(M17)*(1+'Salary Inflation'!$D$31),IF($D17="SUMR",(M17)*(1+'Salary Inflation'!$D$32),"NA"))) -> 0 | Q17: =IF($D17="CAL",ROUND(P17*'RATES-Non Fed'!$I$38,0),IF($D17="ACAD",P17*'RATES-Non Fed'!$I$44,P17*'RATES-Non Fed'!$I$45)) -> 0 | R17: 0 | S17: =IF($D17="CAL",ROUND((P17*(1+'Salary Inflation'!$E$30)),0),IF($D17="ACAD",(P17)*(1+'Salary Inflation'!$E$31),IF($D17="SUMR",(P17)*(1+'Salary Inflation'!$E$32),"NA"))) -> 0 | T17: =IF($D17="CAL",ROUND(S17*'RATES-Non Fed'!$K$38,0),IF($D17="ACAD",S17*'RATES-Non Fed'!$K$44,S17*'RATES-Non Fed'!$K$45)) -> 0 | U17: 0 | V17: =IF($D17="CAL",ROUND((S17*(1+'Salary Inflation'!$F$30)),0),IF($D17="ACAD",(S17)*(1+'Salary Inflation'!$F$31),IF($D17="SUMR",(S17)*(1+'Salary Inflation'!$F$32),"NA"))) -> 0 | W17: =IF($D17="CAL",ROUND(V17*'RATES-Non Fed'!$M$38,0),IF($D17="ACAD",V17*'RATES-Non Fed'!$M$44,V17*'RATES-Non Fed'!$M$45)) -> 0 | X17: 0 | Y17: 0
B18: Co | D18: CAL | E18: 0 | F18: 0 | G18: 0 | J18: =IF($D18="CAL",ROUND(($G18*(1+'Salary Inflation'!$B$30))*$E18,0),IF($D18="ACAD",($G18/0.9965)*(1+'Salary Inflation'!$B$31)*$E18,IF($D18="SUMR",($G18)*(1+'Salary Inflation'!$B$32)*$E18,"NA"))) -> 0 | K18: =IF(D18="CAL",ROUND(J18*'RATES-Non Fed'!$E$38,0),IF(D18="ACAD",J18*'RATES-Non Fed'!$E$44,J18*'RATES-Non Fed'!$E$45)) -> 0 | L18: 0 | M18: =IF($D18="CAL",ROUND((J18*(1+'Salary Inflation'!$C$30)),0),IF($D18="ACAD",(J18)*(1+'Salary Inflation'!$C$31),IF($D18="SUMR",(J18)*(1+'Salary Inflation'!$C$32),"NA"))) -> 0 | N18: =IF($D18="CAL",ROUND(M18*'RATES-Non Fed'!$G$38,0),IF($D18="ACAD",M18*'RATES-Non Fed'!$G$44,M18*'RATES-Non Fed'!$G$45)) -> 0 | O18: 0 | P18: =IF($D18="CAL",ROUND((M18*(1+'Salary Inflation'!$D$30)),0),IF($D18="ACAD",(M18)*(1+'Salary Inflation'!$D$31),IF($D18="SUMR",(M18)*(1+'Salary Inflation'!$D$32),"NA"))) -> 0 | Q18: =IF($D18="CAL",ROUND(P18*'RATES-Non Fed'!$I$38,0),IF($D18="ACAD",P18*'RATES-Non Fed'!$I$44,P18*'RATES-Non Fed'!$I$45)) -> 0 | R18: 0 | S18: =IF($D18="CAL",ROUND((P18*(1+'Salary Inflation'!$E$30)),0),IF($D18="ACAD",(P18)*(1+'Salary Inflation'!$E$31),IF($D18="SUMR",(P18)*(1+'Salary Inflation'!$E$32),"NA"))) -> 0 | T18: =IF($D18="CAL",ROUND(S18*'RATES-Non Fed'!$K$38,0),IF($D18="ACAD",S18*'RATES-Non Fed'!$K$44,S18*'RATES-Non Fed'!$K$45)) -> 0 | U18: 0 | V18: =IF($D18="CAL",ROUND((S18*(1+'Salary Inflation'!$F$30)),0),IF($D18="ACAD",(S18)*(1+'Salary Inflation'!$F$31),IF($D18="SUMR",(S18)*(1+'Salary Inflation'!$F$32),"NA"))) -> 0 | W18: =IF($D18="CAL",ROUND(V18*'RATES-Non Fed'!$M$38,0),IF($D18="ACAD",V18*'RATES-Non Fed'!$M$44,V18*'RATES-Non Fed'!$M$45)) -> 0 | X18: 0 | Y18: 0
D19: AAUP Faculty Subtotal : | J19: =SUM(J11:J18) -> 0 | K19: 0 | L19: 0 | M19: 0 | N19: 0 | O19: 0 | P19: 0 | Q19: 0 | R19: 0 | S19: 0 | T19: 0 | U19: 0 | V19: =SUM(V11:V18) -> 0 | W19: =SUM(W11:W18) -> 0 | X19: =SUM(X11:X18) -> 0 | Y19: =SUM(Y11:Y18) -> 0
A20: B | B20: Dual Compensation Faculty
B21: Co | D21: CAL | E21: 0 | F21: =IF(D21="CAL",(52*E21/4.3333),(IF(D21="ACAD",(32*E21/4.33333),IF(D21="SUMR",(14*E21/4.33333),IF(D21="PT",(0),0))))) -> 0 | G21: 0 | J21: =ROUND(($G21*(1+'Salary Inflation'!$B$34))*$E21,0) -> 0 | K21: =ROUND(J21*'RATES-Non Fed'!E40,0) -> 0 | L21: =ROUND(K21+J21,0) -> 0 | M21: =ROUND(J21*(1+'Salary Inflation'!$C$34),0) -> 0 | N21: =ROUND(M21*'RATES-Non Fed'!G40,0) -> 0 | O21: =ROUND(M21+N21,0) -> 0 | P21: =ROUND((M21*1.02),0) -> 0 | Q21: =ROUND(P21*'RATES-Non Fed'!I40,0) -> 0 | R21: =ROUND(P21+Q21,0) -> 0 | S21: =ROUND(P21*(1+'Salary Inflation'!$C$34),0) -> 0 | T21: =ROUND(S21*'RATES-Non Fed'!K40,0) -> 0 | U21: =SUM(S21:T21) -> 0 | V21: =ROUND(S21*(1+'Salary Inflation'!$C$34),0) -> 0 | W21: =ROUND(V21*'RATES-Non Fed'!M40,0) -> 0 | X21: =SUM(V21:W21) -> 0 | Y21: =SUM(L21+O21+R21+U21+X21) -> 0
B22: Co | D22: CAL | E22: 0 | F22: =IF(D22="CAL",(52*E22/4.3333),(IF(D22="ACAD",(32*E22/4.33333),IF(D22="SUMR",(14*E22/4.33333),IF(D22="PT",(0),0))))) -> 0 | G22: 0 | J22: =ROUND(($G22*(1+'Salary Inflation'!$B$34))*$E22,0) -> 0 | K22: =ROUND(J22*'RATES-Non Fed'!E40,0) -> 0 | L22: =ROUND(K22+J22,0) -> 0 | M22: =ROUND(J22*(1+'Salary Inflation'!$C$34),0) -> 0 | N22: =ROUND(M22*'RATES-Non Fed'!G40,0) -> 0 | O22: =ROUND(M22+N22,0) -> 0 | P22: =ROUND((M22*1.02),0) -> 0 | Q22: =ROUND(P22*'RATES-Non Fed'!I40,0) -> 0 | R22: =ROUND(P22+Q22,0) -> 0 | S22: =ROUND(P22*(1+'Salary Inflation'!$C$34),0) -> 0 | T22: =ROUND(S22*'RATES-Non Fed'!K40,0) -> 0 | U22: =SUM(S22:T22) -> 0 | V22: =ROUND(S22*(1+'Salary Inflation'!$C$34),0) -> 0 | W22: =ROUND(V22*'RATES-Non Fed'!M40,0) -> 0 | X22: =SUM(V22:W22) -> 0 | Y22: =SUM(L22+O22+R22+U22+X22) -> 0
B23: Co | D23: CAL | E23: 0 | F23: =IF(D23="CAL",(52*E23/4.3333),(IF(D23="ACAD",(32*E23/4.33333),IF(D23="SUMR",(14*E23/4.33333),IF(D23="PT",(0),0))))) -> 0 | G23: 0 | J23: =ROUND(($G23*(1+'Salary Inflation'!$B$34))*$E23,0) -> 0 | K23: =ROUND(J23*'RATES-Non Fed'!E40,0) -> 0 | L23: =ROUND(K23+J23,0) -> 0 | M23: =ROUND(J23*(1+'Salary Inflation'!$C$34),0) -> 0 | N23: =ROUND(M23*'RATES-Non Fed'!G40,0) -> 0 | O23: =ROUND(M23+N23,0) -> 0 | P23: =ROUND((M23*1.02),0) -> 0 | Q23: =ROUND(P23*'RATES-Non Fed'!I40,0) -> 0 | R23: =ROUND(P23+Q23,0) -> 0 | S23: =ROUND(P23*(1+'Salary Inflation'!$C$34),0) -> 0 | T23: =ROUND(S23*'RATES-Non Fed'!K40,0) -> 0 | U23: =SUM(S23:T23) -> 0 | V23: =ROUND(S23*(1+'Salary Inflation'!$C$34),0) -> 0 | W23: =ROUND(V23*'RATES-Non Fed'!M40,0) -> 0 | X23: =SUM(V23:W23) -> 0 | Y23: =SUM(L23+O23+R23+U23+X23) -> 0
B24: Co | D24: CAL | E24: 0 | F24: =IF(D24="CAL",(52*E24/4.3333),(IF(D24="ACAD",(32*E24/4.33333),IF(D24="SUMR",(14*E24/4.33333),IF(D24="PT",(0),0))))) -> 0 | G24: 0 | J24: =ROUND(($G24*(1+'Salary Inflation'!$B$34))*$E24,0) -> 0 | K24: =ROUND(J24*'RATES-Non Fed'!E40,0) -> 0 | L24: =ROUND(K24+J24,0) -> 0 | M24: =ROUND(J24*(1+'Salary Inflation'!$C$34),0) -> 0 | N24: =ROUND(M24*'RATES-Non Fed'!G40,0) -> 0 | O24: =ROUND(M24+N24,0) -> 0 | P24: =ROUND((M24*1.02),0) -> 0 | Q24: =ROUND(P24*'RATES-Non Fed'!I40,0) -> 0 | R24: =ROUND(P24+Q24,0) -> 0 | S24: =ROUND(P24*(1+'Salary Inflation'!$C$34),0) -> 0 | T24: =ROUND(S24*'RATES-Non Fed'!K40,0) -> 0 | U24: =SUM(S24:T24) -> 0 | V24: =ROUND(S24*(1+'Salary Inflation'!$C$34),0) -> 0 | W24: =ROUND(V24*'RATES-Non Fed'!M40,0) -> 0 | X24: =SUM(V24:W24) -> 0 | Y24: =SUM(L24+O24+R24+U24+X24) -> 0
D25: Dual Comp Faculty Subtotal : | J25: =SUM(J21:J24) -> 0 | K25: 0 | L25: 0 | M25: 0 | N25: 0 | O25: 0 | P25: 0 | Q25: 0 | R25: 0 | S25: 0 | T25: 0 | U25: =SUM(U21:U24) -> 0 | V25: =SUM(V21:V24) -> 0 | W25: =SUM(W21:W24) -> 0 | X25: =SUM(X21:X24) -> 0 | Y25: =SUM(Y21:Y24) -> 0
A27: C. | B27: Other Personnel
C28: Exempt Staff (Monthly) | D28: Name
E29: 0 | F29: =SUM(52*E29/4.3333) -> 0 | G29: 0 | J29: =ROUND(($G29*(1+'Salary Inflation'!$B$33))*$E29,0) -> 0 | K29: =ROUND(J29*'RATES-Non Fed'!$E$39,0) -> 0 | L29: =SUM(J29:K29) -> 0 | M29: =ROUND(J29*(1+'Salary Inflation'!$C$33),0) -> 0 | N29: =ROUND(M29*'RATES-Non Fed'!$E$39,0) -> 0 | O29: =SUM(M29:N29) -> 0 | P29: =ROUND(M29*(1+'Salary Inflation'!$D$33),0) -> 0 | Q29: =ROUND(P29*'RATES-Non Fed'!$E$39,0) -> 0 | R29: =SUM(P29:Q29) -> 0 | S29: =ROUND(P29*(1+'Salary Inflation'!$E$33),0) -> 0 | T29: =ROUND(S29*'RATES-Non Fed'!$E$39,0) -> 0 | U29: =SUM(S29:T29) -> 0 | V29: =ROUND(S29*(1+'Salary Inflation'!$F$33),0) -> 0 | W29: =ROUND(V29*'RATES-Non Fed'!M39,0) -> 0 | X29: =SUM(V29:W29) -> 0 | Y29: =SUM(L29+O29+R29+U29+X29) -> 0
E30: 0 | F30: =SUM(52*E30/4.3333) -> 0 | G30: 0 | J30: =ROUND(($G30*(1+'Salary Inflation'!$B$33))*$E30,0) -> 0 | K30: =ROUND(J30*'RATES-Non Fed'!$E$39,0) -> 0 | L30: =SUM(J30:K30) -> 0 | M30: =ROUND(J30*(1+'Salary Inflation'!$C$33),0) -> 0 | N30: =ROUND(M30*'RATES-Non Fed'!$E$39,0) -> 0 | O30: =SUM(M30:N30) -> 0 | P30: =ROUND(M30*(1+'Salary Inflation'!$D$33),0) -> 0 | Q30: =ROUND(P30*'RATES-Non Fed'!$E$39,0) -> 0 | R30: =SUM(P30:Q30) -> 0 | S30: =ROUND(P30*(1+'Salary Inflation'!$E$33),0) -> 0 | T30: =ROUND(S30*'RATES-Non Fed'!$E$39,0) -> 0 | U30: =SUM(S30:T30) -> 0 | V30: =ROUND(S30*(1+'Salary Inflation'!$F$33),0) -> 0 | W30: =ROUND(V30*'RATES-Non Fed'!M39,0) -> 0 | X30: =SUM(V30:W30) -> 0 | Y30: =SUM(L30+O30+R30+U30+X30) -> 0
E31: 0 | F31: =SUM(52*E31/4.3333) -> 0 | G31: 0 | J31: =ROUND(($G31*(1+'Salary Inflation'!$B$33))*$E31,0) -> 0 | K31: =ROUND(J31*'RATES-Non Fed'!$E$39,0) -> 0 | L31: =SUM(J31:K31) -> 0 | M31: =ROUND(J31*(1+'Salary Inflation'!$C$33),0) -> 0 | N31: =ROUND(M31*'RATES-Non Fed'!$E$39,0) -> 0 | O31: =SUM(M31:N31) -> 0 | P31: =ROUND(M31*(1+'Salary Inflation'!$D$33),0) -> 0 | Q31: =ROUND(P31*'RATES-Non Fed'!$E$39,0) -> 0 | R31: =SUM(P31:Q31) -> 0 | S31: =ROUND(P31*(1+'Salary Inflation'!$E$33),0) -> 0 | T31: =ROUND(S31*'RATES-Non Fed'!$E$39,0) -> 0 | U31: =SUM(S31:T31) -> 0 | V31: =ROUND(S31*(1+'Salary Inflation'!$F$33),0) -> 0 | W31: =ROUND(V31*'RATES-Non Fed'!M39,0) -> 0 | X31: =SUM(V31:W31) -> 0 | Y31: =SUM(L31+O31+R31+U31+X31) -> 0
D32: Total Exempt Staff | J32: =SUM(J29:J31) -> 0 | K32: 0 | L32: 0 | M32: 0 | N32: 0 | O32: 0 | P32: 0 | Q32: 0 | R32: 0 | S32: 0 | T32: 0 | U32: 0 | V32: 0 | W32: =SUM(W29:W31) -> 0 | X32: =SUM(X29:X31) -> 0 | Y32: =SUM(Y29:Y31) -> 0
C34: Post Doctoral Support | E34: 0 | F34: =SUM(52*E34/4.3333) -> 0 | G34: 0 | J34: =ROUND(($G34*(1+'Salary Inflation'!$B$33))*$E34,0) -> 0 | K34: =ROUND(J34*'RATES-Non Fed'!$E$43,0) -> 0 | L34: =SUM(J34:K34) -> 0 | M34: =ROUND(J34*(1+'Salary Inflation'!$C$33),0) -> 0 | N34: =ROUND(M34*'RATES-Non Fed'!$E$43,0) -> 0 | O34: =SUM(M34:N34) -> 0 | P34: =ROUND(M34*(1+'Salary Inflation'!$D$33),0) -> 0 | Q34: =ROUND(P34*'RATES-Non Fed'!$E$43,0) -> 0 | R34: =SUM(P34:Q34) -> 0 | S34: =ROUND(P34*(1+'Salary Inflation'!$E$33),0) -> 0 | T34: =ROUND(S34*'RATES-Non Fed'!$E$43,0) -> 0 | U34: =SUM(S34:T34) -> 0 | V34: =ROUND(S34*(1+'Salary Inflation'!$F$33),0) -> 0 | W34: =ROUND(V34*'RATES-Non Fed'!M43,0) -> 0 | X34: =SUM(V34:W34) -> 0 | Y34: =SUM(L34+O34+R34+U34+X34) -> 0
C35: Graduate Students | E35: 0 | F35: =SUM(52*E35/4.3333) -> 0 | G35: 0 | J35: =ROUND(($G35*(1+'Salary Inflation'!$B$33))*$E35,0) -> 0 | K35: =ROUND(J35*'RATES-Non Fed'!E42,0) -> 0 | L35: =SUM(J35:K35) -> 0 | M35: =ROUND(J35*(1+'Salary Inflation'!$C$33),0) -> 0 | N35: =ROUND(M35*'RATES-Non Fed'!H42,0) -> 0 | O35: =SUM(M35:N35) -> 0 | P35: =ROUND(M35*(1+'Salary Inflation'!$D$33),0) -> 0 | Q35: =ROUND(P35*'RATES-Non Fed'!K42,0) -> 0 | R35: =SUM(P35:Q35) -> 0 | S35: =ROUND(P35*(1+'Salary Inflation'!$E$33),0) -> 0 | T35: =ROUND(S35*'RATES-Non Fed'!N42,0) -> 0 | U35: =SUM(S35:T35) -> 0 | V35: =ROUND((S35*1.02),0) -> 0 | W35: =ROUND(V35*'RATES-Non Fed'!M42,0) -> 0 | X35: =SUM(V35:W35) -> 0 | Y35: =SUM(L35+O35+R35+U35+X35) -> 0
C36: Undergrad Students | E36: 0 | F36: =SUM(52*E36/4.3333) -> 0 | G36: 0 | J36: =ROUND(($G36*(1+'Salary Inflation'!$B$33))*$E36,0) -> 0 | K36: =ROUND(J36*'RATES-Non Fed'!E42,0) -> 0 | L36: =SUM(J36:K36) -> 0 | M36: =ROUND(J36*(1+'Salary Inflation'!$C$33),0) -> 0 | N36: =ROUND(M36*'RATES-Non Fed'!H42,0) -> 0 | O36: =SUM(M36:N36) -> 0 | P36: =ROUND(M36*(1+'Salary Inflation'!$D$33),0) -> 0 | Q36: =ROUND(P36*'RATES-Non Fed'!K42,0) -> 0 | R36: =SUM(P36:Q36) -> 0 | S36: =ROUND(P36*(1+'Salary Inflation'!$E$33),0) -> 0 | T36: =ROUND(S36*'RATES-Non Fed'!N42,0) -> 0 | U36: =SUM(S36:T36) -> 0 | V36: =ROUND(S36*(1+'Salary Inflation'!$F$33),0) -> 0 | W36: =ROUND(V36*'RATES-Non Fed'!M42,0) -> 0 | X36: =SUM(V36:W36) -> 0 | Y36: =SUM(L36+O36+R36+U36+X36) -> 0
C37: Part-time Faculty/Staff | E37: 0 | F37: =SUM(52*E37/4.3333) -> 0 | G37: 0 | J37: =ROUND(($G37*(1+'Salary Inflation'!$B$33))*$E37,0) -> 0 | K37: =ROUND(J37*'RATES-Non Fed'!E43,0) -> 0 | L37: =SUM(J37:K37) -> 0 | M37: =ROUND(J37*(1+'Salary Inflation'!$C$33),0) -> 0 | N37: =ROUND(M37*'RATES-Non Fed'!H43,0) -> 0 | O37: =SUM(M37:N37) -> 0 | P37: =ROUND(M37*(1+'Salary Inflation'!$D$33),0) -> 0 | Q37: =ROUND(P37*'RATES-Non Fed'!K43,0) -> 0 | R37: =SUM(P37:Q37) -> 0 | S37: =ROUND(P37*(1+'Salary Inflation'!$E$33),0) -> 0 | T37: =ROUND(S37*'RATES-Non Fed'!N43,0) -> 0 | U37: =SUM(S37:T37) -> 0 | V37: =ROUND(S37*(1+'Salary Inflation'!$F$33),0) -> 0 | W37: =ROUND(V37*'RATES-Non Fed'!M43,0) -> 0 | X37: =SUM(V37:W37) -> 0 | Y37: =SUM(L37+O37+R37+U37+X37) -> 0
C38: Non-Exempt Staff (Bi-Weekly) | E38: 0 | F38: =SUM(52*E38/4.3333) -> 0 | G38: 0 | J38: =ROUND(($G38*(1+'Salary Inflation'!$B$33))*$E38,0) -> 0 | K38: =ROUND(J38*'RATES-Non Fed'!E41,0) -> 0 | L38: =SUM(J38:K38) -> 0 | M38: =ROUND(J38*(1+'Salary Inflation'!$C$33),0) -> 0 | N38: =ROUND(M38*'RATES-Non Fed'!H41,0) -> 0 | O38: =SUM(M38:N38) -> 0 | P38: =ROUND(M38*(1+'Salary Inflation'!$D$33),0) -> 0 | Q38: =ROUND(P38*'RATES-Non Fed'!K41,0) -> 0 | R38: =SUM(P38:Q38) -> 0 | S38: =ROUND(P38*(1+'Salary Inflation'!$E$33),0) -> 0 | T38: =ROUND(S38*'RATES-Non Fed'!N41,0) -> 0 | U38: =SUM(S38:T38) -> 0 | V38: =ROUND(S38*(1+'Salary Inflation'!$F$33),0) -> 0 | W38: =ROUND(V38*'RATES-Non Fed'!M41,0) -> 0 | X38: =SUM(V38:W38) -> 0 | Y38: =SUM(L38+O38+R38+U38+X38) -> 0
D39: Sub Totals | J39: =SUM(J19+J25+J32+J34+J35+J36+J37+J38) -> 0 | K39: 0 | L39: 0 | M39: 0 | N39: 0 | O39: 0 | P39: 0 | Q39: 0 | R39: 0 | S39: 0 | T39: 0 | U39: 0 | V39: =SUM(V19+V25+V32+V34+V35+V36+V37+V38) -> 0 | W39: =SUM(W19+W25+W32+W34+W35+W36+W37+W38) -> 0 | X39: =SUM(X19+X25+X32+X34+X35+X36+X37+X38) -> 0 | Y39: =SUM(Y34:Y38) -> 0
A41: Total Salaries and Fringe Benefits : | J41: =SUM(J39+K39) -> 0 | M41: =SUM(M39+N39) -> 0 | P41: =SUM(P39+Q39) -> 0 | S41: =SUM(S39+T39) -> 0 | V41: =SUM(V39+W39) -> 0 | Y41: =SUM(J41+M41+P41+S41+V41) -> 0
A43: D. | B43: Equipment
C44: (list) | J44: 0 | M44: 0 | P44: 0 | S44: 0 | V44: 0 | Y44: =+J44+M44+P44+S44+V44 -> 0
C45: (list) | J45: 0 | M45: 0 | P45: 0 | S45: 0 | V45: 0 | Y45: =+J45+M45+P45+S45+V45 -> 0
C46: Total Equipment : | J46: =SUM(J44:J45) -> 0 | M46: =SUM(M44:M45) -> 0 | P46: =SUM(P44:P45) -> 0 | S46: =SUM(S44:S45) -> 0 | V46: =SUM(V44:V45) -> 0 | Y46: =SUM(Y44:Y45) -> 0
A48: E. | B48: Travel
C49: Domestic | D49: (list) | J49: 0 | M49: =ROUND((J49*1.02),0) -> 0 | P49: =ROUND((M49*1.02),0) -> 0 | S49: =ROUND((P49*1.02),0) -> 0 | V49: =ROUND((S49*1.02),0) -> 0 | Y49: =+J49+M49+P49+S49+V49 -> 0
C50: International | D50: (list) | J50: 0 | M50: =ROUND((J50*1.02),0) -> 0 | P50: =ROUND((M50*1.02),0) -> 0 | S50: =ROUND((P50*1.02),0) -> 0 | V50: =ROUND((S50*1.02),0) -> 0 | Y50: =+J50+M50+P50+S50+V50 -> 0
C51: Total Travel : | J51: =SUM(J49:J50) -> 0 | M51: =SUM(M49:M50) -> 0 | P51: =SUM(P49:P50) -> 0 | S51: =SUM(S49:S50) -> 0 | V51: =SUM(V49:V50) -> 0 | Y51: =SUM(Y49:Y50) -> 0
A53: G. | B53: Supplies and Other Direct Costs
C54: Materials & Supplies | J54: 0 | M54: =ROUND((J54*1.02),0) -> 0 | P54: =ROUND((M54*1.02),0) -> 0 | S54: =ROUND((P54*1.02),0) -> 0 | V54: =ROUND((S54*1.02),0) -> 0 | Y54: =+J54+M54+P54+S54+V54 -> 0
C55: Publication Costs | J55: 0 | M55: =ROUND((J55*1.02),0) -> 0 | P55: =ROUND((M55*1.02),0) -> 0 | S55: =ROUND((P55*1.02),0) -> 0 | V55: =ROUND((S55*1.02),0) -> 0 | Y55: 0
C56: Consultant Services | J56: 0 | M56: 0 | P56: 0 | S56: 0 | V56: 0 | Y56: 0
C57: Subject Incentives | J57: 0 | M57: 0 | P57: 0 | S57: 0 | V57: 0 | Y57: 0
C58: UC Tuition for Trainees/Fellows | J58: 0 | M58: 0 | P58: 0 | S58: 0 | V58: 0 | Y58: 0
C59: UC Tuition on Research Projects | J59: 0 | M59: =ROUND((J59*1.02),0) -> 0 | P59: =ROUND((M59*1.02),0) -> 0 | S59: =ROUND((P59*1.02),0) -> 0 | V59: =ROUND((S59*1.02),0) -> 0 | Y59: =+J59+M59+P59+S59+V59 -> 0
C60: Lab Expenses | J60: 0 | M60: 0 | P60: 0 | S60: 0 | V60: 0 | Y60: 0
C61: Other (Analytical Services/Instrument Use) | J61: 0 | M61: 0 | P61: 0 | S61: 0 | V61: 0 | Y61: 0
C62: Subcontracts 1) | J62: 0 | M62: 0 | P62: 0 | S62: 0 | V62: 0 | Y62: 0
C63: 2) | J63: 0 | M63: 0 | P63: 0 | S63: 0 | V63: 0 | Y63: 0
C64: 3) | J64: 0 | M64: 0 | P64: 0 | S64: 0 | V64: 0 | Y64: 0
C65: 4) | J65: 0 | M65: 0 | P65: 0 | S65: 0 | V65: 0 | Y65: 0
A66: Total Supplies and Other Direct Costs : | J66: =SUM(J54:J65) -> 0 | M66: =SUM(M54:M65) -> 0 | P66: =SUM(P54:P65) -> 0 | S66: =SUM(S54:S65) -> 0 | V66: =SUM(V54:V65) -> 0 | Y66: =SUM(Y54:Y65) -> 0
E68: TOTAL DIRECT COSTS: | J68: =ROUND(+J66+J51+J46+J41,0) -> 0 | M68: =ROUND(+M66+M51+M46+M41,0) -> 0 | P68: =ROUND(+P66+P51+P46+P41,0) -> 0 | S68: =ROUND(+S66+S51+S46+S41,0) -> 0 | V68: =ROUND(+V66+V51+V46+V41,0) -> 0 | Y68: =+J68+M68+P68+S68+V68 -> 0
H70: Facilities and Administrative Cost Base: | J70: =J68 -> 0 | M70: =M68 -> 0 | P70: =P68 -> 0 | S70: =S68 -> 0 | V70: =V68 -> 0 | Y70: =+J70+M70+P70+S70+V70 -> 0
A71: Facilities and Administrative Costs Calculation:
A72: F&A Cost (on MTDC): | D72: =IF(AND(($E$79)="R",($E$81)="C"),('RATES-Non Fed'!E48),IF(AND(($E$79)="R",($E$81)="O"),('RATES-Non Fed'!E53),IF(AND(($E$79)="I",($E$81)="C"),('RATES-Non Fed'!E49),IF(AND(($E$79)="I",($E$81)="O"),('RATES-Non Fed'!E54),IF(AND(($E$79)="P",($E$81)="C"),('RATES-Non Fed'!E50),IF(AND(($E$79)="P",($E$81)="O"),('RATES-Non Fed'!E55),($E$80))))))) -> 0.62 | E72: =IF(AND(($E$79)="R",($E$81)="C"),('RATES-Non Fed'!G48),IF(AND(($E$79)="R",($E$81)="O"),('RATES-Non Fed'!G53),IF(AND(($E$79)="I",($E$81)="C"),('RATES-Non Fed'!G49),IF(AND(($E$79)="I",($E$81)="O"),('RATES-Non Fed'!G54),IF(AND(($E$79)="P",($E$81)="C"),('RATES-Non Fed'!G50),IF(AND(($E$79)="P",($E$81)="O"),('RATES-Non Fed'!G55),($E$80))))))) -> 0.62 | F72: =IF(AND(($E$79)="R",($E$81)="C"),('RATES-Non Fed'!I48),IF(AND(($E$79)="R",($E$81)="O"),('RATES-Non Fed'!I53),IF(AND(($E$79)="I",($E$81)="C"),('RATES-Non Fed'!I49),IF(AND(($E$79)="I",($E$81)="O"),('RATES-Non Fed'!I54),IF(AND(($E$79)="P",($E$81)="C"),('RATES-Non Fed'!I50),IF(AND(($E$79)="P",($E$81)="O"),('RATES-Non Fed'!I55),($E$80))))))) -> 0.62 | G72: =IF(AND(($E$79)="R",($E$81)="C"),('RATES-Non Fed'!K48),IF(AND(($E$79)="R",($E$81)="O"),('RATES-Non Fed'!K53),IF(AND(($E$79)="I",($E$81)="C"),('RATES-Non Fed'!K49),IF(AND(($E$79)="I",($E$81)="O"),('RATES-Non Fed'!K54),IF(AND(($E$79)="P",($E$81)="C"),('RATES-Non Fed'!K50),IF(AND(($E$79)="P",($E$81)="O"),('RATES-Non Fed'!K55),($E$80))))))) -> 0.62 | H72: =IF(AND(($E$79)="R",($E$81)="C"),('RATES-Non Fed'!I48),IF(AND(($E$79)="R",($E$81)="O"),('RATES-Non Fed'!I53),IF(AND(($E$79)="I",($E$81)="C"),('RATES-Non Fed'!I49),IF(AND(($E$79)="I",($E$81)="O"),('RATES-Non Fed'!I54),IF(AND(($E$79)="P",($E$81)="C"),('RATES-Non Fed'!I50),IF(AND(($E$79)="P",($E$81)="O"),('RATES-Non Fed'!I55),($E$80))))))) -> 0.62 | J72: =+J70*D72 -> 0 | M72: =+M70*E72 -> 0 | P72: =+P70*F72 -> 0 | S72: =+S70*G72 -> 0 | V72: =+V70*H72 -> 0 | Y72: =+J72+M72+P72+S72+V72 -> 0
A73: Total F&A Cost : | J73: =SUM(J72:J72) -> 0 | M73: =SUM(M72:M72) -> 0 | P73: =SUM(P72:P72) -> 0 | S73: =SUM(S72:S72) -> 0 | V73: =SUM(V72:V72) -> 0 | Y73: =SUM(Y72:Y72) -> 0
C75: Total Cost | J75: =J73+J68 -> 0 | M75: =M73+M68 -> 0 | P75: =P73+P68 -> 0 | S75: =S73+S68 -> 0 | V75: =V73+V68 -> 0 | Y75: =+J75+M75+P75+S75+V75 -> 0
C78: Facilities and Administrative Data
C79: Purpose of Grant / Contract : | E79: R | G79: (R = Research, I = Instruction, P = Public Service, S = Special Rate on Total Costs)
C80: Special F&A Rate : | E80: 0.1
C81: Campus Status : | E81: C | G81: (C = On Campus, O = Off Campus)
D83: Detailed F&A figures for prorated rates | H83: =+'RATES-Non Fed'!E31 -> 0.62 | J83: =J73/12*'RATES-Non Fed'!$C$48 -> 0 | L83: =+'RATES-Non Fed'!G31 -> 0.62 | M83: =M73/12*'RATES-Non Fed'!$C$48 -> 0 | O83: =+'RATES-Non Fed'!I31 -> 0.62 | P83: =P73/12*'RATES-Non Fed'!$C$48 -> 0 | R83: =+'RATES-Non Fed'!K31 -> 0.62 | S83: =S73/12*'RATES-Non Fed'!$C$48 -> 0 | T83: =+'RATES-Non Fed'!M31 -> 0.62 | U83: =U73/12*'RATES-Non Fed'!$C$48 -> 0
D84: *If both lines have the same rate, then just list as one line on forms. | H84: =+'RATES-Non Fed'!G31 -> 0.62 | J84: =J73/12*'RATES-Non Fed'!$D$48 -> 0 | L84: =+'RATES-Non Fed'!I31 -> 0.62 | M84: =M73/12*'RATES-Non Fed'!$D$48 -> 0 | O84: =+'RATES-Non Fed'!K31 -> 0.62 | P84: =P73/12*'RATES-Non Fed'!$D$48 -> 0 | R84: =+'RATES-Non Fed'!M31 -> 0.62 | S84: =S73/12*'RATES-Non Fed'!$D$48 -> 0 | T84: =+'RATES-Non Fed'!O31 -> 0.62 | U84: =U73/12*'RATES-Non Fed'!$D$48 -> 0
J85: =SUM(J83:J84) -> 0 | M85: =SUM(M83:M84) -> 0 | P85: =SUM(P83:P84) -> 0 | S85: =SUM(S83:S84) -> 0 | U85: =SUM(U83:U84) -> 0

Sheet RATES-Non Fed
B2: Budget Period : | E2: 2024-01-01 | G2: 1930-12-31
B3: Budget Initiation Date (TODAY'S DATE): | E3: 2024-01-01
E5: =X16 -> FY24 | G5: =Z16 -> FY25 | I5: =AB16 -> FY26 | K5: =AD16 -> FY27 | M5: =AF16 -> FY28 | O5: =AH16 -> FY29 | Q5: =AJ16 -> FY30
B6: Fringe Benefit Rates | E6: ="7/"&RIGHT(TEXT(W15,"0"),2)&"-6/"&RIGHT(E5,2) -> 7/23-6/24 | G6: ="7/"&RIGHT(E5,2)&"-6/"&RIGHT(G5,2) -> 7/24-6/25 | I6: ="7/"&RIGHT(G5,2)&"-6/"&RIGHT(I5,2) -> 7/25-6/26 | K6: ="7/"&RIGHT(I5,2)&"-6/"&RIGHT(K5,2) -> 7/26-6/27 | M6: ="7/"&RIGHT(K5,2)&"-6/"&RIGHT(M5,2) -> 7/27-6/28 | O6: ="7/"&RIGHT(M5,2)&"-6/"&RIGHT(O5,2) -> 7/28-6/29 | Q6: ="7/"&RIGHT(O5,2)&"-6/"&RIGHT(Q5,2) -> 7/29-6/30
B7: Faculty (AAUP) | E7: =HLOOKUP(E$5,$AM$13:$AW$19,2,FALSE) -> 0.307 | G7: =HLOOKUP(G$5,$AM$13:$AW$19,2,FALSE) -> 0.308 | I7: =HLOOKUP(I$5,$AM$13:$AW$19,2,FALSE) -> 0.312 | K7: =HLOOKUP(K$5,$AM$13:$AW$19,2,FALSE) -> 0.314 | M7: =HLOOKUP(M$5,$AM$13:$AW$19,2,FALSE) -> 0.317 | O7: =HLOOKUP(O$5,$AM$13:$AW$19,2,FALSE) -> 0.319 | Q7: =HLOOKUP(Q$5,$AM$13:$AW$19,2,FALSE) -> 0.322
B8: Exmpt Staff (Mnthly)/ | E8: =HLOOKUP(E$5,$AM$13:$AW$19,3,FALSE) -> 0.405 | G8: =HLOOKUP(G$5,$AM$13:$AW$19,3,FALSE) -> 0.351 | I8: =HLOOKUP(I$5,$AM$13:$AW$19,3,FALSE) -> 0.364 | K8: =HLOOKUP(K$5,$AM$13:$AW$19,3,FALSE) -> 0.367 | M8: =HLOOKUP(M$5,$AM$13:$AW$19,3,FALSE) -> 0.37 | O8: =HLOOKUP(O$5,$AM$13:$AW$19,3,FALSE) -> 0.373 | Q8: =HLOOKUP(Q$5,$AM$13:$AW$19,3,FALSE) -> 0.376
B9: Dual Comp Faculty | E9: =HLOOKUP(E$5,$AM$13:$AW$19,4,FALSE) -> 0.457 | G9: =HLOOKUP(G$5,$AM$13:$AW$19,4,FALSE) -> 0.425 | I9: =HLOOKUP(I$5,$AM$13:$AW$19,4,FALSE) -> 0.442 | K9: =HLOOKUP(K$5,$AM$13:$AW$19,4,FALSE) -> 0.454 | M9: =HLOOKUP(M$5,$AM$13:$AW$19,4,FALSE) -> 0.467 | O9: =HLOOKUP(O$5,$AM$13:$AW$19,4,FALSE) -> 0.481 | Q9: =HLOOKUP(Q$5,$AM$13:$AW$19,4,FALSE) -> 0.495
B10: NonExempt Staff (Bi-Weekly) | E10: =HLOOKUP(E$5,$AM$13:$AW$19,5,FALSE) -> 0.437 | G10: =HLOOKUP(G$5,$AM$13:$AW$19,5,FALSE) -> 0.548 | I10: =HLOOKUP(I$5,$AM$13:$AW$19,5,FALSE) -> 0.49 | K10: =HLOOKUP(K$5,$AM$13:$AW$19,5,FALSE) -> 0.495 | M10: =HLOOKUP(M$5,$AM$13:$AW$19,5,FALSE) -> 0.5 | O10: =HLOOKUP(O$5,$AM$13:$AW$19,5,FALSE) -> 0.504 | Q10: =HLOOKUP(Q$5,$AM$13:$AW$19,5,FALSE) -> 0.509
B11: Students (Grad and Undergrad) | E11: =HLOOKUP(E$5,$AM$13:$AW$19,6,FALSE) -> 0.11 | G11: =HLOOKUP(G$5,$AM$13:$AW$19,6,FALSE) -> 0.083 | I11: =HLOOKUP(I$5,$AM$13:$AW$19,6,FALSE) -> 0.083 | K11: =HLOOKUP(K$5,$AM$13:$AW$19,6,FALSE) -> 0.083 | M11: =HLOOKUP(M$5,$AM$13:$AW$19,6,FALSE) -> 0.083 | O11: =HLOOKUP(O$5,$AM$13:$AW$19,6,FALSE) -> 0.083 | Q11: =HLOOKUP(Q$5,$AM$13:$AW$19,6,FALSE) -> 0.083
B12: Part-Time Faculty (<65%)/Staff (<80%)/Post Doc | E12: =HLOOKUP(E$5,$AM$13:$AW$19,7,FALSE) -> 0.2 | G12: =HLOOKUP(G$5,$AM$13:$AW$19,7,FALSE) -> 0.198 | I12: =HLOOKUP(I$5,$AM$13:$AW$19,7,FALSE) -> 0.195 | K12: =HLOOKUP(K$5,$AM$13:$AW$19,7,FALSE) -> 0.197 | M12: =HLOOKUP(M$5,$AM$13:$AW$19,7,FALSE) -> 0.198 | O12: =HLOOKUP(O$5,$AM$13:$AW$19,7,FALSE) -> 0.2 | Q12: =HLOOKUP(Q$5,$AM$13:$AW$19,7,FALSE) -> 0.2 | AM12: Blue = Actual Red = Estimates
J13: ` | AL13: Rate Chart | AM13: FY22 | AN13: FY23 | AO13: FY24 | AP13: FY25 | AQ13: FY26 | AR13: FY27 | AS13: FY28 | AT13: FY29 | AU13: FY30 | AV13: FY31 | AW13: FY32
B14: Indirect Cost Rates (on Campus) | T14: =VALUE(U14)+2000 -> 2024 | U14: =RIGHT(E5,2) -> 24 | X14: Starting Year Calculation | AL14: Faculty (AAUP) | AM14: 0.291 | AN14: 0.278 | AO14: 0.307 | AP14: 0.308 | AQ14: 0.312 | AR14: 0.314 | AS14: 0.317 | AT14: 0.319 | AU14: 0.322 | AV14: 0.324 | AW14: 0.324
B15: Research Indirect Costs | E15: =HLOOKUP(E$5,$AM$13:$AW$23,9,FALSE) -> 0.62 | G15: =HLOOKUP(G$5,$AM$13:$AW$23,9,FALSE) -> 0.62 | I15: =HLOOKUP(I$5,$AM$13:$AW$23,9,FALSE) -> 0.62 | K15: =HLOOKUP(K$5,$AM$13:$AW$23,9,FALSE) -> 0.62 | M15: =HLOOKUP(M$5,$AM$13:$AW$23,9,FALSE) -> 0.62 | O15: =HLOOKUP(O$5,$AM$13:$AW$23,9,FALSE) -> 0.62 | Q15: =HLOOKUP(Q$5,$AM$13:$AW$23,9,FALSE) -> 0.62 | T15: =T14+1 -> 2025 | W15: =X15-1 -> 2023 | X15: =IF(MONTH(E2)>6,YEAR(E2)+1,YEAR(E2)) -> 2024 | Z15: =X15+1 -> 2025 | AB15: =Z15+1 -> 2026 | AD15: =AB15+1 -> 2027 | AF15: =AD15+1 -> 2028 | AH15: =AF15+1 -> 2029 | AJ15: =AH15+1 -> 2030 | AL15: Exmpt Staff (Mnthly)/ | AM15: 0.312 | AN15: 0.375 | AO15: 0.405 | AP15: 0.351 | AQ15: 0.364 | AR15: 0.367 | AS15: 0.37 | AT15: 0.373 | AU15: 0.376 | AV15: 0.379 | AW15: 0.379
B16: Instruction Indirect Costs | E16: =HLOOKUP(E$5,$AM$13:$AW$23,10,FALSE) -> 0.57 | G16: =HLOOKUP(G$5,$AM$13:$AW$23,10,FALSE) -> 0.57 | I16: =HLOOKUP(I$5,$AM$13:$AW$23,10,FALSE) -> 0.57 | K16: =HLOOKUP(K$5,$AM$13:$AW$23,10,FALSE) -> 0.57 | M16: =HLOOKUP(M$5,$AM$13:$AW$23,10,FALSE) -> 0.57 | O16: =HLOOKUP(O$5,$AM$13:$AW$23,10,FALSE) -> 0.57 | Q16: =HLOOKUP(Q$5,$AM$13:$AW$23,10,FALSE) -> 0.57 | T16: 2026 | X16: ="FY" & RIGHT(TEXT(X15,"0"),2) -> FY24 | Z16: ="FY" & RIGHT(TEXT(Z15,"0"),2) -> FY25 | AB16: ="FY" & RIGHT(TEXT(AB15,"0"),2) -> FY26 | AD16: ="FY" & RIGHT(TEXT(AD15,"0"),2) -> FY27 | AF16: ="FY" & RIGHT(TEXT(AF15,"0"),2) -> FY28 | AH16: ="FY" & RIGHT(TEXT(AH15,"0"),2) -> FY29 | AJ16: ="FY" & RIGHT(TEXT(AJ15,"0"),2) -> FY30 | AL16: Dual Comp Faculty | AM16: 0.371 | AN16: 0.444 | AO16: 0.457 | AP16: 0.425 | AQ16: 0.442 | AR16: 0.454 | AS16: 0.467 | AT16: 0.481 | AU16: 0.495 | AV16: 0.51 | AW16: 0.51
B17: Public Service Indirect Costs | E17: =HLOOKUP(E$5,$AM$13:$AW$23,11,FALSE) -> 0.31 | G17: =HLOOKUP(G$5,$AM$13:$AW$23,11,FALSE) -> 0.31 | I17: =HLOOKUP(I$5,$AM$13:$AW$23,11,FALSE) -> 0.31 | K17: =HLOOKUP(K$5,$AM$13:$AW$23,11,FALSE) -> 0.31 | M17: =HLOOKUP(M$5,$AM$13:$AW$23,11,FALSE) -> 0.31 | O17: =HLOOKUP(O$5,$AM$13:$AW$23,11,FALSE) -> 0.31 | Q17: =HLOOKUP(Q$5,$AM$13:$AW$23,11,FALSE) -> 0.31 | T17: 2027 | AL17: NonExempt Staff (Bi-Weekly) | AM17: 0.372 | AN17: 0.399 | AO17: 0.437 | AP17: 0.548 | AQ17: 0.49 | AR17: 0.495 | AS17: 0.5 | AT17: 0.504 | AU17: 0.509 | AV17: 0.514 | AW17: 0.514
T18: 2028 | AD18: Initiation Date FY | AL18: Students (Grad and Undergrad) | AM18: 0.072 | AN18: 0.092 | AO18: 0.11 | AP18: 0.083 | AQ18: 0.083 | AR18: 0.083 | AS18: 0.083 | AT18: 0.083 | AU18: 0.083 | AV18: 0.083 | AW18: 0.083
B19: Indirect Cost Rates (off Campus & for Sub-Contracts $25,000 or less) | T19: 2029 | AD19: =IF(MONTH(E3)>6,YEAR(E3)+1,YEAR(E3)) -> 2024 | AL19: Part-Time Faculty (<65%)/Staff (<80%)/Post Doc | AM19: 0.193 | AN19: 0.179 | AO19: 0.2 | AP19: 0.198 | AQ19: 0.195 | AR19: 0.197 | AS19: 0.198 | AT19: 0.2 | AU19: 0.2 | AV19: 0.201 | AW19: 0.201
B20: Research Indirect Costs | E20: 0.26 | G20: 0.26 | I20: 0.26 | K20: 0.26 | M20: 0.26 | O20: 0.26 | Q20: 0.26 | T20: 2030
B21: Instruction Indirect Costs | E21: 0.26 | G21: 0.26 | I21: 0.26 | K21: 0.26 | M21: 0.26 | O21: 0.26 | Q21: 0.26 | AL21: Research Indirect Costs | AM21: 0.62 | AN21: 0.62 | AO21: 0.62 | AP21: 0.62 | AQ21: 0.62 | AR21: 0.62 | AS21: 0.62 | AT21: 0.62 | AU21: 0.62 | AV21: 0.62 | AW21: 0.62
B22: Public Service Indirect Costs | E22: 0.26 | G22: 0.26 | I22: 0.26 | K22: 0.26 | M22: 0.26 | O22: 0.26 | Q22: 0.26 | AL22: Instruction Indirect Costs | AM22: 0.57 | AN22: 0.57 | AO22: 0.57 | AP22: 0.57 | AQ22: 0.57 | AR22: 0.57 | AS22: 0.57 | AT22: 0.57 | AU22: 0.57 | AV22: 0.57 | AW22: 0.57
AL23: Public Service Indirect Costs | AM23: 0.31 | AN23: 0.31 | AO23: 0.31 | AP23: 0.31 | AQ23: 0.31 | AR23: 0.31 | AS23: 0.31 | AT23: 0.31 | AU23: 0.31 | AV23: 0.31 | AW23: 0.31
B24: Fringe Benefit Base for Project Period | E24: Year 1 | G24: Year 2 | I24: Year 3 | K24: Year 4 | M24: Year 5 | O24: Year 6 | Q24: Year 7 | W24: Row Value
B25: Faculty (AAUP) | E25: =IF(X$15 < $T$20, HLOOKUP(X$16,$E$5:$Q$17,$W25,FALSE),$Q7+(0.005 * (X$15 - $T$20))) -> 0.307 | G25: =IF(Z$15 < $T$20, HLOOKUP(Z$16,$E$5:$Q$17,$W25,FALSE),$Q7+(0.005 * (Z$15 - $T$20))) -> 0.308 | I25: =IF(AB$15 < $T$20, HLOOKUP(AB$16,$E$5:$Q$17,$W25,FALSE),$Q7+(0.005 * (AB$15 - $T$20))) -> 0.312 | K25: =IF(AD$15 < $T$20, HLOOKUP(AD$16,$E$5:$Q$17,$W25,FALSE),$Q7+(0.005 * (AD$15 - $T$20))) -> 0.314 | M25: =IF(AF$15 < $T$20, HLOOKUP(AF$16,$E$5:$Q$17,$W25,FALSE),$Q7+(0.005 * (AF$15 - $T$20))) -> 0.317 | O25: =IF(AH$15 < $T$20, HLOOKUP(AH$16,$E$5:$Q$17,$W25,FALSE),$Q7+(0.005 * (AH$15 - $T$20))) -> 0.319 | Q25: =IF(AJ$15 < $T$20, HLOOKUP(AJ$16,$E$5:$Q$17,$W25,FALSE),$Q7+(0.005 * (AJ$15 - $T$20))) -> 0.322 | W25: 3
B26: Exmpt Staff (Mnthly)/Non-AAUP Faculty | E26: 0.405 | G26: 0.351 | I26: 0.364 | K26: 0.367 | M26: 0.37 | O26: 0.373 | Q26: 0.376 | W26: 4
B27: Dual Comp Faculty | E27: 0.457 | G27: 0.425 | I27: 0.442 | K27: 0.454 | M27: 0.467 | O27: 0.481 | Q27: 0.495 | W27: 5
B28: NonExempt Staff (Bi-Weekly) | E28: 0.437 | G28: 0.548 | I28: 0.49 | K28: 0.495 | M28: 0.5 | O28: 0.504 | Q28: 0.509 | W28: 6
B29: Students (Grad and Undergrad) | E29: 0.11 | G29: 0.083 | I29: 0.083 | K29: 0.083 | M29: 0.083 | O29: 0.083 | Q29: 0.083 | W29: 7
B30: Part-Time Faculty (<65%)/Staff (<80%)/Post Doc | E30: 0.2 | G30: 0.198 | I30: 0.195 | K30: 0.197 | M30: 0.198 | O30: 0.2 | Q30: 0.2 | W30: 8
B31: Research F&A | E31: =IF(X$15 < $T$20, HLOOKUP(X$16,$E$5:$Q$17,$W31,FALSE),$Q15) -> 0.62 | G31: =IF(Z$15 < $T$20, HLOOKUP(Z$16,$E$5:$Q$17,$W31,FALSE),$Q15) -> 0.62 | I31: =IF(AB$15 < $T$20, HLOOKUP(AB$16,$E$5:$Q$17,$W31,FALSE),$Q15) -> 0.62 | K31: =IF(AD$15 < $T$20, HLOOKUP(AD$16,$E$5:$Q$17,$W31,FALSE),$Q15) -> 0.62 | M31: =IF(AF$15 < $T$20, HLOOKUP(AF$16,$E$5:$Q$17,$W31,FALSE),$Q15) -> 0.62 | O31: =IF(AH$15 < $T$20, HLOOKUP(AH$16,$E$5:$Q$17,$W31,FALSE),$Q15) -> 0.62 | Q31: =IF(AJ$15 < $T$20, HLOOKUP(AJ$16,$E$5:$Q$17,$W31,FALSE),$Q15) -> 0.62 | W31: 11
B32: Instruction F&A | E32: =IF(X$15 < $T$20, HLOOKUP(X$16,$E$5:$Q$17,$W32,FALSE),$Q16) -> 0.57 | G32: =IF(Z$15 < $T$20, HLOOKUP(Z$16,$E$5:$Q$17,$W32,FALSE),$Q16) -> 0.57 | I32: =IF(AB$15 < $T$20, HLOOKUP(AB$16,$E$5:$Q$17,$W32,FALSE),$Q16) -> 0.57 | K32: =IF(AD$15 < $T$20, HLOOKUP(AD$16,$E$5:$Q$17,$W32,FALSE),$Q16) -> 0.57 | M32: =IF(AF$15 < $T$20, HLOOKUP(AF$16,$E$5:$Q$17,$W32,FALSE),$Q16) -> 0.57 | O32: =IF(AH$15 < $T$20, HLOOKUP(AH$16,$E$5:$Q$17,$W32,FALSE),$Q16) -> 0.57 | Q32: =IF(AJ$15 < $T$20, HLOOKUP(AJ$16,$E$5:$Q$17,$W32,FALSE),$Q16) -> 0.57 | W32: 12
B33: PS F&A | E33: =IF(X$15 < $T$20, HLOOKUP(X$16,$E$5:$Q$17,$W33,FALSE),$Q17) -> 0.31 | G33: =IF(Z$15 < $T$20, HLOOKUP(Z$16,$E$5:$Q$17,$W33,FALSE),$Q17) -> 0.31 | I33: =IF(AB$15 < $T$20, HLOOKUP(AB$16,$E$5:$Q$17,$W33,FALSE),$Q17) -> 0.31 | K33: =IF(AD$15 < $T$20, HLOOKUP(AD$16,$E$5:$Q$17,$W33,FALSE),$Q17) -> 0.31 | M33: =IF(AF$15 < $T$20, HLOOKUP(AF$16,$E$5:$Q$17,$W33,FALSE),$Q17) -> 0.31 | O33: =IF(AH$15 < $T$20, HLOOKUP(AH$16,$E$5:$Q$17,$W33,FALSE),$Q17) -> 0.31 | Q33: =IF(AJ$15 < $T$20, HLOOKUP(AJ$16,$E$5:$Q$17,$W33,FALSE),$Q17) -> 0.31 | W33: 13
B35: PRO-RATED RATES USED
B37: Fringe Benefit Rates | C37: weight | E37: YEAR 1 | G37: YEAR 2 | I37: YEAR 3 | K37: YEAR 4 | M37: YEAR 5 | O37: YEAR 6 | Q37: YEAR 7
B38: Faculty | C38: =IF(MONTH($E$2)<7,182-($E$2-DATE(YEAR($E$2),1,1)+1),365-($E$2-DATE(YEAR($E$2),7,1))) -> 181 | D38: =365-C38 -> 184 | E38: =((E25*$C38)+(G25*$D38))/365 -> 0.3075041096 | G38: =((G25*$C38)+(I25*$D38))/365 -> 0.3100164384 | I38: =((I25*$C38)+(K25*$D38))/365 -> 0.3130082192 | K38: =((K25*$C38)+(M25*$D38))/365 -> 0.3155123288 | M38: =((M25*$C38)+(O25*$D38))/365 -> 0.3180082192 | O38: =((O25*$C38)+(Q25*$D38))/365 -> 0.3205123288 | Q38: =((Q25*$C38)+((Q25+0.005)*$D38))/365 -> 0.3245205479
B39: Exempt Staff (Monthly) | C39: =$C$38 -> 181 | D39: 184 | E39: =((E26*C39)+(G26*D39))/365 -> 0.3777780822 | G39: 0.3575534247 | I39: 0.3655123288 | K39: 0.3685123288 | M39: 0.3715123288 | O39: 0.3745123288 | Q39: 0.3785205479
B40: Dual Comp Faculty | C40: =$C$38 -> 181 | D40: 184 | E40: =((E27*C40)+(G27*D40))/365 -> 0.4408684932 | G40: 0.433569863 | I40: 0.4480493151 | K40: 0.4605534247 | M40: 0.4740575342 | O40: 0.4880575342 | Q40: 0.4975205479
B41: NonExempt Staff (Bi-Weekly) | C41: =$C$38 -> 181 | D41: 184 | E41: =((E28*C41)+(G28*D41))/365 -> 0.4929561644 | G41: 0.5187616438 | I41: 0.4925205479 | K41: 0.4975205479 | M41: 0.5020164384 | O41: 0.5065205479 | Q41: 0.5115205479
B42: Students (Grad and Undergrad) | C42: =$C$38 -> 181 | D42: 184 | E42: =((E29*C42)+(G29*D42))/365 -> 0.0963890411 | G42: 0.083 | I42: 0.083 | K42: 0.083 | M42: 0.083 | O42: 0.083 | Q42: 0.08552054795
B43: P-T Fac(<65%)/Staff(<80%)&Post Doc | C43: =$C$38 -> 181 | D43: 184 | E43: =((E30*C43)+(G30*D43))/365 -> 0.1989917808 | G43: 0.1964876712 | I43: 0.1960082192 | K43: 0.1975041096 | M43: 0.1990082192 | O43: 0.2 | Q43: 0.2025205479
B44: Faculty (ACAD) | C44: =IF($E$2-DATE(YEAR($E$2),1,1)+1 > 243, 499-($E$2-DATE(YEAR($E$2),1,1)+1),IF($E$2-DATE(YEAR($E$2),1,1)+1 > 181,255,IF($E$2-DATE(YEAR($E$2),1,1)+1 > 133, 0,134-($E$2-DATE(YEAR($E$2),1,1)+1)))) -> 133 | D44: =255-C44 -> 122 | E44: =((E25*$C44)+(G25*$D44))/255 -> 0.3074784314 | G44: =((G25*$C44)+(I25*$D44))/255 -> 0.3099137255 | I44: =((I25*$C44)+(K25*$D44))/255 -> 0.3129568627 | K44: =((K25*$C44)+(M25*$D44))/255 -> 0.3154352941 | M44: =((M25*$C44)+(O25*$D44))/255 -> 0.3179568627 | O44: =((O25*$C44)+(Q25*$D44))/255 -> 0.3204352941 | Q44: =((Q25*$C44)+((Q25+0.005)*$D44))/255 -> 0.3243921569
B45: Faculty (SUMR) | C45: =IF($E$2-DATE(YEAR($E$2),1,1)+1 > 243,48,IF($E$2-DATE(YEAR($E$2),1,1)+1 > 181,292-($E$2-DATE(YEAR($E$2),1,1)+1),IF($E$2-DATE(YEAR($E$2),1,1)+1 > 133, 182-($E$2-DATE(YEAR($E$2),1,1)+1),48))) -> 48 | D45: =110-C45 -> 62 | E45: =((E25*$C45)+(G25*$D45))/110 -> 0.3075636364 | G45: =((G25*$C45)+(I25*$D45))/110 -> 0.3102545455 | I45: =((I25*$C45)+(K25*$D45))/110 -> 0.3131272727 | K45: =((K25*$C45)+(M25*$D45))/110 -> 0.3156909091 | M45: =((M25*$C45)+(O25*$D45))/110 -> 0.3181272727 | O45: =((O25*$C45)+(Q25*$D45))/110 -> 0.3206909091 | Q45: =((Q25*$C45)+((Q25+0.005)*$D45))/110 -> 0.3248181818
B47: Indirect Cost Rates (on Campus)
B48: Research Indirect Costs | C48: =$C$38 -> 181 | D48: =365-C48 -> 184 | E48: =((E31*$C48)+(G31*$D48))/365 -> 0.62 | G48: =((G31*$C48)+(I31*$D48))/365 -> 0.62 | I48: =((I31*$C48)+(K31*$D48))/365 -> 0.62 | K48: =((K31*$C48)+(M31*$D48))/365 -> 0.62 | M48: =((M31*$C48)+(O31*$D48))/365 -> 0.62 | O48: =((O31*$C48)+(Q31*$D48))/365 -> 0.62 | Q48: =+O48 -> 0.62
B49: Instruction Indirect Costs | C49: =$C$38 -> 181 | D49: =365-C49 -> 184 | E49: =((E32*$C49)+(G32*$D49))/365 -> 0.57 | G49: =((G32*$C49)+(I32*$D49))/365 -> 0.57 | I49: =((I32*$C49)+(K32*$D49))/365 -> 0.57 | K49: =((K32*$C49)+(M32*$D49))/365 -> 0.57 | M49: =((M32*$C49)+(O32*$D49))/365 -> 0.57 | O49: =((O32*$C49)+(Q32*$D49))/365 -> 0.57 | Q49: =+O49 -> 0.57
B50: Public Service Indirect Costs | C50: =$C$38 -> 181 | D50: =365-C50 -> 184 | E50: =((E33*$C50)+(G33*$D50))/365 -> 0.31 | G50: =((G33*$C50)+(I33*$D50))/365 -> 0.31 | I50: =((I33*$C50)+(K33*$D50))/365 -> 0.31 | K50: =((K33*$C50)+(M33*$D50))/365 -> 0.31 | M50: =((M33*$C50)+(O33*$D50))/365 -> 0.31 | O50: =((O33*$C50)+(Q33*$D50))/365 -> 0.31 | Q50: =+O50 -> 0.31
B52: Indirect Cost Rates (off Campus)
B53: Research Indirect Costs | C53: =$C$38 -> 181 | D53: =365-C53 -> 184 | E53: 0.26 | G53: 0.26 | I53: 0.26 | K53: 0.26 | M53: 0.26 | O53: 0.26 | Q53: 0.26
B54: Instruction Indirect Costs | C54: =$C$38 -> 181 | D54: =365-C54 -> 184 | E54: 0.26 | G54: 0.26 | I54: 0.26 | K54: 0.26 | M54: 0.26 | O54: 0.26 | Q54: 0.26
B55: Public Service Indirect Costs | C55: =$C$38 -> 181 | D55: =365-C55 -> 184 | E55: 0.26 | G55: 0.26 | I55: 0.26 | K55: 0.26 | M55: 0.26 | O55: 0.26 | Q55: 0.26
N65: Last Revised: 8/17/23

Sheet Salary Inflation
A1: Inflation Factors
A2: Employee Type | B2: Start Date | C2: FY | D2: Increase | F2: Year 1 Fiscal Year days | K2: ACAD/SUMR Days Per Month
A3: AAUP Faculty | B3: 2023-09-01 | C3: =IF(MONTH(B3)<7,YEAR(B3),YEAR(B3)+1) -> 2024 | D3: =IF('RATES-Non Fed'!$E$3>=B3,0,0.03) -> 0
A4: AAUP Faculty | B4: 2024-09-01 | C4: =IF(MONTH(B4)<7,YEAR(B4),YEAR(B4)+1) -> 2025 | D4: =IF('RATES-Non Fed'!$E$3>=B4,0,0.03) -> 0.03 | F4: Type | G4: FY | H4: Days | K4: Month | L4: ACAD | M4: SUMR | N4: Total
A5: AAUP Faculty | B5: 2025-09-01 | C5: =IF(MONTH(B5)<7,YEAR(B5),YEAR(B5)+1) -> 2026 | D5: =IF('RATES-Non Fed'!$E$3>=B5,0,0.03) -> 0.03 | F5: CAL | G5: =RIGHT('RATES-Non Fed'!E5,2)*1+2000 -> 2024 | H5: ='RATES-Non Fed'!C38 -> 181 | K5: 1 | L5: 31 | M5: 0 | N5: =L5+M5 -> 31
A6: AAUP Faculty | B6: 2026-09-01 | C6: =IF(MONTH(B6)<7,YEAR(B6),YEAR(B6)+1) -> 2027 | D6: =IF('RATES-Non Fed'!$E$3>=B6,0,0.03) -> 0.03 | F6: CAL | G6: =RIGHT('RATES-Non Fed'!G5,2)*1+2000 -> 2025 | H6: ='RATES-Non Fed'!D38 -> 184 | K6: 2 | L6: 28 | M6: 0 | N6: 28
A7: AAUP Faculty | B7: 2027-09-01 | C7: 2028 | D7: =IF('RATES-Non Fed'!$E$3>=B7,0,0.03) -> 0.03 | F7: ACAD | G7: =RIGHT('RATES-Non Fed'!E5,2)*1+2000 -> 2024 | H7: ='RATES-Non Fed'!C44 -> 133 | K7: 3 | L7: 31 | M7: 0 | N7: 31
A8: AAUP Faculty | B8: 2028-09-01 | C8: 2029 | D8: =IF('RATES-Non Fed'!$E$3>=B8,0,0.03) -> 0.03 | F8: ACAD | G8: =RIGHT('RATES-Non Fed'!G5,2)*1+2000 -> 2025 | H8: ='RATES-Non Fed'!D44 -> 122 | K8: 4 | L8: 30 | M8: 0 | N8: 30
A9: AAUP Faculty | B9: 2029-09-01 | C9: 2030 | D9: =IF('RATES-Non Fed'!$E$3>=B9,0,0.03) -> 0.03 | F9: SUMR | G9: =RIGHT('RATES-Non Fed'!E5,2)*1+2000 -> 2024 | H9: ='RATES-Non Fed'!C45 -> 48 | K9: 5 | L9: 13 | M9: 18 | N9: 31
A10: AAUP Faculty | B10: 2030-09-01 | C10: 2031 | D10: =IF('RATES-Non Fed'!$E$3>=B10,0,0.02) -> 0.02 | F10: SUMR | G10: =RIGHT('RATES-Non Fed'!G5,2)*1+2000 -> 2025 | H10: ='RATES-Non Fed'!D45 -> 62 | K10: 6 | L10: 0 | M10: 30 | N10: 30
A11: Staff/Students | B11: 2023-07-01 | C11: 2024 | D11: =IF('RATES-Non Fed'!$E$3>=B11,0,0.02) -> 0 | F11: Ex Staff | G11: =RIGHT('RATES-Non Fed'!E5,2)*1+2000 -> 2024 | H11: ='RATES-Non Fed'!C39 -> 181 | K11: 7 | L11: 0 | M11: 31 | N11: 31
A12: Staff/Students | B12: 2024-07-01 | C12: 2025 | D12: 0.03 | F12: Ex Staff | G12: =RIGHT('RATES-Non Fed'!G5,2)*1+2000 -> 2025 | H12: ='RATES-Non Fed'!D39 -> 184 | K12: 8 | L12: 0 | M12: 31 | N12: 31
A13: Staff/Students | B13: 2025-07-01 | C13: 2026 | D13: =IF('RATES-Non Fed'!$E$3>=B13,0,0.02) -> 0.02 | F13: Dual Comp | G13: =RIGHT('RATES-Non Fed'!E5,2)*1+2000 -> 2024 | H13: ='RATES-Non Fed'!C40 -> 181 | K13: 9 | L13: 30 | M13: 0 | N13: 30
A14: Staff/Students | B14: 2026-07-01 | C14: 2027 | D14: =IF('RATES-Non Fed'!$E$3>=B14,0,0.02) -> 0.02 | F14: Dual Comp | G14: =RIGHT('RATES-Non Fed'!G5,2)*1+2000 -> 2025 | H14: ='RATES-Non Fed'!D40 -> 184 | K14: 10 | L14: 31 | M14: 0 | N14: 31
A15: Staff/Students | B15: 2027-07-01 | C15: 2028 | D15: =IF('RATES-Non Fed'!$E$3>=B15,0,0.02) -> 0.02 | K15: 11 | L15: 30 | M15: 0 | N15: 30
A16: Staff/Students | B16: 2028-07-01 | C16: 2029 | D16: =IF('RATES-Non Fed'!$E$3>=B16,0,0.02) -> 0.02 | K16: 12 | L16: 31 | M16: 0 | N16: 31
A17: Staff/Students | B17: 2029-07-01 | C17: 2030 | D17: =IF('RATES-Non Fed'!$E$3>=B17,0,0.02) -> 0.02 | K17: Total | L17: =SUM(L5:L16) -> 255 | M17: =SUM(M5:M16) -> 110 | N17: =SUM(N5:N16) -> 365
A18: Dual Comp Faculty | B18: 2023-07-01 | C18: 2024 | D18: =IF('RATES-Non Fed'!$E$3>=B18,0,0.02) -> 0
A19: Dual Comp Faculty | B19: 2024-07-01 | C19: 2025 | D19: =IF('RATES-Non Fed'!$E$3>=B19,0,0.02) -> 0.02
A20: Dual Comp Faculty | B20: 2025-07-01 | C20: 2026 | D20: =IF('RATES-Non Fed'!$E$3>=B20,0,0.02) -> 0.02
A21: Dual Comp Faculty | B21: 2026-07-01 | C21: 2027 | D21: =IF('RATES-Non Fed'!$E$3>=B21,0,0.02) -> 0.02
A22: Dual Comp Faculty | B22: 2027-07-01 | C22: 2028 | D22: =IF('RATES-Non Fed'!$E$3>=B22,0,0.02) -> 0.02
A23: Dual Comp Faculty | B23: 2028-07-01 | C23: 2029 | D23: =IF('RATES-Non Fed'!$E$3>=B23,0,0.02) -> 0.02
A24: Dual Comp Faculty | B24: 2029-07-01 | C24: 2030 | D24: =IF('RATES-Non Fed'!$E$3>=B24,0,0.02) -> 0.02
A29: EE Type | B29: Year 1 Inc | C29: Year 2 Inc | D29: Year 3 Inc | E29: Year 4 Inc | F29: Year 5 Inc
A30: CAL Faculty | B30: =IF('RATES-Non Fed'!$X$15-'RATES-Non Fed'!$AD$19>1,(1+N41+N42)*(1.03^('RATES-Non Fed'!$X$15-'RATES-Non Fed'!$AD$19-1))-1,N41+N42) -> 0 | C30: =(VLOOKUP((G5+1),$C$4:$D$10,2,FALSE)*H11+VLOOKUP((G6+1),$C$4:$D$10,2,FALSE)*H12)/365 -> 0.03 | D30: =C30 -> 0.03 | E30: =D30 -> 0.03 | F30: =E30 -> 0.03
A31: ACAD Faculty | B31: =IF('RATES-Non Fed'!$X$15-'RATES-Non Fed'!$AD$19>1,(1+N41)*(1.03^('RATES-Non Fed'!$X$15-'RATES-Non Fed'!$AD$19-1))-1,O41) -> 0 | C31: =(VLOOKUP((G7+1),$C$4:$D$10,2,FALSE)*H12+VLOOKUP((G8+1),$C$4:$D$10,2,FALSE)*H13)/365 -> 0.03 | D31: =C31 -> 0.03 | E31: =D31 -> 0.03 | F31: 0.03
A32: SUMR Faculty | B32: =IF('RATES-Non Fed'!$X$15-'RATES-Non Fed'!$AD$19>1,(1+N42)*(1.03^('RATES-Non Fed'!$X$15-'RATES-Non Fed'!$AD$19-1))-1,O42) -> 0 | C32: =(VLOOKUP((G9+1),$C$4:$D$10,2,FALSE)*H13+VLOOKUP((G10+1),$C$4:$D$10,2,FALSE)*H14)/365 -> 0.03 | D32: 0.03 | E32: =D32 -> 0.03 | F32: 0.03
A33: Staff/Students | B33: =IF('RATES-Non Fed'!$X$15-'RATES-Non Fed'!$AD$19>1,(1+$O$43)*(1.02^('RATES-Non Fed'!$X$15-'RATES-Non Fed'!$AD$19-1))-1,$O$43) -> 0.0051 | C33: =(VLOOKUP((G11+1),$C$11:$D$17,2,FALSE)*H11+VLOOKUP((G12+1),$C$11:$D$17,2,FALSE)*H12)/365 -> 0.02495890411 | D33: 0.02495890411 | E33: =D33 -> 0.02495890411 | F33: 0.02495890411
A34: Dual Comp Fac | B34: =IF('RATES-Non Fed'!$X$15-'RATES-Non Fed'!$AD$19>1,(1+$O$44)*(1.02^('RATES-Non Fed'!$X$15-'RATES-Non Fed'!$AD$19-1))-1,$O$44) -> 0.0051 | C34: =(VLOOKUP((G13+1),$C$11:$D$17,2,FALSE)*H11+VLOOKUP((G14+1),$C$11:$D$17,2,FALSE)*H12)/365 -> 0.02495890411 | D34: 0.02495890411 | E34: =D34 -> 0.02495890411 | F34: 0.02495890411
A38: ACAD/SUMR Increases
A39: Date - Y1 | B39: 2023-09-01 | C39: =IF(MONTH(B39)=12,DATE(YEAR(B39)+1,1,1),DATE(YEAR(B39),MONTH(B39)+1,1)) -> 2023-10-01 | D39: 2023-11-01 | E39: =IF(MONTH(D39)=12,DATE(YEAR(D39)+1,1,1),DATE(YEAR(D39),MONTH(D39)+1,1)) -> 2023-12-01 | F39: =IF(MONTH(E39)=12,DATE(YEAR(E39)+1,1,1),DATE(YEAR(E39),MONTH(E39)+1,1)) -> 2024-01-01 | G39: 2024-02-01 | H39: 2024-03-01 | I39: =IF(MONTH(H39)=12,DATE(YEAR(H39)+1,1,1),DATE(YEAR(H39),MONTH(H39)+1,1)) -> 2024-04-01 | J39: 2024-05-01 | K39: 2024-06-01 | L39: 2024-07-01 | M39: 2024-08-01
A40: FY | B40: =IF(MONTH(B39)>6,YEAR(B39)+1,YEAR(B39)) -> 2024 | C40: 2024 | D40: 2024 | E40: 2024 | F40: 2024 | G40: 2024 | H40: 2024 | I40: 2024 | J40: 2024 | K40: 2024 | L40: 2025 | M40: 2025 | N40: NAV of Inc | O40: Value
A41: ACAD Inc | B41: =IF(MONTH(B$39)<5,VLOOKUP(B$39,$B$3:$D$10,3,TRUE),IF(MONTH(B$39)=5,VLOOKUP(B$39,$B$3:$D$10,3,TRUE)*13/31,IF(MONTH(B$39)<9,0,VLOOKUP(B$39,$B$3:$D$10,3,TRUE))))+B47 -> 0 | C41: =IF(MONTH(C$39)<5,VLOOKUP(C$39,$B$3:$D$10,3,TRUE),IF(MONTH(C$39)=5,VLOOKUP(C$39,$B$3:$D$10,3,TRUE)*13/31,IF(MONTH(C$39)<9,0,VLOOKUP(C$39,$B$3:$D$10,3,TRUE))))+IF(MONTH(C$39)<5,C$47,IF(MONTH(C$39)=5,C$47*13/31,IF(MONTH(C$39)<9,0,C$47))) -> 0 | D41: 0 | E41: 0 | F41: 0 | G41: 0 | H41: 0 | I41: 0 | J41: 0 | K41: 0 | L41: 0 | M41: 0 | N41: =SUM(B41:M41)/12 -> 0 | O41: =ROUND((1/0.702)*N41,4) -> 0
A42: SUMR Inc | B42: =IF(MONTH(B$39)<5,0,IF(MONTH(B$39)=5,VLOOKUP(B$39,$B$3:$D$10,3,TRUE)*18/31,IF(MONTH(B$39)<9,VLOOKUP(B$39,$B$3:$D$10,3,TRUE),0))) -> 0 | C42: =IF(MONTH(C$39)<5,0,IF(MONTH(C$39)=5,VLOOKUP(C$39,$B$3:$D$10,3,TRUE)*18/31,IF(MONTH(C$39)<9,VLOOKUP(C$39,$B$3:$D$10,3,TRUE),0)))+IF(MONTH(C$39)<5,0,IF(MONTH(C$39)=5,C$47*18/31,IF(MONTH(C$39)<9,C$47,0))) -> 0 | D42: 0 | E42: 0 | F42: 0 | G42: 0 | H42: 0 | I42: 0 | J42: 0 | K42: 0 | L42: 0 | M42: 0 | N42: =SUM(B42:M42)/12 -> 0 | O42: =ROUND((1/0.298)*N42,4) -> 0
A43: Staff/Stu Inc | B43: =VLOOKUP(B$39,$B$11:$D$17,3,TRUE)*VLOOKUP(MONTH(B$39),$K$5:$N$16,4,FALSE)/365 -> 0 | C43: =(VLOOKUP(C$39,$B$11:$D$17,3,TRUE)*VLOOKUP(MONTH(C$39),$K$5:$N$16,4,FALSE)/365)+C48 -> 0 | D43: 0 | E43: 0 | F43: 0 | G43: 0 | H43: 0 | I43: 0 | J43: 0 | K43: 0 | L43: 0.002547945205 | M43: 0.002547945205 | O43: =ROUND(SUM(B43:M43),4) -> 0.0051
A44: Dual Comp Inc | B44: =VLOOKUP(B$39,$B$18:$D$24,3,TRUE)*VLOOKUP(MONTH(B$39),$K$5:$N$16,4,FALSE)/365 -> 0 | C44: =(VLOOKUP(C$39,$B$11:$D$17,3,TRUE)*VLOOKUP(MONTH(C$39),$K$5:$N$16,4,FALSE)/365)+C49 -> 0 | D44: 0 | E44: 0 | F44: 0 | G44: 0 | H44: 0 | I44: 0 | J44: 0 | K44: 0 | L44: 0.002547945205 | M44: 0.002547945205 | O44: =ROUND(SUM(B44:M44),4) -> 0.0051
A47: Faculty Kicker | C47: =IF(MONTH(C$39)=9,B42,0)+B47 -> 0 | D47: =IF(MONTH(D$39)=9,C42,0)+C47 -> 0 | E47: =IF(MONTH(E$39)=9,D42,0)+D47 -> 0 | F47: =IF(MONTH(F$39)=9,E42,0)+E47 -> 0 | G47: 0 | H47: 0 | I47: 0 | J47: 0 | K47: 0 | L47: 0 | M47: 0
A48: Staff Kicker | C48: =IF(MONTH(C$39)=7,B43,0)+B48 -> 0 | D48: 0 | E48: 0 | F48: =IF(MONTH(F$39)=7,E43,0)+E48 -> 0 | G48: 0 | H48: 0 | I48: 0 | J48: 0 | K48: 0 | L48: 0 | M48: 0
A49: Dual Comp Kicker | C49: 0 | D49: 0 | E49: 0 | F49: 0 | G49: 0 | H49: 0 | I49: 0 | J49: 0 | K49: 0 | L49: 0 | M49: 0

Sheet NIH sal cap info
E1: Effective Dates | G1: NIH Annual Limitation | H1: Limitation Based on 9 Month Appt. | I1: Recess Cap
A2: DHHS Salary Caps
E3: o October 1, 1998 through December 31, 1999 | G3: 125900 | H3: 77476.92308 | I3: 33896.15385
A4: NIH1 | C4: 62.6 | E4: o January 1, 2000 and beyond | G4: 130200 | H4: 80123.07692 | I4: 35053.84615
E6: FY 2000 Awards (Executive Level II)
A7: NIH2 | C7: 65.72 | E7: o October 1, 1999 through December 31, 1999 | G7: 136700 | H7: 84123.07692 | I7: 36803.84615
A8: NIH3 | C8: 67.93 | E8: o January 1, 2000 and beyond | G8: 141300 | H8: 86953.84615 | I8: 38042.30769
A9: NIH4 | C9: 69.76
E10: FY 2001 Awards (Executive Level I)
A11: NIH5 | C11: 75.48 | E11: o October 1, 2000 through December 31, 2000 | G11: 157000 | H11: 96615.38462 | I11: 42269.23077
A12: NIH6 | C12: 77.5 | E12: o January 1, 2001 though December 31, 2001 | G12: 161200 | H12: 99200 | I12: 43400
A13: NIH7 | C13: 80.14 | E13: o January 1, 2002 through December 31, 2002 | G13: 166700 | H13: 102584.6154 | I13: 44880.76923
A14: NIH8 | C14: 82.64 | E14: o January 1, 2003 through December 31, 2003 | G14: 171900 | H14: 105784.6154 | I14: 46280.76923
A15: NIH9 | C15: 83.89 | E15: o January 1, 2004 - March 3, 2004 | G15: 174500 | H15: 107384.6154 | I15: 46980.76923
A16: NIH9 | C16: 84.47 | E16: o March 2, 2004 through December 31, 2004 | G16: 175700 | H16: 108123.0769 | I16: 47303.84615
A18: NIH10 | C18: 86.59 | E18: o January 1, 2005 and beyond | G18: 180100 | H18: 110830.7692 | I18: 48488.46154
A19: NIH11 | C19: 88.22 | E19: o January 1, 2006 and beyond | G19: 183500 | H19: 112923.0769 | I19: 49403.84615
A20: NIH12 | C20: 89.71 | E20: o January 1, 2007 and beyond | G20: 186600 | H20: 114830.7692 | I20: 50238.46154
C21: 91.97 | E21: o January 1, 2008 to December 31, 2008 | G21: 191300 | H21: =G21*0.615384615384615 -> 117723.0769 | I21: =+H21*0.4375 -> 51503.84615
C22: 94.57 | E22: o January 1, 2009 to December 31, 2009 | G22: 196700 | H22: 121046.1538 | I22: 52957.69231
C23: 96.01 | E23: o January 1, 2010 to December 23, 2011 | G23: 199700 | H23: 122892.3077 | I23: 53765.38462
C24: 86.39 | E24: o December 24, 2011 to January 11, 2014 | G24: 179700 | H24: 110584.6154 | I24: 48380.76923
C25: 87.26 | E25: o January 12, 2014 to January 10, 2015 | G25: 181500 | H25: 111692.3077 | I25: 48865.38462
C26: =SUM((G26/52)/40) -> 88.125 | E26: o January 11, 2015 to January 09, 2016 | G26: 183300 | H26: 112800 | I26: 49350
C27: 89.90384615 | E27: o January 8, 2017 to January 6, 2018 | G27: 187000 | H27: =G27*0.615384615384615 -> 115076.9231 | I27: =+H27*0.4375 -> 50346.15385
C28: 91.15384615 | E28: o January 7, 2018 and January 5, 2019 | G28: 189600 | H28: =G28*0.615384615384615 -> 116676.9231 | I28: =+H28*0.4375 -> 51046.15385
C29: 92.45192308 | E29: o January 6, 2019 to January 4, 2020 | G29: 192300 | H29: =G29*0.615384615384615 -> 118338.4615 | I29: =+H29*0.4375 -> 51773.07692
C30: 94.85576923 | E30: o January 5, 2020 to January 2, 2021 | G30: 197300 | H30: =G30*0.615384615384615 -> 121415.3846 | I30: =+H30*0.4375 -> 53119.23077
C31: 95.81730769 | E31: o January 3, 2021 and Beyond | G31: 199300 | H31: =G31*0.615384615384615 -> 122646.1538 | I31: =+H31*0.4375 -> 53657.69231
A33: The typical appointment for non-Medical College faculty is 32 weeks, usually referred to as "9 month" or "academic year". Per the AAUP agreement they may also earn an additional 14 weeks of salary during their recess period, typically the summer quarter. | G33: Academic and Recess cap together | I33: =H31+I31 -> 176303.8462
A37: Enter 32 week salary base here
C39: recess period base | D39: =D37/33*14 -> 0 | H39: Last Revised: 5/7/21

Sheet PM Conversion Chart
H1: Percent of Time & Effort to Person Months (PM)
H2: Interactive Conversion Table for the University of Cincinnati
A6: EXC | D6: 9 Month | G6: 12 Month
A7: Recess | D7: Academic Year | G7: Calendar Year
A9: % effort | B9: PM | D9: % effort | E9: PM | G9: % effort | H9: PM
A11: 1 | B11: =15.65*A11/4.3333 -> 3.611566243 | D11: =A11 -> 1 | E11: =36.35*D11/4.3333 -> 8.388526066 | G11: =A11 -> 1 | H11: =52*G11/4.3333 -> 12.00009231
A14: Instructions:
A16: To use the chart simply insert the percent effort that you want to convert into the -0- of the Recess % effort line and
A17: hit enter. The person month 9 and 12 will be displayed simultaneously.

Sheet Ref
B1: Please DO NOT change any information on this sheet.
C9: ACAD | D9: Academic
C10: CAL | D10: Calendar

Sheet Kuali
